{"text_format":"3","workbook":"xlsx","n_sheets":15,"sheets":["Kā izmantot šo veidni","Audzēkņu saraksts","Augusts","Septembris","Oktobris","Novembris","Decembris","Janvāris","Februāris","Marts","Aprīlis","Maijs","Jūnijs","Jūlijs","Atskaite par dalību studentu"],"not_rendered":{"external_links":1,"defined_names":16},"read":"whole","date_system":"1900"}

{"sheet":"Kā izmantot šo veidni","index":0,"n_rows":25,"n_cols":5,"rows_kept":25,"merged":[[3,2,3,12],[4,4,4,12],[5,4,5,12],[6,4,6,12],[7,4,7,12],[8,4,8,7],[11,2,11,12],[12,4,12,12],[13,4,13,12],[14,4,14,12],[17,2,17,12],[18,4,18,12],[19,4,19,12],[20,4,20,12],[21,4,21,12],[24,2,24,12]]}
["KĀ IZMANTOT ŠO VEIDNI"]
[]
[null,"AR KO SĀKT?"]
[null,null,"Pirms sākt sekot audzēkņu apmeklējumam, ir jāveic dažas darbības:"]
[{"$nulls":3},"1.","Pievienojiet audzēkņus: Katra audzēkņa saraksta lapā ievadiet informāciju, piemēram, aizbildņa vārdu un kontaktinformāciju. Audzēkņa ID ir svarīgs ieraksts, jo tas sniedz unikālu katra audzēkņa identifikatoru un visā darbgrāmatā tiek izmantots dažādos audzēkņa ID nolaižamajos sarakstos, lai atvieglotu datu ievadīšanu. Ievadītā informācija audzēkņu sarakstā tiek izmantota arī citās lapās, piemēram, audzēkņu apmeklējuma atskaitē un mēneša apmeklējuma ierakstos."]
[{"$nulls":3},"2.","Mainiet skolas kalendāro gadu:  Piemēram, augusta apmeklējuma lapā noklikšķiniet uz skaitītājpogas vadīklas galvenes labās malas augšpusē, lai atjauninātu skolas kalendāro gadu. Šīs izmaiņas atjaunina virsrakstu par visiem mēneša apmeklējuma ierakstiem šajā darbgrāmatā (ņemiet vērā, ka skaitītājpoga netiek drukāta)."]
[{"$nulls":3},"3.","(neobligāti) Modificējiet krāsas visā darbgrāmatā:  Vispirms pārejiet uz pēdējo lapu, Audzēkņu apmeklējuma atskaite, un cilnes Pārskatīšana grupā Izmaiņas noklikšķiniet uz Noņemt lapas aizsardzību. Pēc tam cilnes Lapas izkārtojums grupā Dizaini noklikšķiniet uz Krāsas un krāsu galerijā atlasiet citu dizaina krāsu kopu. Kad krāsu izmaiņas, kā arī citas dizaina izmaiņas esat veicis, atgriezieties lapā Audzēkņu apmeklējuma atskaite un cilnes Pārskatīšana grupā Izmaiņas noklikšķiniet uz Lapas aizsardzībaun pēc tam uz Labi."]
[{"$nulls":4},"Padoms. Izveidojiet pielāgotu dizaina krāsu kopu atbilstoši jūsu skolas krāsām. Lai to paveiktu, cilnes Lapas izkārtojums grupā Dizaini noklikšķiniet uz Krāsas un pēc tam krāsu galerijas apakšdaļā noklikšķiniet uz Izveidot jaunas dizaina krāsas. Papildinformāciju, kā izveidot pielāgotu krāsu kopu, skatiet šajā palīdzības tēmā: "]
[{"$nulls":4},"Dokumenta dizaina pielāgošana."]
[]
[null,"ESMU PIEVIENOJIS AUDZĒKŅUS, KAS JĀDARA TĀLĀK?"]
[null,null,"Pēc tam, kad informācija par audzēkņiem ir ievadīta audzēkņu saraksta lapā, varat sākt sekot viņu apmeklējumam skolas gadā, veicot šādas darbības:"]
[{"$nulls":3},"1.","Lai apmeklētības ierakstam pievienotu audzēkni, noklikšķiniet kādā no šūnām zem Audzēkņa ID kolonnas un sarakstā atlasiet ID. Pēc ID atlasīšanas audzēkņa vārds tisk rādīts automātiski. "]
[{"$nulls":4},"Padoms. Saglabājiet veiktās datu ievades darbības! Kad mēneša dati par audzēkņiem ir pievienoti, atlasiet ievadīto audzēkņu ID, kopējiet un pēc tam ielīmējiet tos kolonnā Audzēkņu ID par citiem mēnešiem. "]
[{"$nulls":3},"2.","Pēc tam ievadiet viņu apmeklētības datus par katru mēneša dienu, izmantojot norādītos apmeklējuma tipus, kas norādīti krāsu kodā. Audzēkņa apmeklējums tiek automātiski aprēķināts atkarībā no apmeklējuma tipa kopsummas kolonnā. Katru dienu tabulas apakšā, kopsummas rindā tiek automātiski aprēķināti kopējie kavējumi."]
[]
[null,"KĀ MĒNEŠA APMEKLĒJUMA IERAKSTAM PIEVIENOT VĒL CITUS AUDZĒKŅUS?"]
[null,null,"Mēneša apmeklējumu ierakstu lapas un audzēkņu saraksts ir programmas Excel tabulas. Lai pievienotu jaunas rindas jebkurai Excel tabulai, veiciet vienu no šīm darbībām:"]
[{"$nulls":3},"● ","Ja tabulai nav tabulas kopsummas rindas, sāciet rakstīt zem tabulas, un tā automātiski paplašināsies, kad nospiedīsit taustiņu Enter vai Tab."]
[{"$nulls":3},"● ","Novietojiet rādītāju pēdējā šūnā virs kopsummas rindas piemēram, pēdējā audzēkņa rindas šūnā Kavētās dienas, un pēc tam nospiediet taustiņu Tab."]
[{"$nulls":3},"● ","Ar peles labo pogu noklikšķiniet tabulā un pēc tam uznirstošajā izvēlnē norādiet uz Ievietot un pēc tam noklikšķiniet uz tabulas rindām augstāk vai tabulas rindām zemāk. "]
[{"$nulls":3},"● ","Apakšējā labajā tabulas stūrī novietojiet peli uz tabulas izmēru maiņas tura un velciet uz leju, lai palielinātu pieejamo tabulas rindu skaitu."]
[]
[null,"VAI VARU SKATĪT AUDZĒKŅU APMEKLĒJUMU VISA SKOLAS GADA LAIKĀ?"]
[null,null,"Pēdējā lapa šajā darbgrāmatā ir audzēkņa apmeklējuma pārskats, kurā parādīta informācija par attiecīgā gada dienām. Lai skatītu atskaiti par konkrētu studentu, noklikšķiniet  šūnā zem Audzēkņa ID un pēc tam nolaižamajā sarakstā atlasiet ID. Automātiski tiks parādīta informācija, ko iepriekš audzēkņu sarakstā ievadījāt par atlasīto audzēkni. Ņemiet vērā, ka, pirmoreiz izmantojot audzēkņa apmeklējuma atskaiti, jums būs jāievada skola, klase, skolotāja vārds un telpa. Šīs ziņas nemainīsies, ja  izvēlēsities citu audzēkni. "]

{"sheet":"Audzēkņu saraksts","index":1,"n_rows":8,"n_cols":19,"rows_kept":8}
["AUDZĒKŅU SARAKSTS"]
[]
[null,"Audzēkņa ID","Audzēkņa vārds","Audzēkņa uzvārds","Dzimums","Dzimšanas datums","Viens no vecākiem vai aizbildnis 1","Viens no vecākiem/aizbildnis 1, radniecība","Viens no vecākiem/aizbildnis 1 Darba tālruņa numurs","Viens no vecākiem/aizbildnis 1, mājas tālruņa numurs","Viens no vecākiem/aizbildnis 2","Viens no vecākiem/aizbildnis 2, radniecība","Viens no vecākiem/aizbildnis 2, darba tālruņa numurs","Viens no vecākiem/aizbildnis 2, mājas tālruņa numurs","Kontaktpersona ārkārtas gadījumiem","Radniecība ar ārkārtas kontaktpersonām","Ārkārtas kontaktpersonas darba tālruņa numurs","Ārkārtas kontaktpersonas mājas tālruņa numurs","Audzēkņa vārds, uzvārds"]
[null,"S001","Andris","Balodis","M","1997-03-28","Antra","Balodis",1235550134,2345550134,"Jānis Balodis","Tēvs",1235550134,2345550134,"Ivars Zvaniņš","Vectēvs",7895550189,7895550134,{"$f":"AudzēkņuSaraksts[[#This Row],[Audzēkņa vārds]]&\" \" &AudzēkņuSaraksts[[#This Row],[Audzēkņa uzvārds]]","v":"Andris Balodis"}]
[null,"S002","Audzēknis",2,{"$nulls":14},{"$f":"AudzēkņuSaraksts[[#This Row],[Audzēkņa vārds]]&\" \" &AudzēkņuSaraksts[[#This Row],[Audzēkņa uzvārds]]","v":"Audzēknis 2"}]
[null,"S003","Audzēknis",3,{"$nulls":14},{"$f":"AudzēkņuSaraksts[[#This Row],[Audzēkņa vārds]]&\" \" &AudzēkņuSaraksts[[#This Row],[Audzēkņa uzvārds]]","v":"Audzēknis 3"}]
[null,"S004","Audzēknis",4,{"$nulls":14},{"$f":"AudzēkņuSaraksts[[#This Row],[Audzēkņa vārds]]&\" \" &AudzēkņuSaraksts[[#This Row],[Audzēkņa uzvārds]]","v":"Audzēknis 4"}]
[null,"S005","Audzēknis",5,{"$nulls":14},{"$f":"AudzēkņuSaraksts[[#This Row],[Audzēkņa vārds]]&\" \" &AudzēkņuSaraksts[[#This Row],[Audzēkņa uzvārds]]","v":"Audzēknis 5"}]

{"sheet":"Augusts","index":2,"n_rows":12,"n_cols":39,"rows_kept":12,"merged":[[4,34,4,38]]}
["AUDZĒKŅA APMEKLĒJUMA IERAKSTS",{"$nulls":36},"Mācību gada sākums:",2012]
[]
[null,null,"KRĀSU KODS ","K","Kavēts",null,null,"A","Attaisnoti",null,null,"N","Neattaisnoti",null,null,"P","Klātbūtne",null,null,"N1","Neviena skola"]
[]
[null,{"$f":"DATE(KalendāraGads,8,1)","v":"2012-08-01"},null,{"$f":"TEXT(WEEKDAY(DATE(KalendāraGads,8,1),1),\"[$-426]aaa\")","v":"tr"},{"$f":"TEXT(WEEKDAY(DATE(KalendāraGads,8,2),1),\"[$-426]aaa\")","v":"ce"},{"$f":"TEXT(WEEKDAY(DATE(KalendāraGads,8,3),1),\"[$-426]aaa\")","v":"pk"},{"$f":"TEXT(WEEKDAY(DATE(KalendāraGads,8,4),1),\"[$-426]aaa\")","v":"se"},{"$f":"TEXT(WEEKDAY(DATE(KalendāraGads,8,5),1),\"[$-426]aaa\")","v":"sv"},{"$f":"TEXT(WEEKDAY(DATE(KalendāraGads,8,6),1),\"[$-426]aaa\")","v":"pr"},{"$f":"TEXT(WEEKDAY(DATE(KalendāraGads,8,7),1),\"[$-426]aaa\")","v":"ot"},{"$f":"TEXT(WEEKDAY(DATE(KalendāraGads,8,8),1),\"[$-426]aaa\")","v":"tr"},{"$f":"TEXT(WEEKDAY(DATE(KalendāraGads,8,9),1),\"[$-426]aaa\")","v":"ce"},{"$f":"TEXT(WEEKDAY(DATE(KalendāraGads,8,10),1),\"[$-426]aaa\")","v":"pk"},{"$f":"TEXT(WEEKDAY(DATE(KalendāraGads,8,11),1),\"[$-426]aaa\")","v":"se"},{"$f":"TEXT(WEEKDAY(DATE(KalendāraGads,8,12),1),\"[$-426]aaa\")","v":"sv"},{"$f":"TEXT(WEEKDAY(DATE(KalendāraGads,8,13),1),\"[$-426]aaa\")","v":"pr"},{"$f":"TEXT(WEEKDAY(DATE(KalendāraGads,8,14),1),\"[$-426]aaa\")","v":"ot"},{"$f":"TEXT(WEEKDAY(DATE(KalendāraGads,8,15),1),\"[$-426]aaa\")","v":"tr"},{"$f":"TEXT(WEEKDAY(DATE(KalendāraGads,8,16),1),\"[$-426]aaa\")","v":"ce"},{"$f":"TEXT(WEEKDAY(DATE(KalendāraGads,8,17),1),\"[$-426]aaa\")","v":"pk"},{"$f":"TEXT(WEEKDAY(DATE(KalendāraGads,8,18),1),\"[$-426]aaa\")","v":"se"},{"$f":"TEXT(WEEKDAY(DATE(KalendāraGads,8,19),1),\"[$-426]aaa\")","v":"sv"},{"$f":"TEXT(WEEKDAY(DATE(KalendāraGads,8,20),1),\"[$-426]aaa\")","v":"pr"},{"$f":"TEXT(WEEKDAY(DATE(KalendāraGads,8,21),1),\"[$-426]aaa\")","v":"ot"},{"$f":"TEXT(WEEKDAY(DATE(KalendāraGads,8,22),1),\"[$-426]aaa\")","v":"tr"},{"$f":"TEXT(WEEKDAY(DATE(KalendāraGads,8,23),1),\"[$-426]aaa\")","v":"ce"},{"$f":"TEXT(WEEKDAY(DATE(KalendāraGads,8,24),1),\"[$-426]aaa\")","v":"pk"},{"$f":"TEXT(WEEKDAY(DATE(KalendāraGads,8,25),1),\"[$-426]aaa\")","v":"se"},{"$f":"TEXT(WEEKDAY(DATE(KalendāraGads,8,26),1),\"[$-426]aaa\")","v":"sv"},{"$f":"TEXT(WEEKDAY(DATE(KalendāraGads,8,27),1),\"[$-426]aaa\")","v":"pr"},{"$f":"TEXT(WEEKDAY(DATE(KalendāraGads,8,28),1),\"[$-426]aaa\")","v":"ot"},{"$f":"TEXT(WEEKDAY(DATE(KalendāraGads,8,29),1),\"[$-426]aaa\")","v":"tr"},{"$f":"TEXT(WEEKDAY(DATE(KalendāraGads,8,30),1),\"[$-426]aaa\")","v":"ce"},{"$f":"TEXT(WEEKDAY(DATE(KalendāraGads,8,31),1),\"[$-426]aaa\")","v":"pk"},"Kopā"]
[null,"Audzēkņa ID","Audzēkņa vārds","1","2","3","4","5","6","7","8","9","10","11","12","13","14","15","16","17","18","19","20","21","22","23","24","25","26","27","28","29","30","31","K","A","N","P","Kavētās dienas"]
[null,"S001",{"$f":"IFERROR(VLOOKUP(AugustaApmeklētība[[#This Row],[Audzēkņa ID]],AudzēkņuSaraksts[],18,FALSE),\"\")","v":"Andris Balodis"},"P","P","K","K","P","N1","N1","P","P","A","P","P","N1","N1","P","P","P","P","P","N1","N1","P","P","P","P","P","N1","N1","P","P","P",{"$f":"COUNTIF(AugustaApmeklētība[[#This Row],[1]:[31]],Kods1)","v":2},{"$f":"COUNTIF(AugustaApmeklētība[[#This Row],[1]:[31]],Kods2)","v":1},{"$f":"COUNTIF(AugustaApmeklētība[[#This Row],[1]:[31]],Kods3)","v":0},{"$f":"COUNTIF(AugustaApmeklētība[[#This Row],[1]:[31]],Kods4)","v":20},{"$f":"SUM(AugustaApmeklētība[[#This Row],[A]:[N]])","v":1}]
[null,"S002",{"$f":"IFERROR(VLOOKUP(AugustaApmeklētība[[#This Row],[Audzēkņa ID]],AudzēkņuSaraksts[],18,FALSE),\"\")","v":"Audzēknis 2"},"P","N","P","P","P","N1","N1","P","A","A","A","A","N1","N1","P","P","P","P","P","N1","N1","P","P","P","K","K","N1","N1","P","P","P",{"$f":"COUNTIF(AugustaApmeklētība[[#This Row],[1]:[31]],Kods1)","v":2},{"$f":"COUNTIF(AugustaApmeklētība[[#This Row],[1]:[31]],Kods2)","v":4},{"$f":"COUNTIF(AugustaApmeklētība[[#This Row],[1]:[31]],Kods3)","v":1},{"$f":"COUNTIF(AugustaApmeklētība[[#This Row],[1]:[31]],Kods4)","v":16},{"$f":"SUM(AugustaApmeklētība[[#This Row],[A]:[N]])","v":5}]
[null,"S003",{"$f":"IFERROR(VLOOKUP(AugustaApmeklētība[[#This Row],[Audzēkņa ID]],AudzēkņuSaraksts[],18,FALSE),\"\")","v":"Audzēknis 3"},"P","A","P","P","P","N1","N1","P","P","N","P","P","N1","N1","P","P","P","P","P","N1","N1","P","P","A","A","P","N1","N1","P","P","P",{"$f":"COUNTIF(AugustaApmeklētība[[#This Row],[1]:[31]],Kods1)","v":0},{"$f":"COUNTIF(AugustaApmeklētība[[#This Row],[1]:[31]],Kods2)","v":3},{"$f":"COUNTIF(AugustaApmeklētība[[#This Row],[1]:[31]],Kods3)","v":1},{"$f":"COUNTIF(AugustaApmeklētība[[#This Row],[1]:[31]],Kods4)","v":19},{"$f":"SUM(AugustaApmeklētība[[#This Row],[A]:[N]])","v":4}]
[null,"S004",{"$f":"IFERROR(VLOOKUP(AugustaApmeklētība[[#This Row],[Audzēkņa ID]],AudzēkņuSaraksts[],18,FALSE),\"\")","v":"Audzēknis 4"},"P","P","P","P","P","N1","N1","P","P","P","P","P","N1","N1","P","P","P","P","P","N1","N1","P","N","P","P","A","N1","N1","P","A","P",{"$f":"COUNTIF(AugustaApmeklētība[[#This Row],[1]:[31]],Kods1)","v":0},{"$f":"COUNTIF(AugustaApmeklētība[[#This Row],[1]:[31]],Kods2)","v":2},{"$f":"COUNTIF(AugustaApmeklētība[[#This Row],[1]:[31]],Kods3)","v":1},{"$f":"COUNTIF(AugustaApmeklētība[[#This Row],[1]:[31]],Kods4)","v":20},{"$f":"SUM(AugustaApmeklētība[[#This Row],[A]:[N]])","v":3}]
[null,"S005",{"$f":"IFERROR(VLOOKUP(AugustaApmeklētība[[#This Row],[Audzēkņa ID]],AudzēkņuSaraksts[],18,FALSE),\"\")","v":"Audzēknis 5"},"P","P","P","P","P","N1","N1","P","P","P","P","P","N1","N1","P","P","P","P","P","N1","N1","P","P","P","P","P","N1","N1","P","P","P",{"$f":"COUNTIF(AugustaApmeklētība[[#This Row],[1]:[31]],Kods1)","v":0},{"$f":"COUNTIF(AugustaApmeklētība[[#This Row],[1]:[31]],Kods2)","v":0},{"$f":"COUNTIF(AugustaApmeklētība[[#This Row],[1]:[31]],Kods3)","v":0},{"$f":"COUNTIF(AugustaApmeklētība[[#This Row],[1]:[31]],Kods4)","v":23},{"$f":"SUM(AugustaApmeklētība[[#This Row],[A]:[N]])","v":0}]
[null,null,"Kavētās dienas kopā",{"$f":"COUNTIF(AugustaApmeklētība[1],\"N\")+COUNTIF(AugustaApmeklētība[1],\"A\")","v":0},{"$f":"COUNTIF(AugustaApmeklētība[2],\"N\")+COUNTIF(AugustaApmeklētība[2],\"A\")","v":2},{"$f":"COUNTIF(AugustaApmeklētība[3],\"N\")+COUNTIF(AugustaApmeklētība[3],\"A\")","v":0},{"$f":"COUNTIF(AugustaApmeklētība[4],\"N\")+COUNTIF(AugustaApmeklētība[4],\"A\")","v":0},{"$f":"COUNTIF(AugustaApmeklētība[5],\"N\")+COUNTIF(AugustaApmeklētība[5],\"A\")","v":0},{"$f":"COUNTIF(AugustaApmeklētība[6],\"N\")+COUNTIF(AugustaApmeklētība[6],\"A\")","v":0},{"$f":"COUNTIF(AugustaApmeklētība[7],\"N\")+COUNTIF(AugustaApmeklētība[7],\"A\")","v":0},{"$f":"COUNTIF(AugustaApmeklētība[8],\"N\")+COUNTIF(AugustaApmeklētība[8],\"A\")","v":0},{"$f":"COUNTIF(AugustaApmeklētība[9],\"N\")+COUNTIF(AugustaApmeklētība[9],\"A\")","v":1},{"$f":"COUNTIF(AugustaApmeklētība[10],\"N\")+COUNTIF(AugustaApmeklētība[10],\"A\")","v":3},{"$f":"COUNTIF(AugustaApmeklētība[11],\"N\")+COUNTIF(AugustaApmeklētība[11],\"A\")","v":1},{"$f":"COUNTIF(AugustaApmeklētība[12],\"N\")+COUNTIF(AugustaApmeklētība[12],\"A\")","v":1},{"$f":"COUNTIF(AugustaApmeklētība[13],\"N\")+COUNTIF(AugustaApmeklētība[13],\"A\")","v":0},{"$f":"COUNTIF(AugustaApmeklētība[14],\"N\")+COUNTIF(AugustaApmeklētība[14],\"A\")","v":0},{"$f":"COUNTIF(AugustaApmeklētība[15],\"N\")+COUNTIF(AugustaApmeklētība[15],\"A\")","v":0},{"$f":"COUNTIF(AugustaApmeklētība[16],\"N\")+COUNTIF(AugustaApmeklētība[16],\"A\")","v":0},{"$f":"COUNTIF(AugustaApmeklētība[17],\"N\")+COUNTIF(AugustaApmeklētība[17],\"A\")","v":0},{"$f":"COUNTIF(AugustaApmeklētība[18],\"N\")+COUNTIF(AugustaApmeklētība[18],\"A\")","v":0},{"$f":"COUNTIF(AugustaApmeklētība[19],\"N\")+COUNTIF(AugustaApmeklētība[19],\"A\")","v":0},{"$f":"COUNTIF(AugustaApmeklētība[20],\"N\")+COUNTIF(AugustaApmeklētība[20],\"A\")","v":0},{"$f":"COUNTIF(AugustaApmeklētība[21],\"N\")+COUNTIF(AugustaApmeklētība[21],\"A\")","v":0},{"$f":"COUNTIF(AugustaApmeklētība[22],\"N\")+COUNTIF(AugustaApmeklētība[22],\"A\")","v":0},{"$f":"COUNTIF(AugustaApmeklētība[23],\"N\")+COUNTIF(AugustaApmeklētība[23],\"A\")","v":1},{"$f":"COUNTIF(AugustaApmeklētība[24],\"N\")+COUNTIF(AugustaApmeklētība[24],\"A\")","v":1},{"$f":"COUNTIF(AugustaApmeklētība[25],\"N\")+COUNTIF(AugustaApmeklētība[25],\"A\")","v":1},{"$f":"COUNTIF(AugustaApmeklētība[26],\"N\")+COUNTIF(AugustaApmeklētība[26],\"A\")","v":1},{"$f":"COUNTIF(AugustaApmeklētība[27],\"N\")+COUNTIF(AugustaApmeklētība[27],\"A\")","v":0},{"$f":"COUNTIF(AugustaApmeklētība[28],\"N\")+COUNTIF(AugustaApmeklētība[28],\"A\")","v":0},{"$f":"COUNTIF(AugustaApmeklētība[29],\"N\")+COUNTIF(AugustaApmeklētība[29],\"A\")","v":0},{"$f":"COUNTIF(AugustaApmeklētība[30],\"N\")+COUNTIF(AugustaApmeklētība[30],\"A\")","v":1},{"$f":"COUNTIF(AugustaApmeklētība[31],\"N\")+COUNTIF(AugustaApmeklētība[31],\"A\")","v":0},{"$f":"SUBTOTAL(109,AugustaApmeklētība[K])","v":4},{"$f":"SUBTOTAL(109,AugustaApmeklētība[A])","v":10},{"$f":"SUBTOTAL(109,AugustaApmeklētība[N])","v":3},{"$f":"SUBTOTAL(109,AugustaApmeklētība[P])","v":98},{"$f":"SUBTOTAL(109,AugustaApmeklētība[Kavētās dienas])","v":13}]

{"sheet":"Septembris","index":3,"n_rows":12,"n_cols":39,"rows_kept":12,"merged":[[4,34,4,38]]}
["AUDZĒKŅA APMEKLĒJUMA IERAKSTS",{"$nulls":36},"Mācību gada sākums:",{"$f":"KalendāraGads","v":2012}]
[]
[null,null,{"$f":"KrāsasPamatteksts","v":"KRĀSU KODS "},{"$f":"Kods1","v":"K"},{"$f":"Koda1Teksts","v":"Kavēts"},null,null,{"$f":"Kods2","v":"A"},{"$f":"Koda2Teksts","v":"Attaisnoti"},null,null,{"$f":"Kods3","v":"N"},{"$f":"Koda3Teksts","v":"Neattaisnoti"},null,null,{"$f":"Kods4","v":"P"},{"$f":"Koda4Teksts","v":"Klātbūtne"},null,null,{"$f":"Kods5","v":"N1"},{"$f":"Koda5Teksts","v":"Neviena skola"}]
[]
[null,{"$f":"DATE(KalendāraGads,9,1)","v":"2012-09-01"},null,{"$f":"TEXT(WEEKDAY(DATE(KalendāraGads,9,1),1),\"[$-426]aaa\")","v":"se"},{"$f":"TEXT(WEEKDAY(DATE(KalendāraGads,9,2),1),\"[$-426]aaa\")","v":"sv"},{"$f":"TEXT(WEEKDAY(DATE(KalendāraGads,9,3),1),\"[$-426]aaa\")","v":"pr"},{"$f":"TEXT(WEEKDAY(DATE(KalendāraGads,9,4),1),\"[$-426]aaa\")","v":"ot"},{"$f":"TEXT(WEEKDAY(DATE(KalendāraGads,9,5),1),\"[$-426]aaa\")","v":"tr"},{"$f":"TEXT(WEEKDAY(DATE(KalendāraGads,9,6),1),\"[$-426]aaa\")","v":"ce"},{"$f":"TEXT(WEEKDAY(DATE(KalendāraGads,9,7),1),\"[$-426]aaa\")","v":"pk"},{"$f":"TEXT(WEEKDAY(DATE(KalendāraGads,9,8),1),\"[$-426]aaa\")","v":"se"},{"$f":"TEXT(WEEKDAY(DATE(KalendāraGads,9,9),1),\"[$-426]aaa\")","v":"sv"},{"$f":"TEXT(WEEKDAY(DATE(KalendāraGads,9,10),1),\"[$-426]aaa\")","v":"pr"},{"$f":"TEXT(WEEKDAY(DATE(KalendāraGads,9,11),1),\"[$-426]aaa\")","v":"ot"},{"$f":"TEXT(WEEKDAY(DATE(KalendāraGads,9,12),1),\"[$-426]aaa\")","v":"tr"},{"$f":"TEXT(WEEKDAY(DATE(KalendāraGads,9,13),1),\"[$-426]aaa\")","v":"ce"},{"$f":"TEXT(WEEKDAY(DATE(KalendāraGads,9,14),1),\"[$-426]aaa\")","v":"pk"},{"$f":"TEXT(WEEKDAY(DATE(KalendāraGads,9,15),1),\"[$-426]aaa\")","v":"se"},{"$f":"TEXT(WEEKDAY(DATE(KalendāraGads,9,16),1),\"[$-426]aaa\")","v":"sv"},{"$f":"TEXT(WEEKDAY(DATE(KalendāraGads,9,17),1),\"[$-426]aaa\")","v":"pr"},{"$f":"TEXT(WEEKDAY(DATE(KalendāraGads,9,18),1),\"[$-426]aaa\")","v":"ot"},{"$f":"TEXT(WEEKDAY(DATE(KalendāraGads,9,19),1),\"[$-426]aaa\")","v":"tr"},{"$f":"TEXT(WEEKDAY(DATE(KalendāraGads,9,20),1),\"[$-426]aaa\")","v":"ce"},{"$f":"TEXT(WEEKDAY(DATE(KalendāraGads,9,21),1),\"[$-426]aaa\")","v":"pk"},{"$f":"TEXT(WEEKDAY(DATE(KalendāraGads,9,22),1),\"[$-426]aaa\")","v":"se"},{"$f":"TEXT(WEEKDAY(DATE(KalendāraGads,9,23),1),\"[$-426]aaa\")","v":"sv"},{"$f":"TEXT(WEEKDAY(DATE(KalendāraGads,9,24),1),\"[$-426]aaa\")","v":"pr"},{"$f":"TEXT(WEEKDAY(DATE(KalendāraGads,9,25),1),\"[$-426]aaa\")","v":"ot"},{"$f":"TEXT(WEEKDAY(DATE(KalendāraGads,9,26),1),\"[$-426]aaa\")","v":"tr"},{"$f":"TEXT(WEEKDAY(DATE(KalendāraGads,9,27),1),\"[$-426]aaa\")","v":"ce"},{"$f":"TEXT(WEEKDAY(DATE(KalendāraGads,9,28),1),\"[$-426]aaa\")","v":"pk"},{"$f":"TEXT(WEEKDAY(DATE(KalendāraGads,9,29),1),\"[$-426]aaa\")","v":"se"},{"$f":"TEXT(WEEKDAY(DATE(KalendāraGads,9,30),1),\"[$-426]aaa\")","v":"sv"},null,"Kopā"]
[null,"Audzēkņa ID","Audzēkņa vārds","1","2","3","4","5","6","7","8","9","10","11","12","13","14","15","16","17","18","19","20","21","22","23","24","25","26","27","28","29","30"," ","K","A","N","P","Kavētās dienas"]
[null,null,{"$f":"IFERROR(VLOOKUP(SeptembraApmeklētība[[#This Row],[Audzēkņa ID]],AudzēkņuSaraksts[],18,FALSE),\"\")","v":""},{"$nulls":31},{"$f":"COUNTIF(SeptembraApmeklētība[[#This Row],[1]:[ ]],Kods1)","v":0},{"$f":"COUNTIF(SeptembraApmeklētība[[#This Row],[1]:[ ]],Kods2)","v":0},{"$f":"COUNTIF(SeptembraApmeklētība[[#This Row],[1]:[ ]],Kods3)","v":0},{"$f":"COUNTIF(SeptembraApmeklētība[[#This Row],[1]:[ ]],Kods4)","v":0},{"$f":"SUM(SeptembraApmeklētība[[#This Row],[A]:[N]])","v":0}]
[null,null,{"$f":"IFERROR(VLOOKUP(SeptembraApmeklētība[[#This Row],[Audzēkņa ID]],AudzēkņuSaraksts[],18,FALSE),\"\")","v":""},{"$nulls":31},{"$f":"COUNTIF(SeptembraApmeklētība[[#This Row],[1]:[ ]],Kods1)","v":0},{"$f":"COUNTIF(SeptembraApmeklētība[[#This Row],[1]:[ ]],Kods2)","v":0},{"$f":"COUNTIF(SeptembraApmeklētība[[#This Row],[1]:[ ]],Kods3)","v":0},{"$f":"COUNTIF(SeptembraApmeklētība[[#This Row],[1]:[ ]],Kods4)","v":0},{"$f":"SUM(SeptembraApmeklētība[[#This Row],[A]:[N]])","v":0}]
[null,null,{"$f":"IFERROR(VLOOKUP(SeptembraApmeklētība[[#This Row],[Audzēkņa ID]],AudzēkņuSaraksts[],18,FALSE),\"\")","v":""},{"$nulls":31},{"$f":"COUNTIF(SeptembraApmeklētība[[#This Row],[1]:[ ]],Kods1)","v":0},{"$f":"COUNTIF(SeptembraApmeklētība[[#This Row],[1]:[ ]],Kods2)","v":0},{"$f":"COUNTIF(SeptembraApmeklētība[[#This Row],[1]:[ ]],Kods3)","v":0},{"$f":"COUNTIF(SeptembraApmeklētība[[#This Row],[1]:[ ]],Kods4)","v":0},{"$f":"SUM(SeptembraApmeklētība[[#This Row],[A]:[N]])","v":0}]
[null,null,{"$f":"IFERROR(VLOOKUP(SeptembraApmeklētība[[#This Row],[Audzēkņa ID]],AudzēkņuSaraksts[],18,FALSE),\"\")","v":""},{"$nulls":31},{"$f":"COUNTIF(SeptembraApmeklētība[[#This Row],[1]:[ ]],Kods1)","v":0},{"$f":"COUNTIF(SeptembraApmeklētība[[#This Row],[1]:[ ]],Kods2)","v":0},{"$f":"COUNTIF(SeptembraApmeklētība[[#This Row],[1]:[ ]],Kods3)","v":0},{"$f":"COUNTIF(SeptembraApmeklētība[[#This Row],[1]:[ ]],Kods4)","v":0},{"$f":"SUM(SeptembraApmeklētība[[#This Row],[A]:[N]])","v":0}]
[null,null,{"$f":"IFERROR(VLOOKUP(SeptembraApmeklētība[[#This Row],[Audzēkņa ID]],AudzēkņuSaraksts[],18,FALSE),\"\")","v":""},{"$nulls":31},{"$f":"COUNTIF(SeptembraApmeklētība[[#This Row],[1]:[ ]],Kods1)","v":0},{"$f":"COUNTIF(SeptembraApmeklētība[[#This Row],[1]:[ ]],Kods2)","v":0},{"$f":"COUNTIF(SeptembraApmeklētība[[#This Row],[1]:[ ]],Kods3)","v":0},{"$f":"COUNTIF(SeptembraApmeklētība[[#This Row],[1]:[ ]],Kods4)","v":0},{"$f":"SUM(SeptembraApmeklētība[[#This Row],[A]:[N]])","v":0}]
[null,null,"Kavētās dienas kopā",{"$f":"COUNTIF(SeptembraApmeklētība[1],\"A\")+COUNTIF(SeptembraApmeklētība[1],\"N\")","v":0},{"$f":"COUNTIF(SeptembraApmeklētība[2],\"A\")+COUNTIF(SeptembraApmeklētība[2],\"N\")","v":0},{"$f":"COUNTIF(SeptembraApmeklētība[3],\"A\")+COUNTIF(SeptembraApmeklētība[3],\"N\")","v":0},{"$f":"COUNTIF(SeptembraApmeklētība[4],\"A\")+COUNTIF(SeptembraApmeklētība[4],\"N\")","v":0},{"$f":"COUNTIF(SeptembraApmeklētība[5],\"A\")+COUNTIF(SeptembraApmeklētība[5],\"N\")","v":0},{"$f":"COUNTIF(SeptembraApmeklētība[6],\"A\")+COUNTIF(SeptembraApmeklētība[6],\"N\")","v":0},{"$f":"COUNTIF(SeptembraApmeklētība[7],\"A\")+COUNTIF(SeptembraApmeklētība[7],\"N\")","v":0},{"$f":"COUNTIF(SeptembraApmeklētība[8],\"A\")+COUNTIF(SeptembraApmeklētība[8],\"N\")","v":0},{"$f":"COUNTIF(SeptembraApmeklētība[9],\"A\")+COUNTIF(SeptembraApmeklētība[9],\"N\")","v":0},{"$f":"COUNTIF(SeptembraApmeklētība[10],\"A\")+COUNTIF(SeptembraApmeklētība[10],\"N\")","v":0},{"$f":"COUNTIF(SeptembraApmeklētība[11],\"A\")+COUNTIF(SeptembraApmeklētība[11],\"N\")","v":0},{"$f":"COUNTIF(SeptembraApmeklētība[12],\"A\")+COUNTIF(SeptembraApmeklētība[12],\"N\")","v":0},{"$f":"COUNTIF(SeptembraApmeklētība[13],\"A\")+COUNTIF(SeptembraApmeklētība[13],\"N\")","v":0},{"$f":"COUNTIF(SeptembraApmeklētība[14],\"A\")+COUNTIF(SeptembraApmeklētība[14],\"N\")","v":0},{"$f":"COUNTIF(SeptembraApmeklētība[15],\"A\")+COUNTIF(SeptembraApmeklētība[15],\"N\")","v":0},{"$f":"COUNTIF(SeptembraApmeklētība[16],\"A\")+COUNTIF(SeptembraApmeklētība[16],\"N\")","v":0},{"$f":"COUNTIF(SeptembraApmeklētība[17],\"A\")+COUNTIF(SeptembraApmeklētība[17],\"N\")","v":0},{"$f":"COUNTIF(SeptembraApmeklētība[18],\"A\")+COUNTIF(SeptembraApmeklētība[18],\"N\")","v":0},{"$f":"COUNTIF(SeptembraApmeklētība[19],\"A\")+COUNTIF(SeptembraApmeklētība[19],\"N\")","v":0},{"$f":"COUNTIF(SeptembraApmeklētība[20],\"A\")+COUNTIF(SeptembraApmeklētība[20],\"N\")","v":0},{"$f":"COUNTIF(SeptembraApmeklētība[21],\"A\")+COUNTIF(SeptembraApmeklētība[21],\"N\")","v":0},{"$f":"COUNTIF(SeptembraApmeklētība[22],\"A\")+COUNTIF(SeptembraApmeklētība[22],\"N\")","v":0},{"$f":"COUNTIF(SeptembraApmeklētība[23],\"A\")+COUNTIF(SeptembraApmeklētība[23],\"N\")","v":0},{"$f":"COUNTIF(SeptembraApmeklētība[24],\"A\")+COUNTIF(SeptembraApmeklētība[24],\"N\")","v":0},{"$f":"COUNTIF(SeptembraApmeklētība[25],\"A\")+COUNTIF(SeptembraApmeklētība[25],\"N\")","v":0},{"$f":"COUNTIF(SeptembraApmeklētība[26],\"A\")+COUNTIF(SeptembraApmeklētība[26],\"N\")","v":0},{"$f":"COUNTIF(SeptembraApmeklētība[27],\"A\")+COUNTIF(SeptembraApmeklētība[27],\"N\")","v":0},{"$f":"COUNTIF(SeptembraApmeklētība[28],\"A\")+COUNTIF(SeptembraApmeklētība[28],\"N\")","v":0},{"$f":"COUNTIF(SeptembraApmeklētība[29],\"A\")+COUNTIF(SeptembraApmeklētība[29],\"N\")","v":0},{"$f":"COUNTIF(SeptembraApmeklētība[30],\"A\")+COUNTIF(SeptembraApmeklētība[30],\"N\")","v":0},{"$f":"COUNTIF(SeptembraApmeklētība[[ ]],\"A\")+COUNTIF(SeptembraApmeklētība[[ ]],\"N\")","v":0},{"$f":"SUBTOTAL(109,SeptembraApmeklētība[K])","v":0},{"$f":"SUBTOTAL(109,SeptembraApmeklētība[A])","v":0},{"$f":"SUBTOTAL(109,SeptembraApmeklētība[N])","v":0},{"$f":"SUBTOTAL(109,SeptembraApmeklētība[P])","v":0},{"$f":"SUBTOTAL(109,SeptembraApmeklētība[Kavētās dienas])","v":0}]

{"sheet":"Oktobris","index":4,"n_rows":12,"n_cols":39,"rows_kept":12,"merged":[[4,34,4,38]]}
["AUDZĒKŅA APMEKLĒJUMA IERAKSTS",{"$nulls":36},"Mācību gada sākums:",{"$f":"KalendāraGads","v":2012}]
[]
[null,null,{"$f":"KrāsasPamatteksts","v":"KRĀSU KODS "},{"$f":"Kods1","v":"K"},{"$f":"Koda1Teksts","v":"Kavēts"},null,null,{"$f":"Kods2","v":"A"},{"$f":"Koda2Teksts","v":"Attaisnoti"},null,null,{"$f":"Kods3","v":"N"},{"$f":"Koda3Teksts","v":"Neattaisnoti"},null,null,{"$f":"Kods4","v":"P"},{"$f":"Koda4Teksts","v":"Klātbūtne"},null,null,{"$f":"Kods5","v":"N1"},{"$f":"Koda5Teksts","v":"Neviena skola"}]
[]
[null,{"$f":"DATE(KalendāraGads,10,1)","v":"2012-10-01"},null,{"$f":"TEXT(WEEKDAY(DATE(KalendāraGads,10,1),1),\"[$-426]aaa\")","v":"pr"},{"$f":"TEXT(WEEKDAY(DATE(KalendāraGads,10,2),1),\"[$-426]aaa\")","v":"ot"},{"$f":"TEXT(WEEKDAY(DATE(KalendāraGads,10,3),1),\"[$-426]aaa\")","v":"tr"},{"$f":"TEXT(WEEKDAY(DATE(KalendāraGads,10,4),1),\"[$-426]aaa\")","v":"ce"},{"$f":"TEXT(WEEKDAY(DATE(KalendāraGads,10,5),1),\"[$-426]aaa\")","v":"pk"},{"$f":"TEXT(WEEKDAY(DATE(KalendāraGads,10,6),1),\"[$-426]aaa\")","v":"se"},{"$f":"TEXT(WEEKDAY(DATE(KalendāraGads,10,7),1),\"[$-426]aaa\")","v":"sv"},{"$f":"TEXT(WEEKDAY(DATE(KalendāraGads,10,8),1),\"[$-426]aaa\")","v":"pr"},{"$f":"TEXT(WEEKDAY(DATE(KalendāraGads,10,9),1),\"[$-426]aaa\")","v":"ot"},{"$f":"TEXT(WEEKDAY(DATE(KalendāraGads,10,10),1),\"[$-426]aaa\")","v":"tr"},{"$f":"TEXT(WEEKDAY(DATE(KalendāraGads,10,11),1),\"[$-426]aaa\")","v":"ce"},{"$f":"TEXT(WEEKDAY(DATE(KalendāraGads,10,12),1),\"[$-426]aaa\")","v":"pk"},{"$f":"TEXT(WEEKDAY(DATE(KalendāraGads,10,13),1),\"[$-426]aaa\")","v":"se"},{"$f":"TEXT(WEEKDAY(DATE(KalendāraGads,10,14),1),\"[$-426]aaa\")","v":"sv"},{"$f":"TEXT(WEEKDAY(DATE(KalendāraGads,10,15),1),\"[$-426]aaa\")","v":"pr"},{"$f":"TEXT(WEEKDAY(DATE(KalendāraGads,10,16),1),\"[$-426]aaa\")","v":"ot"},{"$f":"TEXT(WEEKDAY(DATE(KalendāraGads,10,17),1),\"[$-426]aaa\")","v":"tr"},{"$f":"TEXT(WEEKDAY(DATE(KalendāraGads,10,18),1),\"[$-426]aaa\")","v":"ce"},{"$f":"TEXT(WEEKDAY(DATE(KalendāraGads,10,19),1),\"[$-426]aaa\")","v":"pk"},{"$f":"TEXT(WEEKDAY(DATE(KalendāraGads,10,20),1),\"[$-426]aaa\")","v":"se"},{"$f":"TEXT(WEEKDAY(DATE(KalendāraGads,10,21),1),\"[$-426]aaa\")","v":"sv"},{"$f":"TEXT(WEEKDAY(DATE(KalendāraGads,10,22),1),\"[$-426]aaa\")","v":"pr"},{"$f":"TEXT(WEEKDAY(DATE(KalendāraGads,10,23),1),\"[$-426]aaa\")","v":"ot"},{"$f":"TEXT(WEEKDAY(DATE(KalendāraGads,10,24),1),\"[$-426]aaa\")","v":"tr"},{"$f":"TEXT(WEEKDAY(DATE(KalendāraGads,10,25),1),\"[$-426]aaa\")","v":"ce"},{"$f":"TEXT(WEEKDAY(DATE(KalendāraGads,10,26),1),\"[$-426]aaa\")","v":"pk"},{"$f":"TEXT(WEEKDAY(DATE(KalendāraGads,10,27),1),\"[$-426]aaa\")","v":"se"},{"$f":"TEXT(WEEKDAY(DATE(KalendāraGads,10,28),1),\"[$-426]aaa\")","v":"sv"},{"$f":"TEXT(WEEKDAY(DATE(KalendāraGads,10,29),1),\"[$-426]aaa\")","v":"pr"},{"$f":"TEXT(WEEKDAY(DATE(KalendāraGads,10,30),1),\"[$-426]aaa\")","v":"ot"},{"$f":"TEXT(WEEKDAY(DATE(KalendāraGads,10,31),1),\"[$-426]aaa\")","v":"tr"},"Kopā"]
[null,"Audzēkņa ID","Audzēkņa vārds","1","2","3","4","5","6","7","8","9","10","11","12","13","14","15","16","17","18","19","20","21","22","23","24","25","26","27","28","29","30","31","K","A","N","P","Kavētās dienas"]
[null,null,{"$f":"IFERROR(VLOOKUP(OktobraApmeklētība[[#This Row],[Audzēkņa ID]],AudzēkņuSaraksts[],18,FALSE),\"\")","v":""},{"$nulls":31},{"$f":"COUNTIF(OktobraApmeklētība[[#This Row],[1]:[31]],Kods1)","v":0},{"$f":"COUNTIF(OktobraApmeklētība[[#This Row],[1]:[31]],Kods2)","v":0},{"$f":"COUNTIF(OktobraApmeklētība[[#This Row],[1]:[31]],Kods3)","v":0},{"$f":"COUNTIF(OktobraApmeklētība[[#This Row],[1]:[31]],Kods4)","v":0},{"$f":"SUM(OktobraApmeklētība[[#This Row],[A]:[N]])","v":0}]
[null,null,{"$f":"IFERROR(VLOOKUP(OktobraApmeklētība[[#This Row],[Audzēkņa ID]],AudzēkņuSaraksts[],18,FALSE),\"\")","v":""},{"$nulls":31},{"$f":"COUNTIF(OktobraApmeklētība[[#This Row],[1]:[31]],Kods1)","v":0},{"$f":"COUNTIF(OktobraApmeklētība[[#This Row],[1]:[31]],Kods2)","v":0},{"$f":"COUNTIF(OktobraApmeklētība[[#This Row],[1]:[31]],Kods3)","v":0},{"$f":"COUNTIF(OktobraApmeklētība[[#This Row],[1]:[31]],Kods4)","v":0},{"$f":"SUM(OktobraApmeklētība[[#This Row],[A]:[N]])","v":0}]
[null,null,{"$f":"IFERROR(VLOOKUP(OktobraApmeklētība[[#This Row],[Audzēkņa ID]],AudzēkņuSaraksts[],18,FALSE),\"\")","v":""},{"$nulls":31},{"$f":"COUNTIF(OktobraApmeklētība[[#This Row],[1]:[31]],Kods1)","v":0},{"$f":"COUNTIF(OktobraApmeklētība[[#This Row],[1]:[31]],Kods2)","v":0},{"$f":"COUNTIF(OktobraApmeklētība[[#This Row],[1]:[31]],Kods3)","v":0},{"$f":"COUNTIF(OktobraApmeklētība[[#This Row],[1]:[31]],Kods4)","v":0},{"$f":"SUM(OktobraApmeklētība[[#This Row],[A]:[N]])","v":0}]
[null,null,{"$f":"IFERROR(VLOOKUP(OktobraApmeklētība[[#This Row],[Audzēkņa ID]],AudzēkņuSaraksts[],18,FALSE),\"\")","v":""},{"$nulls":31},{"$f":"COUNTIF(OktobraApmeklētība[[#This Row],[1]:[31]],Kods1)","v":0},{"$f":"COUNTIF(OktobraApmeklētība[[#This Row],[1]:[31]],Kods2)","v":0},{"$f":"COUNTIF(OktobraApmeklētība[[#This Row],[1]:[31]],Kods3)","v":0},{"$f":"COUNTIF(OktobraApmeklētība[[#This Row],[1]:[31]],Kods4)","v":0},{"$f":"SUM(OktobraApmeklētība[[#This Row],[A]:[N]])","v":0}]
[null,null,{"$f":"IFERROR(VLOOKUP(OktobraApmeklētība[[#This Row],[Audzēkņa ID]],AudzēkņuSaraksts[],18,FALSE),\"\")","v":""},{"$nulls":31},{"$f":"COUNTIF(OktobraApmeklētība[[#This Row],[1]:[31]],Kods1)","v":0},{"$f":"COUNTIF(OktobraApmeklētība[[#This Row],[1]:[31]],Kods2)","v":0},{"$f":"COUNTIF(OktobraApmeklētība[[#This Row],[1]:[31]],Kods3)","v":0},{"$f":"COUNTIF(OktobraApmeklētība[[#This Row],[1]:[31]],Kods4)","v":0},{"$f":"SUM(OktobraApmeklētība[[#This Row],[A]:[N]])","v":0}]
[null,null,"Kavētās dienas kopā",{"$f":"COUNTIF(OktobraApmeklētība[1],\"N\")+COUNTIF(OktobraApmeklētība[1],\"A\")","v":0},{"$f":"COUNTIF(OktobraApmeklētība[2],\"N\")+COUNTIF(OktobraApmeklētība[2],\"A\")","v":0},{"$f":"COUNTIF(OktobraApmeklētība[3],\"N\")+COUNTIF(OktobraApmeklētība[3],\"A\")","v":0},{"$f":"COUNTIF(OktobraApmeklētība[4],\"N\")+COUNTIF(OktobraApmeklētība[4],\"A\")","v":0},{"$f":"COUNTIF(OktobraApmeklētība[5],\"N\")+COUNTIF(OktobraApmeklētība[5],\"A\")","v":0},{"$f":"COUNTIF(OktobraApmeklētība[6],\"N\")+COUNTIF(OktobraApmeklētība[6],\"A\")","v":0},{"$f":"COUNTIF(OktobraApmeklētība[7],\"N\")+COUNTIF(OktobraApmeklētība[7],\"A\")","v":0},{"$f":"COUNTIF(OktobraApmeklētība[8],\"N\")+COUNTIF(OktobraApmeklētība[8],\"A\")","v":0},{"$f":"COUNTIF(OktobraApmeklētība[9],\"N\")+COUNTIF(OktobraApmeklētība[9],\"A\")","v":0},{"$f":"COUNTIF(OktobraApmeklētība[10],\"N\")+COUNTIF(OktobraApmeklētība[10],\"A\")","v":0},{"$f":"COUNTIF(OktobraApmeklētība[11],\"N\")+COUNTIF(OktobraApmeklētība[11],\"A\")","v":0},{"$f":"COUNTIF(OktobraApmeklētība[12],\"N\")+COUNTIF(OktobraApmeklētība[12],\"A\")","v":0},{"$f":"COUNTIF(OktobraApmeklētība[13],\"N\")+COUNTIF(OktobraApmeklētība[13],\"A\")","v":0},{"$f":"COUNTIF(OktobraApmeklētība[14],\"N\")+COUNTIF(OktobraApmeklētība[14],\"A\")","v":0},{"$f":"COUNTIF(OktobraApmeklētība[15],\"N\")+COUNTIF(OktobraApmeklētība[15],\"A\")","v":0},{"$f":"COUNTIF(OktobraApmeklētība[16],\"N\")+COUNTIF(OktobraApmeklētība[16],\"A\")","v":0},{"$f":"COUNTIF(OktobraApmeklētība[17],\"N\")+COUNTIF(OktobraApmeklētība[17],\"A\")","v":0},{"$f":"COUNTIF(OktobraApmeklētība[18],\"N\")+COUNTIF(OktobraApmeklētība[18],\"A\")","v":0},{"$f":"COUNTIF(OktobraApmeklētība[19],\"N\")+COUNTIF(OktobraApmeklētība[19],\"A\")","v":0},{"$f":"COUNTIF(OktobraApmeklētība[20],\"N\")+COUNTIF(OktobraApmeklētība[20],\"A\")","v":0},{"$f":"COUNTIF(OktobraApmeklētība[21],\"N\")+COUNTIF(OktobraApmeklētība[21],\"A\")","v":0},{"$f":"COUNTIF(OktobraApmeklētība[22],\"N\")+COUNTIF(OktobraApmeklētība[22],\"A\")","v":0},{"$f":"COUNTIF(OktobraApmeklētība[23],\"N\")+COUNTIF(OktobraApmeklētība[23],\"A\")","v":0},{"$f":"COUNTIF(OktobraApmeklētība[24],\"N\")+COUNTIF(OktobraApmeklētība[24],\"A\")","v":0},{"$f":"COUNTIF(OktobraApmeklētība[25],\"N\")+COUNTIF(OktobraApmeklētība[25],\"A\")","v":0},{"$f":"COUNTIF(OktobraApmeklētība[26],\"N\")+COUNTIF(OktobraApmeklētība[26],\"A\")","v":0},{"$f":"COUNTIF(OktobraApmeklētība[27],\"N\")+COUNTIF(OktobraApmeklētība[27],\"A\")","v":0},{"$f":"COUNTIF(OktobraApmeklētība[28],\"N\")+COUNTIF(OktobraApmeklētība[28],\"A\")","v":0},{"$f":"COUNTIF(OktobraApmeklētība[29],\"N\")+COUNTIF(OktobraApmeklētība[29],\"A\")","v":0},{"$f":"COUNTIF(OktobraApmeklētība[30],\"N\")+COUNTIF(OktobraApmeklētība[30],\"A\")","v":0},{"$f":"COUNTIF(OktobraApmeklētība[31],\"N\")+COUNTIF(OktobraApmeklētība[31],\"A\")","v":0},{"$f":"SUBTOTAL(109,OktobraApmeklētība[K])","v":0},{"$f":"SUBTOTAL(109,OktobraApmeklētība[A])","v":0},{"$f":"SUBTOTAL(109,OktobraApmeklētība[N])","v":0},{"$f":"SUBTOTAL(109,OktobraApmeklētība[P])","v":0},{"$f":"SUBTOTAL(109,OktobraApmeklētība[Kavētās dienas])","v":0}]

{"sheet":"Novembris","index":5,"n_rows":12,"n_cols":39,"rows_kept":12,"merged":[[4,34,4,38]]}
["AUDZĒKŅA APMEKLĒJUMA IERAKSTS",{"$nulls":36},"Mācību gada sākums:",{"$f":"KalendāraGads","v":2012}]
[]
[null,null,{"$f":"KrāsasPamatteksts","v":"KRĀSU KODS "},{"$f":"Kods1","v":"K"},{"$f":"Koda1Teksts","v":"Kavēts"},null,null,{"$f":"Kods2","v":"A"},{"$f":"Koda2Teksts","v":"Attaisnoti"},null,null,{"$f":"Kods3","v":"N"},{"$f":"Koda3Teksts","v":"Neattaisnoti"},null,null,{"$f":"Kods4","v":"P"},{"$f":"Koda4Teksts","v":"Klātbūtne"},null,null,{"$f":"Kods5","v":"N1"},{"$f":"Koda5Teksts","v":"Neviena skola"}]
[]
[null,{"$f":"DATE(KalendāraGads,11,1)","v":"2012-11-01"},null,{"$f":"TEXT(WEEKDAY(DATE(KalendāraGads,11,1),1),\"[$-426]aaa\")","v":"ce"},{"$f":"TEXT(WEEKDAY(DATE(KalendāraGads,11,2),1),\"[$-426]aaa\")","v":"pk"},{"$f":"TEXT(WEEKDAY(DATE(KalendāraGads,11,3),1),\"[$-426]aaa\")","v":"se"},{"$f":"TEXT(WEEKDAY(DATE(KalendāraGads,11,4),1),\"[$-426]aaa\")","v":"sv"},{"$f":"TEXT(WEEKDAY(DATE(KalendāraGads,11,5),1),\"[$-426]aaa\")","v":"pr"},{"$f":"TEXT(WEEKDAY(DATE(KalendāraGads,11,6),1),\"[$-426]aaa\")","v":"ot"},{"$f":"TEXT(WEEKDAY(DATE(KalendāraGads,11,7),1),\"[$-426]aaa\")","v":"tr"},{"$f":"TEXT(WEEKDAY(DATE(KalendāraGads,11,8),1),\"[$-426]aaa\")","v":"ce"},{"$f":"TEXT(WEEKDAY(DATE(KalendāraGads,11,9),1),\"[$-426]aaa\")","v":"pk"},{"$f":"TEXT(WEEKDAY(DATE(KalendāraGads,11,10),1),\"[$-426]aaa\")","v":"se"},{"$f":"TEXT(WEEKDAY(DATE(KalendāraGads,11,11),1),\"[$-426]aaa\")","v":"sv"},{"$f":"TEXT(WEEKDAY(DATE(KalendāraGads,11,12),1),\"[$-426]aaa\")","v":"pr"},{"$f":"TEXT(WEEKDAY(DATE(KalendāraGads,11,13),1),\"[$-426]aaa\")","v":"ot"},{"$f":"TEXT(WEEKDAY(DATE(KalendāraGads,11,14),1),\"[$-426]aaa\")","v":"tr"},{"$f":"TEXT(WEEKDAY(DATE(KalendāraGads,11,15),1),\"[$-426]aaa\")","v":"ce"},{"$f":"TEXT(WEEKDAY(DATE(KalendāraGads,11,16),1),\"[$-426]aaa\")","v":"pk"},{"$f":"TEXT(WEEKDAY(DATE(KalendāraGads,11,17),1),\"[$-426]aaa\")","v":"se"},{"$f":"TEXT(WEEKDAY(DATE(KalendāraGads,11,18),1),\"[$-426]aaa\")","v":"sv"},{"$f":"TEXT(WEEKDAY(DATE(KalendāraGads,11,19),1),\"[$-426]aaa\")","v":"pr"},{"$f":"TEXT(WEEKDAY(DATE(KalendāraGads,11,20),1),\"[$-426]aaa\")","v":"ot"},{"$f":"TEXT(WEEKDAY(DATE(KalendāraGads,11,21),1),\"[$-426]aaa\")","v":"tr"},{"$f":"TEXT(WEEKDAY(DATE(KalendāraGads,11,22),1),\"[$-426]aaa\")","v":"ce"},{"$f":"TEXT(WEEKDAY(DATE(KalendāraGads,11,23),1),\"[$-426]aaa\")","v":"pk"},{"$f":"TEXT(WEEKDAY(DATE(KalendāraGads,11,24),1),\"[$-426]aaa\")","v":"se"},{"$f":"TEXT(WEEKDAY(DATE(KalendāraGads,11,25),1),\"[$-426]aaa\")","v":"sv"},{"$f":"TEXT(WEEKDAY(DATE(KalendāraGads,11,26),1),\"[$-426]aaa\")","v":"pr"},{"$f":"TEXT(WEEKDAY(DATE(KalendāraGads,11,27),1),\"[$-426]aaa\")","v":"ot"},{"$f":"TEXT(WEEKDAY(DATE(KalendāraGads,11,28),1),\"[$-426]aaa\")","v":"tr"},{"$f":"TEXT(WEEKDAY(DATE(KalendāraGads,11,29),1),\"[$-426]aaa\")","v":"ce"},{"$f":"TEXT(WEEKDAY(DATE(KalendāraGads,11,30),1),\"[$-426]aaa\")","v":"pk"},null,"Kopā"]
[null,"Audzēkņa ID","Audzēkņa vārds","1","2","3","4","5","6","7","8","9","10","11","12","13","14","15","16","17","18","19","20","21","22","23","24","25","26","27","28","29","30"," ","K","A","N","P","Kavētās dienas"]
[null,null,{"$f":"IFERROR(VLOOKUP(NovembraApmeklētība[[#This Row],[Audzēkņa ID]],AudzēkņuSaraksts[],18,FALSE),\"\")","v":""},{"$nulls":31},{"$f":"COUNTIF(NovembraApmeklētība[[#This Row],[1]:[ ]],Kods1)","v":0},{"$f":"COUNTIF(NovembraApmeklētība[[#This Row],[1]:[ ]],Kods2)","v":0},{"$f":"COUNTIF(NovembraApmeklētība[[#This Row],[1]:[ ]],Kods3)","v":0},{"$f":"COUNTIF(NovembraApmeklētība[[#This Row],[1]:[ ]],Kods4)","v":0},{"$f":"SUM(NovembraApmeklētība[[#This Row],[A]:[N]])","v":0}]
[null,null,{"$f":"IFERROR(VLOOKUP(NovembraApmeklētība[[#This Row],[Audzēkņa ID]],AudzēkņuSaraksts[],18,FALSE),\"\")","v":""},{"$nulls":31},{"$f":"COUNTIF(NovembraApmeklētība[[#This Row],[1]:[ ]],Kods1)","v":0},{"$f":"COUNTIF(NovembraApmeklētība[[#This Row],[1]:[ ]],Kods2)","v":0},{"$f":"COUNTIF(NovembraApmeklētība[[#This Row],[1]:[ ]],Kods3)","v":0},{"$f":"COUNTIF(NovembraApmeklētība[[#This Row],[1]:[ ]],Kods4)","v":0},{"$f":"SUM(NovembraApmeklētība[[#This Row],[A]:[N]])","v":0}]
[null,null,{"$f":"IFERROR(VLOOKUP(NovembraApmeklētība[[#This Row],[Audzēkņa ID]],AudzēkņuSaraksts[],18,FALSE),\"\")","v":""},{"$nulls":31},{"$f":"COUNTIF(NovembraApmeklētība[[#This Row],[1]:[ ]],Kods1)","v":0},{"$f":"COUNTIF(NovembraApmeklētība[[#This Row],[1]:[ ]],Kods2)","v":0},{"$f":"COUNTIF(NovembraApmeklētība[[#This Row],[1]:[ ]],Kods3)","v":0},{"$f":"COUNTIF(NovembraApmeklētība[[#This Row],[1]:[ ]],Kods4)","v":0},{"$f":"SUM(NovembraApmeklētība[[#This Row],[A]:[N]])","v":0}]
[null,null,{"$f":"IFERROR(VLOOKUP(NovembraApmeklētība[[#This Row],[Audzēkņa ID]],AudzēkņuSaraksts[],18,FALSE),\"\")","v":""},{"$nulls":31},{"$f":"COUNTIF(NovembraApmeklētība[[#This Row],[1]:[ ]],Kods1)","v":0},{"$f":"COUNTIF(NovembraApmeklētība[[#This Row],[1]:[ ]],Kods2)","v":0},{"$f":"COUNTIF(NovembraApmeklētība[[#This Row],[1]:[ ]],Kods3)","v":0},{"$f":"COUNTIF(NovembraApmeklētība[[#This Row],[1]:[ ]],Kods4)","v":0},{"$f":"SUM(NovembraApmeklētība[[#This Row],[A]:[N]])","v":0}]
[null,null,{"$f":"IFERROR(VLOOKUP(NovembraApmeklētība[[#This Row],[Audzēkņa ID]],AudzēkņuSaraksts[],18,FALSE),\"\")","v":""},{"$nulls":31},{"$f":"COUNTIF(NovembraApmeklētība[[#This Row],[1]:[ ]],Kods1)","v":0},{"$f":"COUNTIF(NovembraApmeklētība[[#This Row],[1]:[ ]],Kods2)","v":0},{"$f":"COUNTIF(NovembraApmeklētība[[#This Row],[1]:[ ]],Kods3)","v":0},{"$f":"COUNTIF(NovembraApmeklētība[[#This Row],[1]:[ ]],Kods4)","v":0},{"$f":"SUM(NovembraApmeklētība[[#This Row],[A]:[N]])","v":0}]
[null,null,"Kavētās dienas kopā",{"$f":"COUNTIF(NovembraApmeklētība[1],\"N\")+COUNTIF(NovembraApmeklētība[1],\"A\")","v":0},{"$f":"COUNTIF(NovembraApmeklētība[2],\"N\")+COUNTIF(NovembraApmeklētība[2],\"A\")","v":0},{"$f":"COUNTIF(NovembraApmeklētība[3],\"N\")+COUNTIF(NovembraApmeklētība[3],\"A\")","v":0},{"$f":"COUNTIF(NovembraApmeklētība[4],\"N\")+COUNTIF(NovembraApmeklētība[4],\"A\")","v":0},{"$f":"COUNTIF(NovembraApmeklētība[5],\"N\")+COUNTIF(NovembraApmeklētība[5],\"A\")","v":0},{"$f":"COUNTIF(NovembraApmeklētība[6],\"N\")+COUNTIF(NovembraApmeklētība[6],\"A\")","v":0},{"$f":"COUNTIF(NovembraApmeklētība[7],\"N\")+COUNTIF(NovembraApmeklētība[7],\"A\")","v":0},{"$f":"COUNTIF(NovembraApmeklētība[8],\"N\")+COUNTIF(NovembraApmeklētība[8],\"A\")","v":0},{"$f":"COUNTIF(NovembraApmeklētība[9],\"N\")+COUNTIF(NovembraApmeklētība[9],\"A\")","v":0},{"$f":"COUNTIF(NovembraApmeklētība[10],\"N\")+COUNTIF(NovembraApmeklētība[10],\"A\")","v":0},{"$f":"COUNTIF(NovembraApmeklētība[11],\"N\")+COUNTIF(NovembraApmeklētība[11],\"A\")","v":0},{"$f":"COUNTIF(NovembraApmeklētība[12],\"N\")+COUNTIF(NovembraApmeklētība[12],\"A\")","v":0},{"$f":"COUNTIF(NovembraApmeklētība[13],\"N\")+COUNTIF(NovembraApmeklētība[13],\"A\")","v":0},{"$f":"COUNTIF(NovembraApmeklētība[14],\"N\")+COUNTIF(NovembraApmeklētība[14],\"A\")","v":0},{"$f":"COUNTIF(NovembraApmeklētība[15],\"N\")+COUNTIF(NovembraApmeklētība[15],\"A\")","v":0},{"$f":"COUNTIF(NovembraApmeklētība[16],\"N\")+COUNTIF(NovembraApmeklētība[16],\"A\")","v":0},{"$f":"COUNTIF(NovembraApmeklētība[17],\"N\")+COUNTIF(NovembraApmeklētība[17],\"A\")","v":0},{"$f":"COUNTIF(NovembraApmeklētība[18],\"N\")+COUNTIF(NovembraApmeklētība[18],\"A\")","v":0},{"$f":"COUNTIF(NovembraApmeklētība[19],\"N\")+COUNTIF(NovembraApmeklētība[19],\"A\")","v":0},{"$f":"COUNTIF(NovembraApmeklētība[20],\"N\")+COUNTIF(NovembraApmeklētība[20],\"A\")","v":0},{"$f":"COUNTIF(NovembraApmeklētība[21],\"N\")+COUNTIF(NovembraApmeklētība[21],\"A\")","v":0},{"$f":"COUNTIF(NovembraApmeklētība[22],\"N\")+COUNTIF(NovembraApmeklētība[22],\"A\")","v":0},{"$f":"COUNTIF(NovembraApmeklētība[23],\"N\")+COUNTIF(NovembraApmeklētība[23],\"A\")","v":0},{"$f":"COUNTIF(NovembraApmeklētība[24],\"N\")+COUNTIF(NovembraApmeklētība[24],\"A\")","v":0},{"$f":"COUNTIF(NovembraApmeklētība[25],\"N\")+COUNTIF(NovembraApmeklētība[25],\"A\")","v":0},{"$f":"COUNTIF(NovembraApmeklētība[26],\"N\")+COUNTIF(NovembraApmeklētība[26],\"A\")","v":0},{"$f":"COUNTIF(NovembraApmeklētība[27],\"N\")+COUNTIF(NovembraApmeklētība[27],\"A\")","v":0},{"$f":"COUNTIF(NovembraApmeklētība[28],\"N\")+COUNTIF(NovembraApmeklētība[28],\"A\")","v":0},{"$f":"COUNTIF(NovembraApmeklētība[29],\"N\")+COUNTIF(NovembraApmeklētība[29],\"A\")","v":0},{"$f":"COUNTIF(NovembraApmeklētība[30],\"N\")+COUNTIF(NovembraApmeklētība[30],\"A\")","v":0},{"$f":"COUNTIF(NovembraApmeklētība[[ ]],\"N\")+COUNTIF(NovembraApmeklētība[[ ]],\"A\")","v":0},{"$f":"SUBTOTAL(109,NovembraApmeklētība[K])","v":0},{"$f":"SUBTOTAL(109,NovembraApmeklētība[A])","v":0},{"$f":"SUBTOTAL(109,NovembraApmeklētība[N])","v":0},{"$f":"SUBTOTAL(109,NovembraApmeklētība[P])","v":0},{"$f":"SUBTOTAL(109,NovembraApmeklētība[Kavētās dienas])","v":0}]

{"sheet":"Decembris","index":6,"n_rows":12,"n_cols":39,"rows_kept":12,"merged":[[4,34,4,38]]}
["AUDZĒKŅA APMEKLĒJUMA IERAKSTS",{"$nulls":36},"Mācību gada sākums:",{"$f":"KalendāraGads","v":2012}]
[]
[null,null,{"$f":"KrāsasPamatteksts","v":"KRĀSU KODS "},{"$f":"Kods1","v":"K"},{"$f":"Koda1Teksts","v":"Kavēts"},null,null,{"$f":"Kods2","v":"A"},{"$f":"Koda2Teksts","v":"Attaisnoti"},null,null,{"$f":"Kods3","v":"N"},{"$f":"Koda3Teksts","v":"Neattaisnoti"},null,null,{"$f":"Kods4","v":"P"},{"$f":"Koda4Teksts","v":"Klātbūtne"},null,null,{"$f":"Kods5","v":"N1"},{"$f":"Koda5Teksts","v":"Neviena skola"}]
[]
[null,{"$f":"DATE(KalendāraGads,12,1)","v":"2012-12-01"},null,{"$f":"TEXT(WEEKDAY(DATE(KalendāraGads,12,1),1),\"[$-426]aaa\")","v":"se"},{"$f":"TEXT(WEEKDAY(DATE(KalendāraGads,12,2),1),\"[$-426]aaa\")","v":"sv"},{"$f":"TEXT(WEEKDAY(DATE(KalendāraGads,12,3),1),\"[$-426]aaa\")","v":"pr"},{"$f":"TEXT(WEEKDAY(DATE(KalendāraGads,12,4),1),\"[$-426]aaa\")","v":"ot"},{"$f":"TEXT(WEEKDAY(DATE(KalendāraGads,12,5),1),\"[$-426]aaa\")","v":"tr"},{"$f":"TEXT(WEEKDAY(DATE(KalendāraGads,12,6),1),\"[$-426]aaa\")","v":"ce"},{"$f":"TEXT(WEEKDAY(DATE(KalendāraGads,12,7),1),\"[$-426]aaa\")","v":"pk"},{"$f":"TEXT(WEEKDAY(DATE(KalendāraGads,12,8),1),\"[$-426]aaa\")","v":"se"},{"$f":"TEXT(WEEKDAY(DATE(KalendāraGads,12,9),1),\"[$-426]aaa\")","v":"sv"},{"$f":"TEXT(WEEKDAY(DATE(KalendāraGads,12,10),1),\"[$-426]aaa\")","v":"pr"},{"$f":"TEXT(WEEKDAY(DATE(KalendāraGads,12,11),1),\"[$-426]aaa\")","v":"ot"},{"$f":"TEXT(WEEKDAY(DATE(KalendāraGads,12,12),1),\"[$-426]aaa\")","v":"tr"},{"$f":"TEXT(WEEKDAY(DATE(KalendāraGads,12,13),1),\"[$-426]aaa\")","v":"ce"},{"$f":"TEXT(WEEKDAY(DATE(KalendāraGads,12,14),1),\"[$-426]aaa\")","v":"pk"},{"$f":"TEXT(WEEKDAY(DATE(KalendāraGads,12,15),1),\"[$-426]aaa\")","v":"se"},{"$f":"TEXT(WEEKDAY(DATE(KalendāraGads,12,16),1),\"[$-426]aaa\")","v":"sv"},{"$f":"TEXT(WEEKDAY(DATE(KalendāraGads,12,17),1),\"[$-426]aaa\")","v":"pr"},{"$f":"TEXT(WEEKDAY(DATE(KalendāraGads,12,18),1),\"[$-426]aaa\")","v":"ot"},{"$f":"TEXT(WEEKDAY(DATE(KalendāraGads,12,19),1),\"[$-426]aaa\")","v":"tr"},{"$f":"TEXT(WEEKDAY(DATE(KalendāraGads,12,20),1),\"[$-426]aaa\")","v":"ce"},{"$f":"TEXT(WEEKDAY(DATE(KalendāraGads,12,21),1),\"[$-426]aaa\")","v":"pk"},{"$f":"TEXT(WEEKDAY(DATE(KalendāraGads,12,22),1),\"[$-426]aaa\")","v":"se"},{"$f":"TEXT(WEEKDAY(DATE(KalendāraGads,12,23),1),\"[$-426]aaa\")","v":"sv"},{"$f":"TEXT(WEEKDAY(DATE(KalendāraGads,12,24),1),\"[$-426]aaa\")","v":"pr"},{"$f":"TEXT(WEEKDAY(DATE(KalendāraGads,12,25),1),\"[$-426]aaa\")","v":"ot"},{"$f":"TEXT(WEEKDAY(DATE(KalendāraGads,12,26),1),\"[$-426]aaa\")","v":"tr"},{"$f":"TEXT(WEEKDAY(DATE(KalendāraGads,12,27),1),\"[$-426]aaa\")","v":"ce"},{"$f":"TEXT(WEEKDAY(DATE(KalendāraGads,12,28),1),\"[$-426]aaa\")","v":"pk"},{"$f":"TEXT(WEEKDAY(DATE(KalendāraGads,12,29),1),\"[$-426]aaa\")","v":"se"},{"$f":"TEXT(WEEKDAY(DATE(KalendāraGads,12,30),1),\"[$-426]aaa\")","v":"sv"},{"$f":"TEXT(WEEKDAY(DATE(KalendāraGads,12,31),1),\"[$-426]aaa\")","v":"pr"},"Kopā"]
[null,"Audzēkņa ID","Audzēkņa vārds","1","2","3","4","5","6","7","8","9","10","11","12","13","14","15","16","17","18","19","20","21","22","23","24","25","26","27","28","29","30","31","K","A","N","P","Kavētās dienas"]
[null,null,{"$f":"IFERROR(VLOOKUP(DecembraApmeklētība[[#This Row],[Audzēkņa ID]],AudzēkņuSaraksts[],18,FALSE),\"\")","v":""},{"$nulls":31},{"$f":"COUNTIF(DecembraApmeklētība[[#This Row],[1]:[31]],Kods1)","v":0},{"$f":"COUNTIF(DecembraApmeklētība[[#This Row],[1]:[31]],Kods2)","v":0},{"$f":"COUNTIF(DecembraApmeklētība[[#This Row],[1]:[31]],Kods3)","v":0},{"$f":"COUNTIF(DecembraApmeklētība[[#This Row],[1]:[31]],Kods4)","v":0},{"$f":"SUM(DecembraApmeklētība[[#This Row],[A]:[N]])","v":0}]
[null,null,{"$f":"IFERROR(VLOOKUP(DecembraApmeklētība[[#This Row],[Audzēkņa ID]],AudzēkņuSaraksts[],18,FALSE),\"\")","v":""},{"$nulls":31},{"$f":"COUNTIF(DecembraApmeklētība[[#This Row],[1]:[31]],Kods1)","v":0},{"$f":"COUNTIF(DecembraApmeklētība[[#This Row],[1]:[31]],Kods2)","v":0},{"$f":"COUNTIF(DecembraApmeklētība[[#This Row],[1]:[31]],Kods3)","v":0},{"$f":"COUNTIF(DecembraApmeklētība[[#This Row],[1]:[31]],Kods4)","v":0},{"$f":"SUM(DecembraApmeklētība[[#This Row],[A]:[N]])","v":0}]
[null,null,{"$f":"IFERROR(VLOOKUP(DecembraApmeklētība[[#This Row],[Audzēkņa ID]],AudzēkņuSaraksts[],18,FALSE),\"\")","v":""},{"$nulls":31},{"$f":"COUNTIF(DecembraApmeklētība[[#This Row],[1]:[31]],Kods1)","v":0},{"$f":"COUNTIF(DecembraApmeklētība[[#This Row],[1]:[31]],Kods2)","v":0},{"$f":"COUNTIF(DecembraApmeklētība[[#This Row],[1]:[31]],Kods3)","v":0},{"$f":"COUNTIF(DecembraApmeklētība[[#This Row],[1]:[31]],Kods4)","v":0},{"$f":"SUM(DecembraApmeklētība[[#This Row],[A]:[N]])","v":0}]
[null,null,{"$f":"IFERROR(VLOOKUP(DecembraApmeklētība[[#This Row],[Audzēkņa ID]],AudzēkņuSaraksts[],18,FALSE),\"\")","v":""},{"$nulls":31},{"$f":"COUNTIF(DecembraApmeklētība[[#This Row],[1]:[31]],Kods1)","v":0},{"$f":"COUNTIF(DecembraApmeklētība[[#This Row],[1]:[31]],Kods2)","v":0},{"$f":"COUNTIF(DecembraApmeklētība[[#This Row],[1]:[31]],Kods3)","v":0},{"$f":"COUNTIF(DecembraApmeklētība[[#This Row],[1]:[31]],Kods4)","v":0},{"$f":"SUM(DecembraApmeklētība[[#This Row],[A]:[N]])","v":0}]
[null,null,{"$f":"IFERROR(VLOOKUP(DecembraApmeklētība[[#This Row],[Audzēkņa ID]],AudzēkņuSaraksts[],18,FALSE),\"\")","v":""},{"$nulls":31},{"$f":"COUNTIF(DecembraApmeklētība[[#This Row],[1]:[31]],Kods1)","v":0},{"$f":"COUNTIF(DecembraApmeklētība[[#This Row],[1]:[31]],Kods2)","v":0},{"$f":"COUNTIF(DecembraApmeklētība[[#This Row],[1]:[31]],Kods3)","v":0},{"$f":"COUNTIF(DecembraApmeklētība[[#This Row],[1]:[31]],Kods4)","v":0},{"$f":"SUM(DecembraApmeklētība[[#This Row],[A]:[N]])","v":0}]
[null,null,"Kavētās dienas kopā",{"$f":"COUNTIF(DecembraApmeklētība[1],\"N\")+COUNTIF(DecembraApmeklētība[1],\"A\")","v":0},{"$f":"COUNTIF(DecembraApmeklētība[2],\"N\")+COUNTIF(DecembraApmeklētība[2],\"A\")","v":0},{"$f":"COUNTIF(DecembraApmeklētība[3],\"N\")+COUNTIF(DecembraApmeklētība[3],\"A\")","v":0},{"$f":"COUNTIF(DecembraApmeklētība[4],\"N\")+COUNTIF(DecembraApmeklētība[4],\"A\")","v":0},{"$f":"COUNTIF(DecembraApmeklētība[5],\"N\")+COUNTIF(DecembraApmeklētība[5],\"A\")","v":0},{"$f":"COUNTIF(DecembraApmeklētība[6],\"N\")+COUNTIF(DecembraApmeklētība[6],\"A\")","v":0},{"$f":"COUNTIF(DecembraApmeklētība[7],\"N\")+COUNTIF(DecembraApmeklētība[7],\"A\")","v":0},{"$f":"COUNTIF(DecembraApmeklētība[8],\"N\")+COUNTIF(DecembraApmeklētība[8],\"A\")","v":0},{"$f":"COUNTIF(DecembraApmeklētība[9],\"N\")+COUNTIF(DecembraApmeklētība[9],\"A\")","v":0},{"$f":"COUNTIF(DecembraApmeklētība[10],\"N\")+COUNTIF(DecembraApmeklētība[10],\"A\")","v":0},{"$f":"COUNTIF(DecembraApmeklētība[11],\"N\")+COUNTIF(DecembraApmeklētība[11],\"A\")","v":0},{"$f":"COUNTIF(DecembraApmeklētība[12],\"N\")+COUNTIF(DecembraApmeklētība[12],\"A\")","v":0},{"$f":"COUNTIF(DecembraApmeklētība[13],\"N\")+COUNTIF(DecembraApmeklētība[13],\"A\")","v":0},{"$f":"COUNTIF(DecembraApmeklētība[14],\"N\")+COUNTIF(DecembraApmeklētība[14],\"A\")","v":0},{"$f":"COUNTIF(DecembraApmeklētība[15],\"N\")+COUNTIF(DecembraApmeklētība[15],\"A\")","v":0},{"$f":"COUNTIF(DecembraApmeklētība[16],\"N\")+COUNTIF(DecembraApmeklētība[16],\"A\")","v":0},{"$f":"COUNTIF(DecembraApmeklētība[17],\"N\")+COUNTIF(DecembraApmeklētība[17],\"A\")","v":0},{"$f":"COUNTIF(DecembraApmeklētība[18],\"N\")+COUNTIF(DecembraApmeklētība[18],\"A\")","v":0},{"$f":"COUNTIF(DecembraApmeklētība[19],\"N\")+COUNTIF(DecembraApmeklētība[19],\"A\")","v":0},{"$f":"COUNTIF(DecembraApmeklētība[20],\"N\")+COUNTIF(DecembraApmeklētība[20],\"A\")","v":0},{"$f":"COUNTIF(DecembraApmeklētība[21],\"N\")+COUNTIF(DecembraApmeklētība[21],\"A\")","v":0},{"$f":"COUNTIF(DecembraApmeklētība[22],\"N\")+COUNTIF(DecembraApmeklētība[22],\"A\")","v":0},{"$f":"COUNTIF(DecembraApmeklētība[23],\"N\")+COUNTIF(DecembraApmeklētība[23],\"A\")","v":0},{"$f":"COUNTIF(DecembraApmeklētība[24],\"N\")+COUNTIF(DecembraApmeklētība[24],\"A\")","v":0},{"$f":"COUNTIF(DecembraApmeklētība[25],\"N\")+COUNTIF(DecembraApmeklētība[25],\"A\")","v":0},{"$f":"COUNTIF(DecembraApmeklētība[26],\"N\")+COUNTIF(DecembraApmeklētība[26],\"A\")","v":0},{"$f":"COUNTIF(DecembraApmeklētība[27],\"N\")+COUNTIF(DecembraApmeklētība[27],\"A\")","v":0},{"$f":"COUNTIF(DecembraApmeklētība[28],\"N\")+COUNTIF(DecembraApmeklētība[28],\"A\")","v":0},{"$f":"COUNTIF(DecembraApmeklētība[29],\"N\")+COUNTIF(DecembraApmeklētība[29],\"A\")","v":0},{"$f":"COUNTIF(DecembraApmeklētība[30],\"N\")+COUNTIF(DecembraApmeklētība[30],\"A\")","v":0},{"$f":"COUNTIF(DecembraApmeklētība[31],\"N\")+COUNTIF(DecembraApmeklētība[31],\"A\")","v":0},{"$f":"SUBTOTAL(109,DecembraApmeklētība[K])","v":0},{"$f":"SUBTOTAL(109,DecembraApmeklētība[A])","v":0},{"$f":"SUBTOTAL(109,DecembraApmeklētība[N])","v":0},{"$f":"SUBTOTAL(109,DecembraApmeklētība[P])","v":0},{"$f":"SUBTOTAL(109,DecembraApmeklētība[Kavētās dienas])","v":0}]

{"sheet":"Janvāris","index":7,"n_rows":12,"n_cols":39,"rows_kept":12,"merged":[[4,34,4,38]]}
["AUDZĒKŅA APMEKLĒJUMA IERAKSTS",{"$nulls":36},"Mācību gada sākums:",{"$f":"KalendāraGads","v":2012}]
[]
[null,null,{"$f":"KrāsasPamatteksts","v":"KRĀSU KODS "},{"$f":"Kods1","v":"K"},{"$f":"Koda1Teksts","v":"Kavēts"},null,null,{"$f":"Kods2","v":"A"},{"$f":"Koda2Teksts","v":"Attaisnoti"},null,null,{"$f":"Kods3","v":"N"},{"$f":"Koda3Teksts","v":"Neattaisnoti"},null,null,{"$f":"Kods4","v":"P"},{"$f":"Koda4Teksts","v":"Klātbūtne"},null,null,{"$f":"Kods5","v":"N1"},{"$f":"Koda5Teksts","v":"Neviena skola"}]
[]
[null,{"$f":"DATE(KalendāraGads+1,1,1)","v":"2013-01-01"},null,{"$f":"TEXT(WEEKDAY(DATE(KalendāraGads+1,1,1),1),\"[$-426]aaa\")","v":"ot"},{"$f":"TEXT(WEEKDAY(DATE(KalendāraGads+1,1,2),1),\"[$-426]aaa\")","v":"tr"},{"$f":"TEXT(WEEKDAY(DATE(KalendāraGads+1,1,3),1),\"[$-426]aaa\")","v":"ce"},{"$f":"TEXT(WEEKDAY(DATE(KalendāraGads+1,1,4),1),\"[$-426]aaa\")","v":"pk"},{"$f":"TEXT(WEEKDAY(DATE(KalendāraGads+1,1,5),1),\"[$-426]aaa\")","v":"se"},{"$f":"TEXT(WEEKDAY(DATE(KalendāraGads+1,1,6),1),\"[$-426]aaa\")","v":"sv"},{"$f":"TEXT(WEEKDAY(DATE(KalendāraGads+1,1,7),1),\"[$-426]aaa\")","v":"pr"},{"$f":"TEXT(WEEKDAY(DATE(KalendāraGads+1,1,8),1),\"[$-426]aaa\")","v":"ot"},{"$f":"TEXT(WEEKDAY(DATE(KalendāraGads+1,1,9),1),\"[$-426]aaa\")","v":"tr"},{"$f":"TEXT(WEEKDAY(DATE(KalendāraGads+1,1,10),1),\"[$-426]aaa\")","v":"ce"},{"$f":"TEXT(WEEKDAY(DATE(KalendāraGads+1,1,11),1),\"[$-426]aaa\")","v":"pk"},{"$f":"TEXT(WEEKDAY(DATE(KalendāraGads+1,1,12),1),\"[$-426]aaa\")","v":"se"},{"$f":"TEXT(WEEKDAY(DATE(KalendāraGads+1,1,13),1),\"[$-426]aaa\")","v":"sv"},{"$f":"TEXT(WEEKDAY(DATE(KalendāraGads+1,1,14),1),\"[$-426]aaa\")","v":"pr"},{"$f":"TEXT(WEEKDAY(DATE(KalendāraGads+1,1,15),1),\"[$-426]aaa\")","v":"ot"},{"$f":"TEXT(WEEKDAY(DATE(KalendāraGads+1,1,16),1),\"[$-426]aaa\")","v":"tr"},{"$f":"TEXT(WEEKDAY(DATE(KalendāraGads+1,1,17),1),\"[$-426]aaa\")","v":"ce"},{"$f":"TEXT(WEEKDAY(DATE(KalendāraGads+1,1,18),1),\"[$-426]aaa\")","v":"pk"},{"$f":"TEXT(WEEKDAY(DATE(KalendāraGads+1,1,19),1),\"[$-426]aaa\")","v":"se"},{"$f":"TEXT(WEEKDAY(DATE(KalendāraGads+1,1,20),1),\"[$-426]aaa\")","v":"sv"},{"$f":"TEXT(WEEKDAY(DATE(KalendāraGads+1,1,21),1),\"[$-426]aaa\")","v":"pr"},{"$f":"TEXT(WEEKDAY(DATE(KalendāraGads+1,1,22),1),\"[$-426]aaa\")","v":"ot"},{"$f":"TEXT(WEEKDAY(DATE(KalendāraGads+1,1,23),1),\"[$-426]aaa\")","v":"tr"},{"$f":"TEXT(WEEKDAY(DATE(KalendāraGads+1,1,24),1),\"[$-426]aaa\")","v":"ce"},{"$f":"TEXT(WEEKDAY(DATE(KalendāraGads+1,1,25),1),\"[$-426]aaa\")","v":"pk"},{"$f":"TEXT(WEEKDAY(DATE(KalendāraGads+1,1,26),1),\"[$-426]aaa\")","v":"se"},{"$f":"TEXT(WEEKDAY(DATE(KalendāraGads+1,1,27),1),\"[$-426]aaa\")","v":"sv"},{"$f":"TEXT(WEEKDAY(DATE(KalendāraGads+1,1,28),1),\"[$-426]aaa\")","v":"pr"},{"$f":"TEXT(WEEKDAY(DATE(KalendāraGads+1,1,29),1),\"[$-426]aaa\")","v":"ot"},{"$f":"TEXT(WEEKDAY(DATE(KalendāraGads+1,1,30),1),\"[$-426]aaa\")","v":"tr"},{"$f":"TEXT(WEEKDAY(DATE(KalendāraGads+1,1,31),1),\"[$-426]aaa\")","v":"ce"},"Kopā"]
[null,"Audzēkņa ID","Audzēkņa vārds","1","2","3","4","5","6","7","8","9","10","11","12","13","14","15","16","17","18","19","20","21","22","23","24","25","26","27","28","29","30","31","K","A","N","P","Kavētās dienas"]
[null,null,{"$f":"IFERROR(VLOOKUP(JanvāraApmeklētība[[#This Row],[Audzēkņa ID]],AudzēkņuSaraksts[],18,FALSE),\"\")","v":""},{"$nulls":31},{"$f":"COUNTIF(JanvāraApmeklētība[[#This Row],[1]:[31]],Kods1)","v":0},{"$f":"COUNTIF(JanvāraApmeklētība[[#This Row],[1]:[31]],Kods2)","v":0},{"$f":"COUNTIF(JanvāraApmeklētība[[#This Row],[1]:[31]],Kods3)","v":0},{"$f":"COUNTIF(JanvāraApmeklētība[[#This Row],[1]:[31]],Kods4)","v":0},{"$f":"SUM(JanvāraApmeklētība[[#This Row],[A]:[N]])","v":0}]
[null,null,{"$f":"IFERROR(VLOOKUP(JanvāraApmeklētība[[#This Row],[Audzēkņa ID]],AudzēkņuSaraksts[],18,FALSE),\"\")","v":""},{"$nulls":31},{"$f":"COUNTIF(JanvāraApmeklētība[[#This Row],[1]:[31]],Kods1)","v":0},{"$f":"COUNTIF(JanvāraApmeklētība[[#This Row],[1]:[31]],Kods2)","v":0},{"$f":"COUNTIF(JanvāraApmeklētība[[#This Row],[1]:[31]],Kods3)","v":0},{"$f":"COUNTIF(JanvāraApmeklētība[[#This Row],[1]:[31]],Kods4)","v":0},{"$f":"SUM(JanvāraApmeklētība[[#This Row],[A]:[N]])","v":0}]
[null,null,{"$f":"IFERROR(VLOOKUP(JanvāraApmeklētība[[#This Row],[Audzēkņa ID]],AudzēkņuSaraksts[],18,FALSE),\"\")","v":""},{"$nulls":31},{"$f":"COUNTIF(JanvāraApmeklētība[[#This Row],[1]:[31]],Kods1)","v":0},{"$f":"COUNTIF(JanvāraApmeklētība[[#This Row],[1]:[31]],Kods2)","v":0},{"$f":"COUNTIF(JanvāraApmeklētība[[#This Row],[1]:[31]],Kods3)","v":0},{"$f":"COUNTIF(JanvāraApmeklētība[[#This Row],[1]:[31]],Kods4)","v":0},{"$f":"SUM(JanvāraApmeklētība[[#This Row],[A]:[N]])","v":0}]
[null,null,{"$f":"IFERROR(VLOOKUP(JanvāraApmeklētība[[#This Row],[Audzēkņa ID]],AudzēkņuSaraksts[],18,FALSE),\"\")","v":""},{"$nulls":31},{"$f":"COUNTIF(JanvāraApmeklētība[[#This Row],[1]:[31]],Kods1)","v":0},{"$f":"COUNTIF(JanvāraApmeklētība[[#This Row],[1]:[31]],Kods2)","v":0},{"$f":"COUNTIF(JanvāraApmeklētība[[#This Row],[1]:[31]],Kods3)","v":0},{"$f":"COUNTIF(JanvāraApmeklētība[[#This Row],[1]:[31]],Kods4)","v":0},{"$f":"SUM(JanvāraApmeklētība[[#This Row],[A]:[N]])","v":0}]
[null,null,{"$f":"IFERROR(VLOOKUP(JanvāraApmeklētība[[#This Row],[Audzēkņa ID]],AudzēkņuSaraksts[],18,FALSE),\"\")","v":""},{"$nulls":31},{"$f":"COUNTIF(JanvāraApmeklētība[[#This Row],[1]:[31]],Kods1)","v":0},{"$f":"COUNTIF(JanvāraApmeklētība[[#This Row],[1]:[31]],Kods2)","v":0},{"$f":"COUNTIF(JanvāraApmeklētība[[#This Row],[1]:[31]],Kods3)","v":0},{"$f":"COUNTIF(JanvāraApmeklētība[[#This Row],[1]:[31]],Kods4)","v":0},{"$f":"SUM(JanvāraApmeklētība[[#This Row],[A]:[N]])","v":0}]
[null,null,"Kavētās dienas kopā",{"$f":"COUNTIF(JanvāraApmeklētība[1],\"N\")+COUNTIF(JanvāraApmeklētība[1],\"A\")","v":0},{"$f":"COUNTIF(JanvāraApmeklētība[2],\"N\")+COUNTIF(JanvāraApmeklētība[2],\"A\")","v":0},{"$f":"COUNTIF(JanvāraApmeklētība[3],\"N\")+COUNTIF(JanvāraApmeklētība[3],\"A\")","v":0},{"$f":"COUNTIF(JanvāraApmeklētība[4],\"N\")+COUNTIF(JanvāraApmeklētība[4],\"A\")","v":0},{"$f":"COUNTIF(JanvāraApmeklētība[5],\"N\")+COUNTIF(JanvāraApmeklētība[5],\"A\")","v":0},{"$f":"COUNTIF(JanvāraApmeklētība[6],\"N\")+COUNTIF(JanvāraApmeklētība[6],\"A\")","v":0},{"$f":"COUNTIF(JanvāraApmeklētība[7],\"N\")+COUNTIF(JanvāraApmeklētība[7],\"A\")","v":0},{"$f":"COUNTIF(JanvāraApmeklētība[8],\"N\")+COUNTIF(JanvāraApmeklētība[8],\"A\")","v":0},{"$f":"COUNTIF(JanvāraApmeklētība[9],\"N\")+COUNTIF(JanvāraApmeklētība[9],\"A\")","v":0},{"$f":"COUNTIF(JanvāraApmeklētība[10],\"N\")+COUNTIF(JanvāraApmeklētība[10],\"A\")","v":0},{"$f":"COUNTIF(JanvāraApmeklētība[11],\"N\")+COUNTIF(JanvāraApmeklētība[11],\"A\")","v":0},{"$f":"COUNTIF(JanvāraApmeklētība[12],\"N\")+COUNTIF(JanvāraApmeklētība[12],\"A\")","v":0},{"$f":"COUNTIF(JanvāraApmeklētība[13],\"N\")+COUNTIF(JanvāraApmeklētība[13],\"A\")","v":0},{"$f":"COUNTIF(JanvāraApmeklētība[14],\"N\")+COUNTIF(JanvāraApmeklētība[14],\"A\")","v":0},{"$f":"COUNTIF(JanvāraApmeklētība[15],\"N\")+COUNTIF(JanvāraApmeklētība[15],\"A\")","v":0},{"$f":"COUNTIF(JanvāraApmeklētība[16],\"N\")+COUNTIF(JanvāraApmeklētība[16],\"A\")","v":0},{"$f":"COUNTIF(JanvāraApmeklētība[17],\"N\")+COUNTIF(JanvāraApmeklētība[17],\"A\")","v":0},{"$f":"COUNTIF(JanvāraApmeklētība[18],\"N\")+COUNTIF(JanvāraApmeklētība[18],\"A\")","v":0},{"$f":"COUNTIF(JanvāraApmeklētība[19],\"N\")+COUNTIF(JanvāraApmeklētība[19],\"A\")","v":0},{"$f":"COUNTIF(JanvāraApmeklētība[20],\"N\")+COUNTIF(JanvāraApmeklētība[20],\"A\")","v":0},{"$f":"COUNTIF(JanvāraApmeklētība[21],\"N\")+COUNTIF(JanvāraApmeklētība[21],\"A\")","v":0},{"$f":"COUNTIF(JanvāraApmeklētība[22],\"N\")+COUNTIF(JanvāraApmeklētība[22],\"A\")","v":0},{"$f":"COUNTIF(JanvāraApmeklētība[23],\"N\")+COUNTIF(JanvāraApmeklētība[23],\"A\")","v":0},{"$f":"COUNTIF(JanvāraApmeklētība[24],\"N\")+COUNTIF(JanvāraApmeklētība[24],\"A\")","v":0},{"$f":"COUNTIF(JanvāraApmeklētība[25],\"N\")+COUNTIF(JanvāraApmeklētība[25],\"A\")","v":0},{"$f":"COUNTIF(JanvāraApmeklētība[26],\"N\")+COUNTIF(JanvāraApmeklētība[26],\"A\")","v":0},{"$f":"COUNTIF(JanvāraApmeklētība[27],\"N\")+COUNTIF(JanvāraApmeklētība[27],\"A\")","v":0},{"$f":"COUNTIF(JanvāraApmeklētība[28],\"N\")+COUNTIF(JanvāraApmeklētība[28],\"A\")","v":0},{"$f":"COUNTIF(JanvāraApmeklētība[29],\"N\")+COUNTIF(JanvāraApmeklētība[29],\"A\")","v":0},{"$f":"COUNTIF(JanvāraApmeklētība[30],\"N\")+COUNTIF(JanvāraApmeklētība[30],\"A\")","v":0},{"$f":"COUNTIF(JanvāraApmeklētība[31],\"N\")+COUNTIF(JanvāraApmeklētība[31],\"A\")","v":0},{"$f":"SUBTOTAL(109,JanvāraApmeklētība[K])","v":0},{"$f":"SUBTOTAL(109,JanvāraApmeklētība[A])","v":0},{"$f":"SUBTOTAL(109,JanvāraApmeklētība[N])","v":0},{"$f":"SUBTOTAL(109,JanvāraApmeklētība[P])","v":0},{"$f":"SUBTOTAL(109,JanvāraApmeklētība[Kavētās dienas])","v":0}]

{"sheet":"Februāris","index":8,"n_rows":12,"n_cols":39,"rows_kept":12,"merged":[[4,34,4,38]]}
["AUDZĒKŅA APMEKLĒJUMA IERAKSTS",{"$nulls":36},"Mācību gada sākums:",{"$f":"KalendāraGads","v":2012}]
[]
[null,null,{"$f":"KrāsasPamatteksts","v":"KRĀSU KODS "},{"$f":"Kods1","v":"K"},{"$f":"Koda1Teksts","v":"Kavēts"},null,null,{"$f":"Kods2","v":"A"},{"$f":"Koda2Teksts","v":"Attaisnoti"},null,null,{"$f":"Kods3","v":"N"},{"$f":"Koda3Teksts","v":"Neattaisnoti"},null,null,{"$f":"Kods4","v":"P"},{"$f":"Koda4Teksts","v":"Klātbūtne"},null,null,{"$f":"Kods5","v":"N1"},{"$f":"Koda5Teksts","v":"Neviena skola"}]
[]
[null,{"$f":"DATE(KalendāraGads+1,2,1)","v":"2013-02-01"},null,{"$f":"TEXT(WEEKDAY(DATE(KalendāraGads+1,2,1),1),\"[$-426]aaa\")","v":"pk"},{"$f":"TEXT(WEEKDAY(DATE(KalendāraGads+1,2,2),1),\"[$-426]aaa\")","v":"se"},{"$f":"TEXT(WEEKDAY(DATE(KalendāraGads+1,2,3),1),\"[$-426]aaa\")","v":"sv"},{"$f":"TEXT(WEEKDAY(DATE(KalendāraGads+1,2,4),1),\"[$-426]aaa\")","v":"pr"},{"$f":"TEXT(WEEKDAY(DATE(KalendāraGads+1,2,5),1),\"[$-426]aaa\")","v":"ot"},{"$f":"TEXT(WEEKDAY(DATE(KalendāraGads+1,2,6),1),\"[$-426]aaa\")","v":"tr"},{"$f":"TEXT(WEEKDAY(DATE(KalendāraGads+1,2,7),1),\"[$-426]aaa\")","v":"ce"},{"$f":"TEXT(WEEKDAY(DATE(KalendāraGads+1,2,8),1),\"[$-426]aaa\")","v":"pk"},{"$f":"TEXT(WEEKDAY(DATE(KalendāraGads+1,2,9),1),\"[$-426]aaa\")","v":"se"},{"$f":"TEXT(WEEKDAY(DATE(KalendāraGads+1,2,10),1),\"[$-426]aaa\")","v":"sv"},{"$f":"TEXT(WEEKDAY(DATE(KalendāraGads+1,2,11),1),\"[$-426]aaa\")","v":"pr"},{"$f":"TEXT(WEEKDAY(DATE(KalendāraGads+1,2,12),1),\"[$-426]aaa\")","v":"ot"},{"$f":"TEXT(WEEKDAY(DATE(KalendāraGads+1,2,13),1),\"[$-426]aaa\")","v":"tr"},{"$f":"TEXT(WEEKDAY(DATE(KalendāraGads+1,2,14),1),\"[$-426]aaa\")","v":"ce"},{"$f":"TEXT(WEEKDAY(DATE(KalendāraGads+1,2,15),1),\"[$-426]aaa\")","v":"pk"},{"$f":"TEXT(WEEKDAY(DATE(KalendāraGads+1,2,16),1),\"[$-426]aaa\")","v":"se"},{"$f":"TEXT(WEEKDAY(DATE(KalendāraGads+1,2,17),1),\"[$-426]aaa\")","v":"sv"},{"$f":"TEXT(WEEKDAY(DATE(KalendāraGads+1,2,18),1),\"[$-426]aaa\")","v":"pr"},{"$f":"TEXT(WEEKDAY(DATE(KalendāraGads+1,2,19),1),\"[$-426]aaa\")","v":"ot"},{"$f":"TEXT(WEEKDAY(DATE(KalendāraGads+1,2,20),1),\"[$-426]aaa\")","v":"tr"},{"$f":"TEXT(WEEKDAY(DATE(KalendāraGads+1,2,21),1),\"[$-426]aaa\")","v":"ce"},{"$f":"TEXT(WEEKDAY(DATE(KalendāraGads+1,2,22),1),\"[$-426]aaa\")","v":"pk"},{"$f":"TEXT(WEEKDAY(DATE(KalendāraGads+1,2,23),1),\"[$-426]aaa\")","v":"se"},{"$f":"TEXT(WEEKDAY(DATE(KalendāraGads+1,2,24),1),\"[$-426]aaa\")","v":"sv"},{"$f":"TEXT(WEEKDAY(DATE(KalendāraGads+1,2,25),1),\"[$-426]aaa\")","v":"pr"},{"$f":"TEXT(WEEKDAY(DATE(KalendāraGads+1,2,26),1),\"[$-426]aaa\")","v":"ot"},{"$f":"TEXT(WEEKDAY(DATE(KalendāraGads+1,2,27),1),\"[$-426]aaa\")","v":"tr"},{"$f":"TEXT(WEEKDAY(DATE(KalendāraGads+1,2,28),1),\"[$-426]aaa\")","v":"ce"},{"$f":"TEXT(WEEKDAY(DATE(KalendāraGads+1,2,29),1),\"aaa\")","v":"Fri"},null,null,"Kopā"]
[null,"Audzēkņa ID","Audzēkņa vārds","1","2","3","4","5","6","7","8","9","10","11","12","13","14","15","16","17","18","19","20","21","22","23","24","25","26","27","28","29","30","31","K","A","N","P","Kavētās dienas"]
[null,null,{"$f":"IFERROR(VLOOKUP(FebruāraApmeklētība[[#This Row],[Audzēkņa ID]],AudzēkņuSaraksts[],18,FALSE),\"\")","v":""},{"$nulls":31},{"$f":"COUNTIF(FebruāraApmeklētība[[#This Row],[1]:[31]],Kods1)","v":0},{"$f":"COUNTIF(FebruāraApmeklētība[[#This Row],[1]:[31]],Kods2)","v":0},{"$f":"COUNTIF(FebruāraApmeklētība[[#This Row],[1]:[31]],Kods3)","v":0},{"$f":"COUNTIF(FebruāraApmeklētība[[#This Row],[1]:[31]],Kods4)","v":0},{"$f":"SUM(FebruāraApmeklētība[[#This Row],[A]:[N]])","v":0}]
[null,null,{"$f":"IFERROR(VLOOKUP(FebruāraApmeklētība[[#This Row],[Audzēkņa ID]],AudzēkņuSaraksts[],18,FALSE),\"\")","v":""},{"$nulls":31},{"$f":"COUNTIF(FebruāraApmeklētība[[#This Row],[1]:[31]],Kods1)","v":0},{"$f":"COUNTIF(FebruāraApmeklētība[[#This Row],[1]:[31]],Kods2)","v":0},{"$f":"COUNTIF(FebruāraApmeklētība[[#This Row],[1]:[31]],Kods3)","v":0},{"$f":"COUNTIF(FebruāraApmeklētība[[#This Row],[1]:[31]],Kods4)","v":0},{"$f":"SUM(FebruāraApmeklētība[[#This Row],[A]:[N]])","v":0}]
[null,null,{"$f":"IFERROR(VLOOKUP(FebruāraApmeklētība[[#This Row],[Audzēkņa ID]],AudzēkņuSaraksts[],18,FALSE),\"\")","v":""},{"$nulls":31},{"$f":"COUNTIF(FebruāraApmeklētība[[#This Row],[1]:[31]],Kods1)","v":0},{"$f":"COUNTIF(FebruāraApmeklētība[[#This Row],[1]:[31]],Kods2)","v":0},{"$f":"COUNTIF(FebruāraApmeklētība[[#This Row],[1]:[31]],Kods3)","v":0},{"$f":"COUNTIF(FebruāraApmeklētība[[#This Row],[1]:[31]],Kods4)","v":0},{"$f":"SUM(FebruāraApmeklētība[[#This Row],[A]:[N]])","v":0}]
[null,null,{"$f":"IFERROR(VLOOKUP(FebruāraApmeklētība[[#This Row],[Audzēkņa ID]],AudzēkņuSaraksts[],18,FALSE),\"\")","v":""},{"$nulls":31},{"$f":"COUNTIF(FebruāraApmeklētība[[#This Row],[1]:[31]],Kods1)","v":0},{"$f":"COUNTIF(FebruāraApmeklētība[[#This Row],[1]:[31]],Kods2)","v":0},{"$f":"COUNTIF(FebruāraApmeklētība[[#This Row],[1]:[31]],Kods3)","v":0},{"$f":"COUNTIF(FebruāraApmeklētība[[#This Row],[1]:[31]],Kods4)","v":0},{"$f":"SUM(FebruāraApmeklētība[[#This Row],[A]:[N]])","v":0}]
[null,null,{"$f":"IFERROR(VLOOKUP(FebruāraApmeklētība[[#This Row],[Audzēkņa ID]],AudzēkņuSaraksts[],18,FALSE),\"\")","v":""},{"$nulls":31},{"$f":"COUNTIF(FebruāraApmeklētība[[#This Row],[1]:[31]],Kods1)","v":0},{"$f":"COUNTIF(FebruāraApmeklētība[[#This Row],[1]:[31]],Kods2)","v":0},{"$f":"COUNTIF(FebruāraApmeklētība[[#This Row],[1]:[31]],Kods3)","v":0},{"$f":"COUNTIF(FebruāraApmeklētība[[#This Row],[1]:[31]],Kods4)","v":0},{"$f":"SUM(FebruāraApmeklētība[[#This Row],[A]:[N]])","v":0}]
[null,null,"Kavētās dienas kopā",{"$f":"COUNTIF(FebruāraApmeklētība[1],\"N\")+COUNTIF(FebruāraApmeklētība[1],\"A\")","v":0},{"$f":"COUNTIF(FebruāraApmeklētība[2],\"N\")+COUNTIF(FebruāraApmeklētība[2],\"A\")","v":0},{"$f":"COUNTIF(FebruāraApmeklētība[3],\"N\")+COUNTIF(FebruāraApmeklētība[3],\"A\")","v":0},{"$f":"COUNTIF(FebruāraApmeklētība[4],\"N\")+COUNTIF(FebruāraApmeklētība[4],\"A\")","v":0},{"$f":"COUNTIF(FebruāraApmeklētība[5],\"N\")+COUNTIF(FebruāraApmeklētība[5],\"A\")","v":0},{"$f":"COUNTIF(FebruāraApmeklētība[6],\"N\")+COUNTIF(FebruāraApmeklētība[6],\"A\")","v":0},{"$f":"COUNTIF(FebruāraApmeklētība[7],\"N\")+COUNTIF(FebruāraApmeklētība[7],\"A\")","v":0},{"$f":"COUNTIF(FebruāraApmeklētība[8],\"N\")+COUNTIF(FebruāraApmeklētība[8],\"A\")","v":0},{"$f":"COUNTIF(FebruāraApmeklētība[9],\"N\")+COUNTIF(FebruāraApmeklētība[9],\"A\")","v":0},{"$f":"COUNTIF(FebruāraApmeklētība[10],\"N\")+COUNTIF(FebruāraApmeklētība[10],\"A\")","v":0},{"$f":"COUNTIF(FebruāraApmeklētība[11],\"N\")+COUNTIF(FebruāraApmeklētība[11],\"A\")","v":0},{"$f":"COUNTIF(FebruāraApmeklētība[12],\"N\")+COUNTIF(FebruāraApmeklētība[12],\"A\")","v":0},{"$f":"COUNTIF(FebruāraApmeklētība[13],\"N\")+COUNTIF(FebruāraApmeklētība[13],\"A\")","v":0},{"$f":"COUNTIF(FebruāraApmeklētība[14],\"N\")+COUNTIF(FebruāraApmeklētība[14],\"A\")","v":0},{"$f":"COUNTIF(FebruāraApmeklētība[15],\"N\")+COUNTIF(FebruāraApmeklētība[15],\"A\")","v":0},{"$f":"COUNTIF(FebruāraApmeklētība[16],\"N\")+COUNTIF(FebruāraApmeklētība[16],\"A\")","v":0},{"$f":"COUNTIF(FebruāraApmeklētība[17],\"N\")+COUNTIF(FebruāraApmeklētība[17],\"A\")","v":0},{"$f":"COUNTIF(FebruāraApmeklētība[18],\"N\")+COUNTIF(FebruāraApmeklētība[18],\"A\")","v":0},{"$f":"COUNTIF(FebruāraApmeklētība[19],\"N\")+COUNTIF(FebruāraApmeklētība[19],\"A\")","v":0},{"$f":"COUNTIF(FebruāraApmeklētība[20],\"N\")+COUNTIF(FebruāraApmeklētība[20],\"A\")","v":0},{"$f":"COUNTIF(FebruāraApmeklētība[21],\"N\")+COUNTIF(FebruāraApmeklētība[21],\"A\")","v":0},{"$f":"COUNTIF(FebruāraApmeklētība[22],\"N\")+COUNTIF(FebruāraApmeklētība[22],\"A\")","v":0},{"$f":"COUNTIF(FebruāraApmeklētība[23],\"N\")+COUNTIF(FebruāraApmeklētība[23],\"A\")","v":0},{"$f":"COUNTIF(FebruāraApmeklētība[24],\"N\")+COUNTIF(FebruāraApmeklētība[24],\"A\")","v":0},{"$f":"COUNTIF(FebruāraApmeklētība[25],\"N\")+COUNTIF(FebruāraApmeklētība[25],\"A\")","v":0},{"$f":"COUNTIF(FebruāraApmeklētība[26],\"N\")+COUNTIF(FebruāraApmeklētība[26],\"A\")","v":0},{"$f":"COUNTIF(FebruāraApmeklētība[27],\"N\")+COUNTIF(FebruāraApmeklētība[27],\"A\")","v":0},{"$f":"COUNTIF(FebruāraApmeklētība[28],\"N\")+COUNTIF(FebruāraApmeklētība[28],\"A\")","v":0},{"$f":"COUNTIF(FebruāraApmeklētība[29],\"N\")+COUNTIF(FebruāraApmeklētība[29],\"A\")","v":0},{"$f":"COUNTIF(FebruāraApmeklētība[30],\"N\")+COUNTIF(FebruāraApmeklētība[30],\"A\")","v":0},{"$f":"COUNTIF(FebruāraApmeklētība[31],\"N\")+COUNTIF(FebruāraApmeklētība[31],\"A\")","v":0},{"$f":"SUBTOTAL(109,FebruāraApmeklētība[K])","v":0},{"$f":"SUBTOTAL(109,FebruāraApmeklētība[A])","v":0},{"$f":"SUBTOTAL(109,FebruāraApmeklētība[N])","v":0},{"$f":"SUBTOTAL(109,FebruāraApmeklētība[P])","v":0},{"$f":"SUBTOTAL(109,FebruāraApmeklētība[Kavētās dienas])","v":0}]

{"sheet":"Marts","index":9,"n_rows":12,"n_cols":39,"rows_kept":12,"merged":[[4,34,4,38]]}
["AUDZĒKŅA APMEKLĒJUMA IERAKSTS",{"$nulls":36},"Mācību gada sākums:",{"$f":"KalendāraGads","v":2012}]
[]
[null,null,{"$f":"KrāsasPamatteksts","v":"KRĀSU KODS "},{"$f":"Kods1","v":"K"},{"$f":"Koda1Teksts","v":"Kavēts"},null,null,{"$f":"Kods2","v":"A"},{"$f":"Koda2Teksts","v":"Attaisnoti"},null,null,{"$f":"Kods3","v":"N"},{"$f":"Koda3Teksts","v":"Neattaisnoti"},null,null,{"$f":"Kods4","v":"P"},{"$f":"Koda4Teksts","v":"Klātbūtne"},null,null,{"$f":"Kods5","v":"N1"},{"$f":"Koda5Teksts","v":"Neviena skola"}]
[]
[null,{"$f":"DATE(KalendāraGads+1,3,1)","v":"2013-03-01"},null,{"$f":"TEXT(WEEKDAY(DATE(KalendāraGads+1,3,1),1),\"[$-426]aaa\")","v":"pk"},{"$f":"TEXT(WEEKDAY(DATE(KalendāraGads+1,3,2),1),\"[$-426]aaa\")","v":"se"},{"$f":"TEXT(WEEKDAY(DATE(KalendāraGads+1,3,3),1),\"[$-426]aaa\")","v":"sv"},{"$f":"TEXT(WEEKDAY(DATE(KalendāraGads+1,3,4),1),\"[$-426]aaa\")","v":"pr"},{"$f":"TEXT(WEEKDAY(DATE(KalendāraGads+1,3,5),1),\"[$-426]aaa\")","v":"ot"},{"$f":"TEXT(WEEKDAY(DATE(KalendāraGads+1,3,6),1),\"[$-426]aaa\")","v":"tr"},{"$f":"TEXT(WEEKDAY(DATE(KalendāraGads+1,3,7),1),\"[$-426]aaa\")","v":"ce"},{"$f":"TEXT(WEEKDAY(DATE(KalendāraGads+1,3,8),1),\"[$-426]aaa\")","v":"pk"},{"$f":"TEXT(WEEKDAY(DATE(KalendāraGads+1,3,9),1),\"[$-426]aaa\")","v":"se"},{"$f":"TEXT(WEEKDAY(DATE(KalendāraGads+1,3,10),1),\"[$-426]aaa\")","v":"sv"},{"$f":"TEXT(WEEKDAY(DATE(KalendāraGads+1,3,11),1),\"[$-426]aaa\")","v":"pr"},{"$f":"TEXT(WEEKDAY(DATE(KalendāraGads+1,3,12),1),\"[$-426]aaa\")","v":"ot"},{"$f":"TEXT(WEEKDAY(DATE(KalendāraGads+1,3,13),1),\"[$-426]aaa\")","v":"tr"},{"$f":"TEXT(WEEKDAY(DATE(KalendāraGads+1,3,14),1),\"[$-426]aaa\")","v":"ce"},{"$f":"TEXT(WEEKDAY(DATE(KalendāraGads+1,3,15),1),\"[$-426]aaa\")","v":"pk"},{"$f":"TEXT(WEEKDAY(DATE(KalendāraGads+1,3,16),1),\"[$-426]aaa\")","v":"se"},{"$f":"TEXT(WEEKDAY(DATE(KalendāraGads+1,3,17),1),\"[$-426]aaa\")","v":"sv"},{"$f":"TEXT(WEEKDAY(DATE(KalendāraGads+1,3,18),1),\"[$-426]aaa\")","v":"pr"},{"$f":"TEXT(WEEKDAY(DATE(KalendāraGads+1,3,19),1),\"[$-426]aaa\")","v":"ot"},{"$f":"TEXT(WEEKDAY(DATE(KalendāraGads+1,3,20),1),\"[$-426]aaa\")","v":"tr"},{"$f":"TEXT(WEEKDAY(DATE(KalendāraGads+1,3,21),1),\"[$-426]aaa\")","v":"ce"},{"$f":"TEXT(WEEKDAY(DATE(KalendāraGads+1,3,22),1),\"[$-426]aaa\")","v":"pk"},{"$f":"TEXT(WEEKDAY(DATE(KalendāraGads+1,3,23),1),\"[$-426]aaa\")","v":"se"},{"$f":"TEXT(WEEKDAY(DATE(KalendāraGads+1,3,24),1),\"[$-426]aaa\")","v":"sv"},{"$f":"TEXT(WEEKDAY(DATE(KalendāraGads+1,3,25),1),\"[$-426]aaa\")","v":"pr"},{"$f":"TEXT(WEEKDAY(DATE(KalendāraGads+1,3,26),1),\"[$-426]aaa\")","v":"ot"},{"$f":"TEXT(WEEKDAY(DATE(KalendāraGads+1,3,27),1),\"[$-426]aaa\")","v":"tr"},{"$f":"TEXT(WEEKDAY(DATE(KalendāraGads+1,3,28),1),\"[$-426]aaa\")","v":"ce"},{"$f":"TEXT(WEEKDAY(DATE(KalendāraGads+1,3,29),1),\"[$-426]aaa\")","v":"pk"},{"$f":"TEXT(WEEKDAY(DATE(KalendāraGads+1,3,30),1),\"[$-426]aaa\")","v":"se"},{"$f":"TEXT(WEEKDAY(DATE(KalendāraGads+1,3,31),1),\"[$-426]aaa\")","v":"sv"},"Kopā"]
[null,"Audzēkņa ID","Audzēkņa vārds","1","2","3","4","5","6","7","8","9","10","11","12","13","14","15","16","17","18","19","20","21","22","23","24","25","26","27","28","29","30","31","K","A","N","P","Kavētās dienas"]
[null,null,{"$f":"IFERROR(VLOOKUP(MartaApmeklētība[[#This Row],[Audzēkņa ID]],AudzēkņuSaraksts[],18,FALSE),\"\")","v":""},{"$nulls":31},{"$f":"COUNTIF(MartaApmeklētība[[#This Row],[1]:[31]],Kods1)","v":0},{"$f":"COUNTIF(MartaApmeklētība[[#This Row],[1]:[31]],Kods2)","v":0},{"$f":"COUNTIF(MartaApmeklētība[[#This Row],[1]:[31]],Kods3)","v":0},{"$f":"COUNTIF(MartaApmeklētība[[#This Row],[1]:[31]],Kods4)","v":0},{"$f":"SUM(MartaApmeklētība[[#This Row],[A]:[N]])","v":0}]
[null,null,{"$f":"IFERROR(VLOOKUP(MartaApmeklētība[[#This Row],[Audzēkņa ID]],AudzēkņuSaraksts[],18,FALSE),\"\")","v":""},{"$nulls":31},{"$f":"COUNTIF(MartaApmeklētība[[#This Row],[1]:[31]],Kods1)","v":0},{"$f":"COUNTIF(MartaApmeklētība[[#This Row],[1]:[31]],Kods2)","v":0},{"$f":"COUNTIF(MartaApmeklētība[[#This Row],[1]:[31]],Kods3)","v":0},{"$f":"COUNTIF(MartaApmeklētība[[#This Row],[1]:[31]],Kods4)","v":0},{"$f":"SUM(MartaApmeklētība[[#This Row],[A]:[N]])","v":0}]
[null,null,{"$f":"IFERROR(VLOOKUP(MartaApmeklētība[[#This Row],[Audzēkņa ID]],AudzēkņuSaraksts[],18,FALSE),\"\")","v":""},{"$nulls":31},{"$f":"COUNTIF(MartaApmeklētība[[#This Row],[1]:[31]],Kods1)","v":0},{"$f":"COUNTIF(MartaApmeklētība[[#This Row],[1]:[31]],Kods2)","v":0},{"$f":"COUNTIF(MartaApmeklētība[[#This Row],[1]:[31]],Kods3)","v":0},{"$f":"COUNTIF(MartaApmeklētība[[#This Row],[1]:[31]],Kods4)","v":0},{"$f":"SUM(MartaApmeklētība[[#This Row],[A]:[N]])","v":0}]
[null,null,{"$f":"IFERROR(VLOOKUP(MartaApmeklētība[[#This Row],[Audzēkņa ID]],AudzēkņuSaraksts[],18,FALSE),\"\")","v":""},{"$nulls":31},{"$f":"COUNTIF(MartaApmeklētība[[#This Row],[1]:[31]],Kods1)","v":0},{"$f":"COUNTIF(MartaApmeklētība[[#This Row],[1]:[31]],Kods2)","v":0},{"$f":"COUNTIF(MartaApmeklētība[[#This Row],[1]:[31]],Kods3)","v":0},{"$f":"COUNTIF(MartaApmeklētība[[#This Row],[1]:[31]],Kods4)","v":0},{"$f":"SUM(MartaApmeklētība[[#This Row],[A]:[N]])","v":0}]
[null,null,{"$f":"IFERROR(VLOOKUP(MartaApmeklētība[[#This Row],[Audzēkņa ID]],AudzēkņuSaraksts[],18,FALSE),\"\")","v":""},{"$nulls":31},{"$f":"COUNTIF(MartaApmeklētība[[#This Row],[1]:[31]],Kods1)","v":0},{"$f":"COUNTIF(MartaApmeklētība[[#This Row],[1]:[31]],Kods2)","v":0},{"$f":"COUNTIF(MartaApmeklētība[[#This Row],[1]:[31]],Kods3)","v":0},{"$f":"COUNTIF(MartaApmeklētība[[#This Row],[1]:[31]],Kods4)","v":0},{"$f":"SUM(MartaApmeklētība[[#This Row],[A]:[N]])","v":0}]
[null,null,"Kavētās dienas kopā",{"$f":"COUNTIF(MartaApmeklētība[1],\"N\")+COUNTIF(MartaApmeklētība[1],\"A\")","v":0},{"$f":"COUNTIF(MartaApmeklētība[2],\"N\")+COUNTIF(MartaApmeklētība[2],\"A\")","v":0},{"$f":"COUNTIF(MartaApmeklētība[3],\"N\")+COUNTIF(MartaApmeklētība[3],\"A\")","v":0},{"$f":"COUNTIF(MartaApmeklētība[4],\"N\")+COUNTIF(MartaApmeklētība[4],\"A\")","v":0},{"$f":"COUNTIF(MartaApmeklētība[5],\"N\")+COUNTIF(MartaApmeklētība[5],\"A\")","v":0},{"$f":"COUNTIF(MartaApmeklētība[6],\"N\")+COUNTIF(MartaApmeklētība[6],\"A\")","v":0},{"$f":"COUNTIF(MartaApmeklētība[7],\"N\")+COUNTIF(MartaApmeklētība[7],\"A\")","v":0},{"$f":"COUNTIF(MartaApmeklētība[8],\"N\")+COUNTIF(MartaApmeklētība[8],\"A\")","v":0},{"$f":"COUNTIF(MartaApmeklētība[9],\"N\")+COUNTIF(MartaApmeklētība[9],\"A\")","v":0},{"$f":"COUNTIF(MartaApmeklētība[10],\"N\")+COUNTIF(MartaApmeklētība[10],\"A\")","v":0},{"$f":"COUNTIF(MartaApmeklētība[11],\"N\")+COUNTIF(MartaApmeklētība[11],\"A\")","v":0},{"$f":"COUNTIF(MartaApmeklētība[12],\"N\")+COUNTIF(MartaApmeklētība[12],\"A\")","v":0},{"$f":"COUNTIF(MartaApmeklētība[13],\"N\")+COUNTIF(MartaApmeklētība[13],\"A\")","v":0},{"$f":"COUNTIF(MartaApmeklētība[14],\"N\")+COUNTIF(MartaApmeklētība[14],\"A\")","v":0},{"$f":"COUNTIF(MartaApmeklētība[15],\"N\")+COUNTIF(MartaApmeklētība[15],\"A\")","v":0},{"$f":"COUNTIF(MartaApmeklētība[16],\"N\")+COUNTIF(MartaApmeklētība[16],\"A\")","v":0},{"$f":"COUNTIF(MartaApmeklētība[17],\"N\")+COUNTIF(MartaApmeklētība[17],\"A\")","v":0},{"$f":"COUNTIF(MartaApmeklētība[18],\"N\")+COUNTIF(MartaApmeklētība[18],\"A\")","v":0},{"$f":"COUNTIF(MartaApmeklētība[19],\"N\")+COUNTIF(MartaApmeklētība[19],\"A\")","v":0},{"$f":"COUNTIF(MartaApmeklētība[20],\"N\")+COUNTIF(MartaApmeklētība[20],\"A\")","v":0},{"$f":"COUNTIF(MartaApmeklētība[21],\"N\")+COUNTIF(MartaApmeklētība[21],\"A\")","v":0},{"$f":"COUNTIF(MartaApmeklētība[22],\"N\")+COUNTIF(MartaApmeklētība[22],\"A\")","v":0},{"$f":"COUNTIF(MartaApmeklētība[23],\"N\")+COUNTIF(MartaApmeklētība[23],\"A\")","v":0},{"$f":"COUNTIF(MartaApmeklētība[24],\"N\")+COUNTIF(MartaApmeklētība[24],\"A\")","v":0},{"$f":"COUNTIF(MartaApmeklētība[25],\"N\")+COUNTIF(MartaApmeklētība[25],\"A\")","v":0},{"$f":"COUNTIF(MartaApmeklētība[26],\"N\")+COUNTIF(MartaApmeklētība[26],\"A\")","v":0},{"$f":"COUNTIF(MartaApmeklētība[27],\"N\")+COUNTIF(MartaApmeklētība[27],\"A\")","v":0},{"$f":"COUNTIF(MartaApmeklētība[28],\"N\")+COUNTIF(MartaApmeklētība[28],\"A\")","v":0},{"$f":"COUNTIF(MartaApmeklētība[29],\"N\")+COUNTIF(MartaApmeklētība[29],\"A\")","v":0},{"$f":"COUNTIF(MartaApmeklētība[30],\"N\")+COUNTIF(MartaApmeklētība[30],\"A\")","v":0},{"$f":"COUNTIF(MartaApmeklētība[31],\"N\")+COUNTIF(MartaApmeklētība[31],\"A\")","v":0},{"$f":"SUBTOTAL(109,MartaApmeklētība[K])","v":0},{"$f":"SUBTOTAL(109,MartaApmeklētība[A])","v":0},{"$f":"SUBTOTAL(109,MartaApmeklētība[N])","v":0},{"$f":"SUBTOTAL(109,MartaApmeklētība[P])","v":0},{"$f":"SUBTOTAL(109,MartaApmeklētība[Kavētās dienas])","v":0}]

{"sheet":"Aprīlis","index":10,"n_rows":12,"n_cols":39,"rows_kept":12,"merged":[[4,34,4,38]]}
["AUDZĒKŅA APMEKLĒJUMA IERAKSTS",{"$nulls":36},"Mācību gada sākums:",{"$f":"KalendāraGads","v":2012}]
[]
[null,null,{"$f":"KrāsasPamatteksts","v":"KRĀSU KODS "},{"$f":"Kods1","v":"K"},{"$f":"Koda1Teksts","v":"Kavēts"},null,null,{"$f":"Kods2","v":"A"},{"$f":"Koda2Teksts","v":"Attaisnoti"},null,null,{"$f":"Kods3","v":"N"},{"$f":"Koda3Teksts","v":"Neattaisnoti"},null,null,{"$f":"Kods4","v":"P"},{"$f":"Koda4Teksts","v":"Klātbūtne"},null,null,{"$f":"Kods5","v":"N1"},{"$f":"Koda5Teksts","v":"Neviena skola"}]
[]
[null,{"$f":"DATE(KalendāraGads+1,4,1)","v":"2013-04-01"},null,{"$f":"TEXT(WEEKDAY(DATE(KalendāraGads+1,4,1),1),\"[$-426]aaa\")","v":"pr"},{"$f":"TEXT(WEEKDAY(DATE(KalendāraGads+1,4,2),1),\"[$-426]aaa\")","v":"ot"},{"$f":"TEXT(WEEKDAY(DATE(KalendāraGads+1,4,3),1),\"[$-426]aaa\")","v":"tr"},{"$f":"TEXT(WEEKDAY(DATE(KalendāraGads+1,4,4),1),\"[$-426]aaa\")","v":"ce"},{"$f":"TEXT(WEEKDAY(DATE(KalendāraGads+1,4,5),1),\"[$-426]aaa\")","v":"pk"},{"$f":"TEXT(WEEKDAY(DATE(KalendāraGads+1,4,6),1),\"[$-426]aaa\")","v":"se"},{"$f":"TEXT(WEEKDAY(DATE(KalendāraGads+1,4,7),1),\"[$-426]aaa\")","v":"sv"},{"$f":"TEXT(WEEKDAY(DATE(KalendāraGads+1,4,8),1),\"[$-426]aaa\")","v":"pr"},{"$f":"TEXT(WEEKDAY(DATE(KalendāraGads+1,4,9),1),\"[$-426]aaa\")","v":"ot"},{"$f":"TEXT(WEEKDAY(DATE(KalendāraGads+1,4,10),1),\"[$-426]aaa\")","v":"tr"},{"$f":"TEXT(WEEKDAY(DATE(KalendāraGads+1,4,11),1),\"[$-426]aaa\")","v":"ce"},{"$f":"TEXT(WEEKDAY(DATE(KalendāraGads+1,4,12),1),\"[$-426]aaa\")","v":"pk"},{"$f":"TEXT(WEEKDAY(DATE(KalendāraGads+1,4,13),1),\"[$-426]aaa\")","v":"se"},{"$f":"TEXT(WEEKDAY(DATE(KalendāraGads+1,4,14),1),\"[$-426]aaa\")","v":"sv"},{"$f":"TEXT(WEEKDAY(DATE(KalendāraGads+1,4,15),1),\"[$-426]aaa\")","v":"pr"},{"$f":"TEXT(WEEKDAY(DATE(KalendāraGads+1,4,16),1),\"[$-426]aaa\")","v":"ot"},{"$f":"TEXT(WEEKDAY(DATE(KalendāraGads+1,4,17),1),\"[$-426]aaa\")","v":"tr"},{"$f":"TEXT(WEEKDAY(DATE(KalendāraGads+1,4,18),1),\"[$-426]aaa\")","v":"ce"},{"$f":"TEXT(WEEKDAY(DATE(KalendāraGads+1,4,19),1),\"[$-426]aaa\")","v":"pk"},{"$f":"TEXT(WEEKDAY(DATE(KalendāraGads+1,4,20),1),\"[$-426]aaa\")","v":"se"},{"$f":"TEXT(WEEKDAY(DATE(KalendāraGads+1,4,21),1),\"[$-426]aaa\")","v":"sv"},{"$f":"TEXT(WEEKDAY(DATE(KalendāraGads+1,4,22),1),\"[$-426]aaa\")","v":"pr"},{"$f":"TEXT(WEEKDAY(DATE(KalendāraGads+1,4,23),1),\"[$-426]aaa\")","v":"ot"},{"$f":"TEXT(WEEKDAY(DATE(KalendāraGads+1,4,24),1),\"[$-426]aaa\")","v":"tr"},{"$f":"TEXT(WEEKDAY(DATE(KalendāraGads+1,4,25),1),\"[$-426]aaa\")","v":"ce"},{"$f":"TEXT(WEEKDAY(DATE(KalendāraGads+1,4,26),1),\"[$-426]aaa\")","v":"pk"},{"$f":"TEXT(WEEKDAY(DATE(KalendāraGads+1,4,27),1),\"[$-426]aaa\")","v":"se"},{"$f":"TEXT(WEEKDAY(DATE(KalendāraGads+1,4,28),1),\"[$-426]aaa\")","v":"sv"},{"$f":"TEXT(WEEKDAY(DATE(KalendāraGads+1,4,29),1),\"[$-426]aaa\")","v":"pr"},{"$f":"TEXT(WEEKDAY(DATE(KalendāraGads+1,4,30),1),\"[$-426]aaa\")","v":"ot"},null,"Kopā"]
[null,"Audzēkņa ID","Audzēkņa vārds","1","2","3","4","5","6","7","8","9","10","11","12","13","14","15","16","17","18","19","20","21","22","23","24","25","26","27","28","29","30"," ","K","A","N","P","Kavētās dienas"]
[null,null,{"$f":"IFERROR(VLOOKUP(AprīļaApmeklētība[[#This Row],[Audzēkņa ID]],AudzēkņuSaraksts[],18,FALSE),\"\")","v":""},{"$nulls":31},{"$f":"COUNTIF(AprīļaApmeklētība[[#This Row],[1]:[ ]],Kods1)","v":0},{"$f":"COUNTIF(AprīļaApmeklētība[[#This Row],[1]:[ ]],Kods2)","v":0},{"$f":"COUNTIF(AprīļaApmeklētība[[#This Row],[1]:[ ]],Kods3)","v":0},{"$f":"COUNTIF(AprīļaApmeklētība[[#This Row],[1]:[ ]],Kods4)","v":0},{"$f":"SUM(AprīļaApmeklētība[[#This Row],[A]:[N]])","v":0}]
[null,null,{"$f":"IFERROR(VLOOKUP(AprīļaApmeklētība[[#This Row],[Audzēkņa ID]],AudzēkņuSaraksts[],18,FALSE),\"\")","v":""},{"$nulls":31},{"$f":"COUNTIF(AprīļaApmeklētība[[#This Row],[1]:[ ]],Kods1)","v":0},{"$f":"COUNTIF(AprīļaApmeklētība[[#This Row],[1]:[ ]],Kods2)","v":0},{"$f":"COUNTIF(AprīļaApmeklētība[[#This Row],[1]:[ ]],Kods3)","v":0},{"$f":"COUNTIF(AprīļaApmeklētība[[#This Row],[1]:[ ]],Kods4)","v":0},{"$f":"SUM(AprīļaApmeklētība[[#This Row],[A]:[N]])","v":0}]
[null,null,{"$f":"IFERROR(VLOOKUP(AprīļaApmeklētība[[#This Row],[Audzēkņa ID]],AudzēkņuSaraksts[],18,FALSE),\"\")","v":""},{"$nulls":31},{"$f":"COUNTIF(AprīļaApmeklētība[[#This Row],[1]:[ ]],Kods1)","v":0},{"$f":"COUNTIF(AprīļaApmeklētība[[#This Row],[1]:[ ]],Kods2)","v":0},{"$f":"COUNTIF(AprīļaApmeklētība[[#This Row],[1]:[ ]],Kods3)","v":0},{"$f":"COUNTIF(AprīļaApmeklētība[[#This Row],[1]:[ ]],Kods4)","v":0},{"$f":"SUM(AprīļaApmeklētība[[#This Row],[A]:[N]])","v":0}]
[null,null,{"$f":"IFERROR(VLOOKUP(AprīļaApmeklētība[[#This Row],[Audzēkņa ID]],AudzēkņuSaraksts[],18,FALSE),\"\")","v":""},{"$nulls":31},{"$f":"COUNTIF(AprīļaApmeklētība[[#This Row],[1]:[ ]],Kods1)","v":0},{"$f":"COUNTIF(AprīļaApmeklētība[[#This Row],[1]:[ ]],Kods2)","v":0},{"$f":"COUNTIF(AprīļaApmeklētība[[#This Row],[1]:[ ]],Kods3)","v":0},{"$f":"COUNTIF(AprīļaApmeklētība[[#This Row],[1]:[ ]],Kods4)","v":0},{"$f":"SUM(AprīļaApmeklētība[[#This Row],[A]:[N]])","v":0}]
[null,null,{"$f":"IFERROR(VLOOKUP(AprīļaApmeklētība[[#This Row],[Audzēkņa ID]],AudzēkņuSaraksts[],18,FALSE),\"\")","v":""},{"$nulls":31},{"$f":"COUNTIF(AprīļaApmeklētība[[#This Row],[1]:[ ]],Kods1)","v":0},{"$f":"COUNTIF(AprīļaApmeklētība[[#This Row],[1]:[ ]],Kods2)","v":0},{"$f":"COUNTIF(AprīļaApmeklētība[[#This Row],[1]:[ ]],Kods3)","v":0},{"$f":"COUNTIF(AprīļaApmeklētība[[#This Row],[1]:[ ]],Kods4)","v":0},{"$f":"SUM(AprīļaApmeklētība[[#This Row],[A]:[N]])","v":0}]
[null,null,"Kavētās dienas kopā",{"$f":"COUNTIF(AprīļaApmeklētība[1],\"N\")+COUNTIF(AprīļaApmeklētība[1],\"A\")","v":0},{"$f":"COUNTIF(AprīļaApmeklētība[2],\"N\")+COUNTIF(AprīļaApmeklētība[2],\"A\")","v":0},{"$f":"COUNTIF(AprīļaApmeklētība[3],\"N\")+COUNTIF(AprīļaApmeklētība[3],\"A\")","v":0},{"$f":"COUNTIF(AprīļaApmeklētība[4],\"N\")+COUNTIF(AprīļaApmeklētība[4],\"A\")","v":0},{"$f":"COUNTIF(AprīļaApmeklētība[5],\"N\")+COUNTIF(AprīļaApmeklētība[5],\"A\")","v":0},{"$f":"COUNTIF(AprīļaApmeklētība[6],\"N\")+COUNTIF(AprīļaApmeklētība[6],\"A\")","v":0},{"$f":"COUNTIF(AprīļaApmeklētība[7],\"N\")+COUNTIF(AprīļaApmeklētība[7],\"A\")","v":0},{"$f":"COUNTIF(AprīļaApmeklētība[8],\"N\")+COUNTIF(AprīļaApmeklētība[8],\"A\")","v":0},{"$f":"COUNTIF(AprīļaApmeklētība[9],\"N\")+COUNTIF(AprīļaApmeklētība[9],\"A\")","v":0},{"$f":"COUNTIF(AprīļaApmeklētība[10],\"N\")+COUNTIF(AprīļaApmeklētība[10],\"A\")","v":0},{"$f":"COUNTIF(AprīļaApmeklētība[11],\"N\")+COUNTIF(AprīļaApmeklētība[11],\"A\")","v":0},{"$f":"COUNTIF(AprīļaApmeklētība[12],\"N\")+COUNTIF(AprīļaApmeklētība[12],\"A\")","v":0},{"$f":"COUNTIF(AprīļaApmeklētība[13],\"N\")+COUNTIF(AprīļaApmeklētība[13],\"A\")","v":0},{"$f":"COUNTIF(AprīļaApmeklētība[14],\"N\")+COUNTIF(AprīļaApmeklētība[14],\"A\")","v":0},{"$f":"COUNTIF(AprīļaApmeklētība[15],\"N\")+COUNTIF(AprīļaApmeklētība[15],\"A\")","v":0},{"$f":"COUNTIF(AprīļaApmeklētība[16],\"N\")+COUNTIF(AprīļaApmeklētība[16],\"A\")","v":0},{"$f":"COUNTIF(AprīļaApmeklētība[17],\"N\")+COUNTIF(AprīļaApmeklētība[17],\"A\")","v":0},{"$f":"COUNTIF(AprīļaApmeklētība[18],\"N\")+COUNTIF(AprīļaApmeklētība[18],\"A\")","v":0},{"$f":"COUNTIF(AprīļaApmeklētība[19],\"N\")+COUNTIF(AprīļaApmeklētība[19],\"A\")","v":0},{"$f":"COUNTIF(AprīļaApmeklētība[20],\"N\")+COUNTIF(AprīļaApmeklētība[20],\"A\")","v":0},{"$f":"COUNTIF(AprīļaApmeklētība[21],\"N\")+COUNTIF(AprīļaApmeklētība[21],\"A\")","v":0},{"$f":"COUNTIF(AprīļaApmeklētība[22],\"N\")+COUNTIF(AprīļaApmeklētība[22],\"A\")","v":0},{"$f":"COUNTIF(AprīļaApmeklētība[23],\"N\")+COUNTIF(AprīļaApmeklētība[23],\"A\")","v":0},{"$f":"COUNTIF(AprīļaApmeklētība[24],\"N\")+COUNTIF(AprīļaApmeklētība[24],\"A\")","v":0},{"$f":"COUNTIF(AprīļaApmeklētība[25],\"N\")+COUNTIF(AprīļaApmeklētība[25],\"A\")","v":0},{"$f":"COUNTIF(AprīļaApmeklētība[26],\"N\")+COUNTIF(AprīļaApmeklētība[26],\"A\")","v":0},{"$f":"COUNTIF(AprīļaApmeklētība[27],\"N\")+COUNTIF(AprīļaApmeklētība[27],\"A\")","v":0},{"$f":"COUNTIF(AprīļaApmeklētība[28],\"N\")+COUNTIF(AprīļaApmeklētība[28],\"A\")","v":0},{"$f":"COUNTIF(AprīļaApmeklētība[29],\"N\")+COUNTIF(AprīļaApmeklētība[29],\"A\")","v":0},{"$f":"COUNTIF(AprīļaApmeklētība[30],\"N\")+COUNTIF(AprīļaApmeklētība[30],\"A\")","v":0},{"$f":"COUNTIF(AprīļaApmeklētība[[ ]],\"N\")+COUNTIF(AprīļaApmeklētība[[ ]],\"A\")","v":0},{"$f":"SUBTOTAL(109,AprīļaApmeklētība[K])","v":0},{"$f":"SUBTOTAL(109,AprīļaApmeklētība[A])","v":0},{"$f":"SUBTOTAL(109,AprīļaApmeklētība[N])","v":0},{"$f":"SUBTOTAL(109,AprīļaApmeklētība[P])","v":0},{"$f":"SUBTOTAL(109,AprīļaApmeklētība[Kavētās dienas])","v":0}]

{"sheet":"Maijs","index":11,"n_rows":12,"n_cols":39,"rows_kept":12,"merged":[[4,34,4,38]]}
["AUDZĒKŅA APMEKLĒJUMA IERAKSTS",{"$nulls":36},"Mācību gada sākums:",{"$f":"KalendāraGads","v":2012}]
[]
[null,null,{"$f":"KrāsasPamatteksts","v":"KRĀSU KODS "},{"$f":"Kods1","v":"K"},{"$f":"Koda1Teksts","v":"Kavēts"},null,null,{"$f":"Kods2","v":"A"},{"$f":"Koda2Teksts","v":"Attaisnoti"},null,null,{"$f":"Kods3","v":"N"},{"$f":"Koda3Teksts","v":"Neattaisnoti"},null,null,{"$f":"Kods4","v":"P"},{"$f":"Koda4Teksts","v":"Klātbūtne"},null,null,{"$f":"Kods5","v":"N1"},{"$f":"Koda5Teksts","v":"Neviena skola"}]
[]
[null,{"$f":"DATE(KalendāraGads+1,5,1)","v":"2013-05-01"},null,{"$f":"TEXT(WEEKDAY(DATE(KalendāraGads+1,5,1),1),\"[$-426]aaa\")","v":"tr"},{"$f":"TEXT(WEEKDAY(DATE(KalendāraGads+1,5,2),1),\"[$-426]aaa\")","v":"ce"},{"$f":"TEXT(WEEKDAY(DATE(KalendāraGads+1,5,3),1),\"[$-426]aaa\")","v":"pk"},{"$f":"TEXT(WEEKDAY(DATE(KalendāraGads+1,5,4),1),\"[$-426]aaa\")","v":"se"},{"$f":"TEXT(WEEKDAY(DATE(KalendāraGads+1,5,5),1),\"[$-426]aaa\")","v":"sv"},{"$f":"TEXT(WEEKDAY(DATE(KalendāraGads+1,5,6),1),\"[$-426]aaa\")","v":"pr"},{"$f":"TEXT(WEEKDAY(DATE(KalendāraGads+1,5,7),1),\"[$-426]aaa\")","v":"ot"},{"$f":"TEXT(WEEKDAY(DATE(KalendāraGads+1,5,8),1),\"[$-426]aaa\")","v":"tr"},{"$f":"TEXT(WEEKDAY(DATE(KalendāraGads+1,5,9),1),\"[$-426]aaa\")","v":"ce"},{"$f":"TEXT(WEEKDAY(DATE(KalendāraGads+1,5,10),1),\"[$-426]aaa\")","v":"pk"},{"$f":"TEXT(WEEKDAY(DATE(KalendāraGads+1,5,11),1),\"[$-426]aaa\")","v":"se"},{"$f":"TEXT(WEEKDAY(DATE(KalendāraGads+1,5,12),1),\"[$-426]aaa\")","v":"sv"},{"$f":"TEXT(WEEKDAY(DATE(KalendāraGads+1,5,13),1),\"[$-426]aaa\")","v":"pr"},{"$f":"TEXT(WEEKDAY(DATE(KalendāraGads+1,5,14),1),\"[$-426]aaa\")","v":"ot"},{"$f":"TEXT(WEEKDAY(DATE(KalendāraGads+1,5,15),1),\"[$-426]aaa\")","v":"tr"},{"$f":"TEXT(WEEKDAY(DATE(KalendāraGads+1,5,16),1),\"[$-426]aaa\")","v":"ce"},{"$f":"TEXT(WEEKDAY(DATE(KalendāraGads+1,5,17),1),\"[$-426]aaa\")","v":"pk"},{"$f":"TEXT(WEEKDAY(DATE(KalendāraGads+1,5,18),1),\"[$-426]aaa\")","v":"se"},{"$f":"TEXT(WEEKDAY(DATE(KalendāraGads+1,5,19),1),\"[$-426]aaa\")","v":"sv"},{"$f":"TEXT(WEEKDAY(DATE(KalendāraGads+1,5,20),1),\"[$-426]aaa\")","v":"pr"},{"$f":"TEXT(WEEKDAY(DATE(KalendāraGads+1,5,21),1),\"[$-426]aaa\")","v":"ot"},{"$f":"TEXT(WEEKDAY(DATE(KalendāraGads+1,5,22),1),\"[$-426]aaa\")","v":"tr"},{"$f":"TEXT(WEEKDAY(DATE(KalendāraGads+1,5,23),1),\"[$-426]aaa\")","v":"ce"},{"$f":"TEXT(WEEKDAY(DATE(KalendāraGads+1,5,24),1),\"[$-426]aaa\")","v":"pk"},{"$f":"TEXT(WEEKDAY(DATE(KalendāraGads+1,5,25),1),\"[$-426]aaa\")","v":"se"},{"$f":"TEXT(WEEKDAY(DATE(KalendāraGads+1,5,26),1),\"[$-426]aaa\")","v":"sv"},{"$f":"TEXT(WEEKDAY(DATE(KalendāraGads+1,5,27),1),\"[$-426]aaa\")","v":"pr"},{"$f":"TEXT(WEEKDAY(DATE(KalendāraGads+1,5,28),1),\"[$-426]aaa\")","v":"ot"},{"$f":"TEXT(WEEKDAY(DATE(KalendāraGads+1,5,29),1),\"[$-426]aaa\")","v":"tr"},{"$f":"TEXT(WEEKDAY(DATE(KalendāraGads+1,5,30),1),\"[$-426]aaa\")","v":"ce"},{"$f":"TEXT(WEEKDAY(DATE(KalendāraGads+1,5,31),1),\"[$-426]aaa\")","v":"pk"},"Kopā"]
[null,"Audzēkņa ID","Audzēkņa vārds","1","2","3","4","5","6","7","8","9","10","11","12","13","14","15","16","17","18","19","20","21","22","23","24","25","26","27","28","29","30","31","K","A","N","P","Kavētās dienas"]
[null,null,{"$f":"IFERROR(VLOOKUP(MaijaApmeklētība[[#This Row],[Audzēkņa ID]],AudzēkņuSaraksts[],18,FALSE),\"\")","v":""},{"$nulls":31},{"$f":"COUNTIF(MaijaApmeklētība[[#This Row],[1]:[31]],Kods1)","v":0},{"$f":"COUNTIF(MaijaApmeklētība[[#This Row],[1]:[31]],Kods2)","v":0},{"$f":"COUNTIF(MaijaApmeklētība[[#This Row],[1]:[31]],Kods3)","v":0},{"$f":"COUNTIF(MaijaApmeklētība[[#This Row],[1]:[31]],Kods4)","v":0},{"$f":"SUM(MaijaApmeklētība[[#This Row],[A]:[N]])","v":0}]
[null,null,{"$f":"IFERROR(VLOOKUP(MaijaApmeklētība[[#This Row],[Audzēkņa ID]],AudzēkņuSaraksts[],18,FALSE),\"\")","v":""},{"$nulls":31},{"$f":"COUNTIF(MaijaApmeklētība[[#This Row],[1]:[31]],Kods1)","v":0},{"$f":"COUNTIF(MaijaApmeklētība[[#This Row],[1]:[31]],Kods2)","v":0},{"$f":"COUNTIF(MaijaApmeklētība[[#This Row],[1]:[31]],Kods3)","v":0},{"$f":"COUNTIF(MaijaApmeklētība[[#This Row],[1]:[31]],Kods4)","v":0},{"$f":"SUM(MaijaApmeklētība[[#This Row],[A]:[N]])","v":0}]
[null,null,{"$f":"IFERROR(VLOOKUP(MaijaApmeklētība[[#This Row],[Audzēkņa ID]],AudzēkņuSaraksts[],18,FALSE),\"\")","v":""},{"$nulls":31},{"$f":"COUNTIF(MaijaApmeklētība[[#This Row],[1]:[31]],Kods1)","v":0},{"$f":"COUNTIF(MaijaApmeklētība[[#This Row],[1]:[31]],Kods2)","v":0},{"$f":"COUNTIF(MaijaApmeklētība[[#This Row],[1]:[31]],Kods3)","v":0},{"$f":"COUNTIF(MaijaApmeklētība[[#This Row],[1]:[31]],Kods4)","v":0},{"$f":"SUM(MaijaApmeklētība[[#This Row],[A]:[N]])","v":0}]
[null,null,{"$f":"IFERROR(VLOOKUP(MaijaApmeklētība[[#This Row],[Audzēkņa ID]],AudzēkņuSaraksts[],18,FALSE),\"\")","v":""},{"$nulls":31},{"$f":"COUNTIF(MaijaApmeklētība[[#This Row],[1]:[31]],Kods1)","v":0},{"$f":"COUNTIF(MaijaApmeklētība[[#This Row],[1]:[31]],Kods2)","v":0},{"$f":"COUNTIF(MaijaApmeklētība[[#This Row],[1]:[31]],Kods3)","v":0},{"$f":"COUNTIF(MaijaApmeklētība[[#This Row],[1]:[31]],Kods4)","v":0},{"$f":"SUM(MaijaApmeklētība[[#This Row],[A]:[N]])","v":0}]
[null,null,{"$f":"IFERROR(VLOOKUP(MaijaApmeklētība[[#This Row],[Audzēkņa ID]],AudzēkņuSaraksts[],18,FALSE),\"\")","v":""},{"$nulls":31},{"$f":"COUNTIF(MaijaApmeklētība[[#This Row],[1]:[31]],Kods1)","v":0},{"$f":"COUNTIF(MaijaApmeklētība[[#This Row],[1]:[31]],Kods2)","v":0},{"$f":"COUNTIF(MaijaApmeklētība[[#This Row],[1]:[31]],Kods3)","v":0},{"$f":"COUNTIF(MaijaApmeklētība[[#This Row],[1]:[31]],Kods4)","v":0},{"$f":"SUM(MaijaApmeklētība[[#This Row],[A]:[N]])","v":0}]
[null,null,"Kavētās dienas kopā",{"$f":"COUNTIF(MaijaApmeklētība[1],\"N\")+COUNTIF(MaijaApmeklētība[1],\"A\")","v":0},{"$f":"COUNTIF(MaijaApmeklētība[2],\"N\")+COUNTIF(MaijaApmeklētība[2],\"A\")","v":0},{"$f":"COUNTIF(MaijaApmeklētība[3],\"N\")+COUNTIF(MaijaApmeklētība[3],\"A\")","v":0},{"$f":"COUNTIF(MaijaApmeklētība[4],\"N\")+COUNTIF(MaijaApmeklētība[4],\"A\")","v":0},{"$f":"COUNTIF(MaijaApmeklētība[5],\"N\")+COUNTIF(MaijaApmeklētība[5],\"A\")","v":0},{"$f":"COUNTIF(MaijaApmeklētība[6],\"N\")+COUNTIF(MaijaApmeklētība[6],\"A\")","v":0},{"$f":"COUNTIF(MaijaApmeklētība[7],\"N\")+COUNTIF(MaijaApmeklētība[7],\"A\")","v":0},{"$f":"COUNTIF(MaijaApmeklētība[8],\"N\")+COUNTIF(MaijaApmeklētība[8],\"A\")","v":0},{"$f":"COUNTIF(MaijaApmeklētība[9],\"N\")+COUNTIF(MaijaApmeklētība[9],\"A\")","v":0},{"$f":"COUNTIF(MaijaApmeklētība[10],\"N\")+COUNTIF(MaijaApmeklētība[10],\"A\")","v":0},{"$f":"COUNTIF(MaijaApmeklētība[11],\"N\")+COUNTIF(MaijaApmeklētība[11],\"A\")","v":0},{"$f":"COUNTIF(MaijaApmeklētība[12],\"N\")+COUNTIF(MaijaApmeklētība[12],\"A\")","v":0},{"$f":"COUNTIF(MaijaApmeklētība[13],\"N\")+COUNTIF(MaijaApmeklētība[13],\"A\")","v":0},{"$f":"COUNTIF(MaijaApmeklētība[14],\"N\")+COUNTIF(MaijaApmeklētība[14],\"A\")","v":0},{"$f":"COUNTIF(MaijaApmeklētība[15],\"N\")+COUNTIF(MaijaApmeklētība[15],\"A\")","v":0},{"$f":"COUNTIF(MaijaApmeklētība[16],\"N\")+COUNTIF(MaijaApmeklētība[16],\"A\")","v":0},{"$f":"COUNTIF(MaijaApmeklētība[17],\"N\")+COUNTIF(MaijaApmeklētība[17],\"A\")","v":0},{"$f":"COUNTIF(MaijaApmeklētība[18],\"N\")+COUNTIF(MaijaApmeklētība[18],\"A\")","v":0},{"$f":"COUNTIF(MaijaApmeklētība[19],\"N\")+COUNTIF(MaijaApmeklētība[19],\"A\")","v":0},{"$f":"COUNTIF(MaijaApmeklētība[20],\"N\")+COUNTIF(MaijaApmeklētība[20],\"A\")","v":0},{"$f":"COUNTIF(MaijaApmeklētība[21],\"N\")+COUNTIF(MaijaApmeklētība[21],\"A\")","v":0},{"$f":"COUNTIF(MaijaApmeklētība[22],\"N\")+COUNTIF(MaijaApmeklētība[22],\"A\")","v":0},{"$f":"COUNTIF(MaijaApmeklētība[23],\"N\")+COUNTIF(MaijaApmeklētība[23],\"A\")","v":0},{"$f":"COUNTIF(MaijaApmeklētība[24],\"N\")+COUNTIF(MaijaApmeklētība[24],\"A\")","v":0},{"$f":"COUNTIF(MaijaApmeklētība[25],\"N\")+COUNTIF(MaijaApmeklētība[25],\"A\")","v":0},{"$f":"COUNTIF(MaijaApmeklētība[26],\"N\")+COUNTIF(MaijaApmeklētība[26],\"A\")","v":0},{"$f":"COUNTIF(MaijaApmeklētība[27],\"N\")+COUNTIF(MaijaApmeklētība[27],\"A\")","v":0},{"$f":"COUNTIF(MaijaApmeklētība[28],\"N\")+COUNTIF(MaijaApmeklētība[28],\"A\")","v":0},{"$f":"COUNTIF(MaijaApmeklētība[29],\"N\")+COUNTIF(MaijaApmeklētība[29],\"A\")","v":0},{"$f":"COUNTIF(MaijaApmeklētība[30],\"N\")+COUNTIF(MaijaApmeklētība[30],\"A\")","v":0},{"$f":"COUNTIF(MaijaApmeklētība[31],\"N\")+COUNTIF(MaijaApmeklētība[31],\"A\")","v":0},{"$f":"SUBTOTAL(109,MaijaApmeklētība[K])","v":0},{"$f":"SUBTOTAL(109,MaijaApmeklētība[A])","v":0},{"$f":"SUBTOTAL(109,MaijaApmeklētība[N])","v":0},{"$f":"SUBTOTAL(109,MaijaApmeklētība[P])","v":0},{"$f":"SUBTOTAL(109,MaijaApmeklētība[Kavētās dienas])","v":0}]

{"sheet":"Jūnijs","index":12,"n_rows":12,"n_cols":39,"rows_kept":12,"merged":[[4,34,4,38]]}
["AUDZĒKŅA APMEKLĒJUMA IERAKSTS",{"$nulls":36},"Mācību gada sākums:",{"$f":"KalendāraGads","v":2012}]
[]
[null,null,{"$f":"KrāsasPamatteksts","v":"KRĀSU KODS "},{"$f":"Kods1","v":"K"},{"$f":"Koda1Teksts","v":"Kavēts"},null,null,{"$f":"Kods2","v":"A"},{"$f":"Koda2Teksts","v":"Attaisnoti"},null,null,{"$f":"Kods3","v":"N"},{"$f":"Koda3Teksts","v":"Neattaisnoti"},null,null,{"$f":"Kods4","v":"P"},{"$f":"Koda4Teksts","v":"Klātbūtne"},null,null,{"$f":"Kods5","v":"N1"},{"$f":"Koda5Teksts","v":"Neviena skola"}]
[]
[null,{"$f":"DATE(KalendāraGads+1,6,1)","v":"2013-06-01"},null,{"$f":"TEXT(WEEKDAY(DATE(KalendāraGads+1,6,1),1),\"[$-426]aaa\")","v":"se"},{"$f":"TEXT(WEEKDAY(DATE(KalendāraGads+1,6,2),1),\"[$-426]aaa\")","v":"sv"},{"$f":"TEXT(WEEKDAY(DATE(KalendāraGads+1,6,3),1),\"[$-426]aaa\")","v":"pr"},{"$f":"TEXT(WEEKDAY(DATE(KalendāraGads+1,6,4),1),\"[$-426]aaa\")","v":"ot"},{"$f":"TEXT(WEEKDAY(DATE(KalendāraGads+1,6,5),1),\"[$-426]aaa\")","v":"tr"},{"$f":"TEXT(WEEKDAY(DATE(KalendāraGads+1,6,6),1),\"[$-426]aaa\")","v":"ce"},{"$f":"TEXT(WEEKDAY(DATE(KalendāraGads+1,6,7),1),\"[$-426]aaa\")","v":"pk"},{"$f":"TEXT(WEEKDAY(DATE(KalendāraGads+1,6,8),1),\"[$-426]aaa\")","v":"se"},{"$f":"TEXT(WEEKDAY(DATE(KalendāraGads+1,6,9),1),\"[$-426]aaa\")","v":"sv"},{"$f":"TEXT(WEEKDAY(DATE(KalendāraGads+1,6,10),1),\"[$-426]aaa\")","v":"pr"},{"$f":"TEXT(WEEKDAY(DATE(KalendāraGads+1,6,11),1),\"[$-426]aaa\")","v":"ot"},{"$f":"TEXT(WEEKDAY(DATE(KalendāraGads+1,6,12),1),\"[$-426]aaa\")","v":"tr"},{"$f":"TEXT(WEEKDAY(DATE(KalendāraGads+1,6,13),1),\"[$-426]aaa\")","v":"ce"},{"$f":"TEXT(WEEKDAY(DATE(KalendāraGads+1,6,14),1),\"[$-426]aaa\")","v":"pk"},{"$f":"TEXT(WEEKDAY(DATE(KalendāraGads+1,6,15),1),\"[$-426]aaa\")","v":"se"},{"$f":"TEXT(WEEKDAY(DATE(KalendāraGads+1,6,16),1),\"[$-426]aaa\")","v":"sv"},{"$f":"TEXT(WEEKDAY(DATE(KalendāraGads+1,6,17),1),\"[$-426]aaa\")","v":"pr"},{"$f":"TEXT(WEEKDAY(DATE(KalendāraGads+1,6,18),1),\"[$-426]aaa\")","v":"ot"},{"$f":"TEXT(WEEKDAY(DATE(KalendāraGads+1,6,19),1),\"[$-426]aaa\")","v":"tr"},{"$f":"TEXT(WEEKDAY(DATE(KalendāraGads+1,6,20),1),\"[$-426]aaa\")","v":"ce"},{"$f":"TEXT(WEEKDAY(DATE(KalendāraGads+1,6,21),1),\"[$-426]aaa\")","v":"pk"},{"$f":"TEXT(WEEKDAY(DATE(KalendāraGads+1,6,22),1),\"[$-426]aaa\")","v":"se"},{"$f":"TEXT(WEEKDAY(DATE(KalendāraGads+1,6,23),1),\"[$-426]aaa\")","v":"sv"},{"$f":"TEXT(WEEKDAY(DATE(KalendāraGads+1,6,24),1),\"[$-426]aaa\")","v":"pr"},{"$f":"TEXT(WEEKDAY(DATE(KalendāraGads+1,6,25),1),\"[$-426]aaa\")","v":"ot"},{"$f":"TEXT(WEEKDAY(DATE(KalendāraGads+1,6,26),1),\"[$-426]aaa\")","v":"tr"},{"$f":"TEXT(WEEKDAY(DATE(KalendāraGads+1,6,27),1),\"[$-426]aaa\")","v":"ce"},{"$f":"TEXT(WEEKDAY(DATE(KalendāraGads+1,6,28),1),\"[$-426]aaa\")","v":"pk"},{"$f":"TEXT(WEEKDAY(DATE(KalendāraGads+1,6,29),1),\"[$-426]aaa\")","v":"se"},{"$f":"TEXT(WEEKDAY(DATE(KalendāraGads+1,6,30),1),\"[$-426]aaa\")","v":"sv"},null,"Kopā"]
[null,"Audzēkņa ID","Audzēkņa vārds","1","2","3","4","5","6","7","8","9","10","11","12","13","14","15","16","17","18","19","20","21","22","23","24","25","26","27","28","29","30"," ","K","A","N","P","Kavētās dienas"]
[null,null,{"$f":"IFERROR(VLOOKUP(JūnijaApmeklētība[[#This Row],[Audzēkņa ID]],AudzēkņuSaraksts[],18,FALSE),\"\")","v":""},{"$nulls":31},{"$f":"COUNTIF(JūnijaApmeklētība[[#This Row],[1]:[ ]],Kods1)","v":0},{"$f":"COUNTIF(JūnijaApmeklētība[[#This Row],[1]:[ ]],Kods2)","v":0},{"$f":"COUNTIF(JūnijaApmeklētība[[#This Row],[1]:[ ]],Kods3)","v":0},{"$f":"COUNTIF(JūnijaApmeklētība[[#This Row],[1]:[ ]],Kods4)","v":0},{"$f":"SUM(JūnijaApmeklētība[[#This Row],[A]:[N]])","v":0}]
[null,null,{"$f":"IFERROR(VLOOKUP(JūnijaApmeklētība[[#This Row],[Audzēkņa ID]],AudzēkņuSaraksts[],18,FALSE),\"\")","v":""},{"$nulls":31},{"$f":"COUNTIF(JūnijaApmeklētība[[#This Row],[1]:[ ]],Kods1)","v":0},{"$f":"COUNTIF(JūnijaApmeklētība[[#This Row],[1]:[ ]],Kods2)","v":0},{"$f":"COUNTIF(JūnijaApmeklētība[[#This Row],[1]:[ ]],Kods3)","v":0},{"$f":"COUNTIF(JūnijaApmeklētība[[#This Row],[1]:[ ]],Kods4)","v":0},{"$f":"SUM(JūnijaApmeklētība[[#This Row],[A]:[N]])","v":0}]
[null,null,{"$f":"IFERROR(VLOOKUP(JūnijaApmeklētība[[#This Row],[Audzēkņa ID]],AudzēkņuSaraksts[],18,FALSE),\"\")","v":""},{"$nulls":31},{"$f":"COUNTIF(JūnijaApmeklētība[[#This Row],[1]:[ ]],Kods1)","v":0},{"$f":"COUNTIF(JūnijaApmeklētība[[#This Row],[1]:[ ]],Kods2)","v":0},{"$f":"COUNTIF(JūnijaApmeklētība[[#This Row],[1]:[ ]],Kods3)","v":0},{"$f":"COUNTIF(JūnijaApmeklētība[[#This Row],[1]:[ ]],Kods4)","v":0},{"$f":"SUM(JūnijaApmeklētība[[#This Row],[A]:[N]])","v":0}]
[null,null,{"$f":"IFERROR(VLOOKUP(JūnijaApmeklētība[[#This Row],[Audzēkņa ID]],AudzēkņuSaraksts[],18,FALSE),\"\")","v":""},{"$nulls":31},{"$f":"COUNTIF(JūnijaApmeklētība[[#This Row],[1]:[ ]],Kods1)","v":0},{"$f":"COUNTIF(JūnijaApmeklētība[[#This Row],[1]:[ ]],Kods2)","v":0},{"$f":"COUNTIF(JūnijaApmeklētība[[#This Row],[1]:[ ]],Kods3)","v":0},{"$f":"COUNTIF(JūnijaApmeklētība[[#This Row],[1]:[ ]],Kods4)","v":0},{"$f":"SUM(JūnijaApmeklētība[[#This Row],[A]:[N]])","v":0}]
[null,null,{"$f":"IFERROR(VLOOKUP(JūnijaApmeklētība[[#This Row],[Audzēkņa ID]],AudzēkņuSaraksts[],18,FALSE),\"\")","v":""},{"$nulls":31},{"$f":"COUNTIF(JūnijaApmeklētība[[#This Row],[1]:[ ]],Kods1)","v":0},{"$f":"COUNTIF(JūnijaApmeklētība[[#This Row],[1]:[ ]],Kods2)","v":0},{"$f":"COUNTIF(JūnijaApmeklētība[[#This Row],[1]:[ ]],Kods3)","v":0},{"$f":"COUNTIF(JūnijaApmeklētība[[#This Row],[1]:[ ]],Kods4)","v":0},{"$f":"SUM(JūnijaApmeklētība[[#This Row],[A]:[N]])","v":0}]
[null,null,"Kavētās dienas kopā",{"$f":"COUNTIF(JūnijaApmeklētība[1],\"N\")+COUNTIF(JūnijaApmeklētība[1],\"A\")","v":0},{"$f":"COUNTIF(JūnijaApmeklētība[2],\"N\")+COUNTIF(JūnijaApmeklētība[2],\"A\")","v":0},{"$f":"COUNTIF(JūnijaApmeklētība[3],\"N\")+COUNTIF(JūnijaApmeklētība[3],\"A\")","v":0},{"$f":"COUNTIF(JūnijaApmeklētība[4],\"N\")+COUNTIF(JūnijaApmeklētība[4],\"A\")","v":0},{"$f":"COUNTIF(JūnijaApmeklētība[5],\"N\")+COUNTIF(JūnijaApmeklētība[5],\"A\")","v":0},{"$f":"COUNTIF(JūnijaApmeklētība[6],\"N\")+COUNTIF(JūnijaApmeklētība[6],\"A\")","v":0},{"$f":"COUNTIF(JūnijaApmeklētība[7],\"N\")+COUNTIF(JūnijaApmeklētība[7],\"A\")","v":0},{"$f":"COUNTIF(JūnijaApmeklētība[8],\"N\")+COUNTIF(JūnijaApmeklētība[8],\"A\")","v":0},{"$f":"COUNTIF(JūnijaApmeklētība[9],\"N\")+COUNTIF(JūnijaApmeklētība[9],\"A\")","v":0},{"$f":"COUNTIF(JūnijaApmeklētība[10],\"N\")+COUNTIF(JūnijaApmeklētība[10],\"A\")","v":0},{"$f":"COUNTIF(JūnijaApmeklētība[11],\"N\")+COUNTIF(JūnijaApmeklētība[11],\"A\")","v":0},{"$f":"COUNTIF(JūnijaApmeklētība[12],\"N\")+COUNTIF(JūnijaApmeklētība[12],\"A\")","v":0},{"$f":"COUNTIF(JūnijaApmeklētība[13],\"N\")+COUNTIF(JūnijaApmeklētība[13],\"A\")","v":0},{"$f":"COUNTIF(JūnijaApmeklētība[14],\"N\")+COUNTIF(JūnijaApmeklētība[14],\"A\")","v":0},{"$f":"COUNTIF(JūnijaApmeklētība[15],\"N\")+COUNTIF(JūnijaApmeklētība[15],\"A\")","v":0},{"$f":"COUNTIF(JūnijaApmeklētība[16],\"N\")+COUNTIF(JūnijaApmeklētība[16],\"A\")","v":0},{"$f":"COUNTIF(JūnijaApmeklētība[17],\"N\")+COUNTIF(JūnijaApmeklētība[17],\"A\")","v":0},{"$f":"COUNTIF(JūnijaApmeklētība[18],\"N\")+COUNTIF(JūnijaApmeklētība[18],\"A\")","v":0},{"$f":"COUNTIF(JūnijaApmeklētība[19],\"N\")+COUNTIF(JūnijaApmeklētība[19],\"A\")","v":0},{"$f":"COUNTIF(JūnijaApmeklētība[20],\"N\")+COUNTIF(JūnijaApmeklētība[20],\"A\")","v":0},{"$f":"COUNTIF(JūnijaApmeklētība[21],\"N\")+COUNTIF(JūnijaApmeklētība[21],\"A\")","v":0},{"$f":"COUNTIF(JūnijaApmeklētība[22],\"N\")+COUNTIF(JūnijaApmeklētība[22],\"A\")","v":0},{"$f":"COUNTIF(JūnijaApmeklētība[23],\"N\")+COUNTIF(JūnijaApmeklētība[23],\"A\")","v":0},{"$f":"COUNTIF(JūnijaApmeklētība[24],\"N\")+COUNTIF(JūnijaApmeklētība[24],\"A\")","v":0},{"$f":"COUNTIF(JūnijaApmeklētība[25],\"N\")+COUNTIF(JūnijaApmeklētība[25],\"A\")","v":0},{"$f":"COUNTIF(JūnijaApmeklētība[26],\"N\")+COUNTIF(JūnijaApmeklētība[26],\"A\")","v":0},{"$f":"COUNTIF(JūnijaApmeklētība[27],\"N\")+COUNTIF(JūnijaApmeklētība[27],\"A\")","v":0},{"$f":"COUNTIF(JūnijaApmeklētība[28],\"N\")+COUNTIF(JūnijaApmeklētība[28],\"A\")","v":0},{"$f":"COUNTIF(JūnijaApmeklētība[29],\"N\")+COUNTIF(JūnijaApmeklētība[29],\"A\")","v":0},{"$f":"COUNTIF(JūnijaApmeklētība[30],\"N\")+COUNTIF(JūnijaApmeklētība[30],\"A\")","v":0},{"$f":"COUNTIF(JūnijaApmeklētība[[ ]],\"N\")+COUNTIF(JūnijaApmeklētība[[ ]],\"A\")","v":0},{"$f":"SUBTOTAL(109,JūnijaApmeklētība[K])","v":0},{"$f":"SUBTOTAL(109,JūnijaApmeklētība[A])","v":0},{"$f":"SUBTOTAL(109,JūnijaApmeklētība[N])","v":0},{"$f":"SUBTOTAL(109,JūnijaApmeklētība[P])","v":0},{"$f":"SUBTOTAL(109,JūnijaApmeklētība[Kavētās dienas])","v":0}]

{"sheet":"Jūlijs","index":13,"n_rows":12,"n_cols":39,"rows_kept":12,"merged":[[4,34,4,38]]}
["AUDZĒKŅA APMEKLĒJUMA IERAKSTS",{"$nulls":36},"Mācību gada sākums:",{"$f":"KalendāraGads","v":2012}]
[]
[null,null,{"$f":"KrāsasPamatteksts","v":"KRĀSU KODS "},{"$f":"Kods1","v":"K"},{"$f":"Koda1Teksts","v":"Kavēts"},null,null,{"$f":"Kods2","v":"A"},{"$f":"Koda2Teksts","v":"Attaisnoti"},null,null,{"$f":"Kods3","v":"N"},{"$f":"Koda3Teksts","v":"Neattaisnoti"},null,null,{"$f":"Kods4","v":"P"},{"$f":"Koda4Teksts","v":"Klātbūtne"},null,null,{"$f":"Kods5","v":"N1"},{"$f":"Koda5Teksts","v":"Neviena skola"}]
[]
[null,{"$f":"DATE(KalendāraGads+1,7,1)","v":"2013-07-01"},null,{"$f":"TEXT(WEEKDAY(DATE(KalendāraGads+1,7,1),1),\"[$-426]aaa\")","v":"pr"},{"$f":"TEXT(WEEKDAY(DATE(KalendāraGads+1,7,2),1),\"[$-426]aaa\")","v":"ot"},{"$f":"TEXT(WEEKDAY(DATE(KalendāraGads+1,7,3),1),\"[$-426]aaa\")","v":"tr"},{"$f":"TEXT(WEEKDAY(DATE(KalendāraGads+1,7,4),1),\"[$-426]aaa\")","v":"ce"},{"$f":"TEXT(WEEKDAY(DATE(KalendāraGads+1,7,5),1),\"[$-426]aaa\")","v":"pk"},{"$f":"TEXT(WEEKDAY(DATE(KalendāraGads+1,7,6),1),\"[$-426]aaa\")","v":"se"},{"$f":"TEXT(WEEKDAY(DATE(KalendāraGads+1,7,7),1),\"[$-426]aaa\")","v":"sv"},{"$f":"TEXT(WEEKDAY(DATE(KalendāraGads+1,7,8),1),\"[$-426]aaa\")","v":"pr"},{"$f":"TEXT(WEEKDAY(DATE(KalendāraGads+1,7,9),1),\"[$-426]aaa\")","v":"ot"},{"$f":"TEXT(WEEKDAY(DATE(KalendāraGads+1,7,10),1),\"[$-426]aaa\")","v":"tr"},{"$f":"TEXT(WEEKDAY(DATE(KalendāraGads+1,7,11),1),\"[$-426]aaa\")","v":"ce"},{"$f":"TEXT(WEEKDAY(DATE(KalendāraGads+1,7,12),1),\"[$-426]aaa\")","v":"pk"},{"$f":"TEXT(WEEKDAY(DATE(KalendāraGads+1,7,13),1),\"[$-426]aaa\")","v":"se"},{"$f":"TEXT(WEEKDAY(DATE(KalendāraGads+1,7,14),1),\"[$-426]aaa\")","v":"sv"},{"$f":"TEXT(WEEKDAY(DATE(KalendāraGads+1,7,15),1),\"[$-426]aaa\")","v":"pr"},{"$f":"TEXT(WEEKDAY(DATE(KalendāraGads+1,7,16),1),\"[$-426]aaa\")","v":"ot"},{"$f":"TEXT(WEEKDAY(DATE(KalendāraGads+1,7,17),1),\"[$-426]aaa\")","v":"tr"},{"$f":"TEXT(WEEKDAY(DATE(KalendāraGads+1,7,18),1),\"[$-426]aaa\")","v":"ce"},{"$f":"TEXT(WEEKDAY(DATE(KalendāraGads+1,7,19),1),\"[$-426]aaa\")","v":"pk"},{"$f":"TEXT(WEEKDAY(DATE(KalendāraGads+1,7,20),1),\"[$-426]aaa\")","v":"se"},{"$f":"TEXT(WEEKDAY(DATE(KalendāraGads+1,7,21),1),\"[$-426]aaa\")","v":"sv"},{"$f":"TEXT(WEEKDAY(DATE(KalendāraGads+1,7,22),1),\"[$-426]aaa\")","v":"pr"},{"$f":"TEXT(WEEKDAY(DATE(KalendāraGads+1,7,23),1),\"[$-426]aaa\")","v":"ot"},{"$f":"TEXT(WEEKDAY(DATE(KalendāraGads+1,7,24),1),\"[$-426]aaa\")","v":"tr"},{"$f":"TEXT(WEEKDAY(DATE(KalendāraGads+1,7,25),1),\"[$-426]aaa\")","v":"ce"},{"$f":"TEXT(WEEKDAY(DATE(KalendāraGads+1,7,26),1),\"[$-426]aaa\")","v":"pk"},{"$f":"TEXT(WEEKDAY(DATE(KalendāraGads+1,7,27),1),\"[$-426]aaa\")","v":"se"},{"$f":"TEXT(WEEKDAY(DATE(KalendāraGads+1,7,28),1),\"[$-426]aaa\")","v":"sv"},{"$f":"TEXT(WEEKDAY(DATE(KalendāraGads+1,7,29),1),\"[$-426]aaa\")","v":"pr"},{"$f":"TEXT(WEEKDAY(DATE(KalendāraGads+1,7,30),1),\"[$-426]aaa\")","v":"ot"},{"$f":"TEXT(WEEKDAY(DATE(KalendāraGads+1,7,31),1),\"[$-426]aaa\")","v":"tr"},"Kopā"]
[null,"Audzēkņa ID","Audzēkņa vārds","1","2","3","4","5","6","7","8","9","10","11","12","13","14","15","16","17","18","19","20","21","22","23","24","25","26","27","28","29","30","31","K","A","N","P","Kavētās dienas"]
[null,null,{"$f":"IFERROR(VLOOKUP(JūlijaApmeklētība[[#This Row],[Audzēkņa ID]],AudzēkņuSaraksts[],18,FALSE),\"\")","v":""},{"$nulls":31},{"$f":"COUNTIF(JūlijaApmeklētība[[#This Row],[1]:[31]],Kods1)","v":0},{"$f":"COUNTIF(JūlijaApmeklētība[[#This Row],[1]:[31]],Kods2)","v":0},{"$f":"COUNTIF(JūlijaApmeklētība[[#This Row],[1]:[31]],Kods3)","v":0},{"$f":"COUNTIF(JūlijaApmeklētība[[#This Row],[1]:[31]],Kods4)","v":0},{"$f":"SUM(JūlijaApmeklētība[[#This Row],[A]:[N]])","v":0}]
[null,null,{"$f":"IFERROR(VLOOKUP(JūlijaApmeklētība[[#This Row],[Audzēkņa ID]],AudzēkņuSaraksts[],18,FALSE),\"\")","v":""},{"$nulls":31},{"$f":"COUNTIF(JūlijaApmeklētība[[#This Row],[1]:[31]],Kods1)","v":0},{"$f":"COUNTIF(JūlijaApmeklētība[[#This Row],[1]:[31]],Kods2)","v":0},{"$f":"COUNTIF(JūlijaApmeklētība[[#This Row],[1]:[31]],Kods3)","v":0},{"$f":"COUNTIF(JūlijaApmeklētība[[#This Row],[1]:[31]],Kods4)","v":0},{"$f":"SUM(JūlijaApmeklētība[[#This Row],[A]:[N]])","v":0}]
[null,null,{"$f":"IFERROR(VLOOKUP(JūlijaApmeklētība[[#This Row],[Audzēkņa ID]],AudzēkņuSaraksts[],18,FALSE),\"\")","v":""},{"$nulls":31},{"$f":"COUNTIF(JūlijaApmeklētība[[#This Row],[1]:[31]],Kods1)","v":0},{"$f":"COUNTIF(JūlijaApmeklētība[[#This Row],[1]:[31]],Kods2)","v":0},{"$f":"COUNTIF(JūlijaApmeklētība[[#This Row],[1]:[31]],Kods3)","v":0},{"$f":"COUNTIF(JūlijaApmeklētība[[#This Row],[1]:[31]],Kods4)","v":0},{"$f":"SUM(JūlijaApmeklētība[[#This Row],[A]:[N]])","v":0}]
[null,null,{"$f":"IFERROR(VLOOKUP(JūlijaApmeklētība[[#This Row],[Audzēkņa ID]],AudzēkņuSaraksts[],18,FALSE),\"\")","v":""},{"$nulls":31},{"$f":"COUNTIF(JūlijaApmeklētība[[#This Row],[1]:[31]],Kods1)","v":0},{"$f":"COUNTIF(JūlijaApmeklētība[[#This Row],[1]:[31]],Kods2)","v":0},{"$f":"COUNTIF(JūlijaApmeklētība[[#This Row],[1]:[31]],Kods3)","v":0},{"$f":"COUNTIF(JūlijaApmeklētība[[#This Row],[1]:[31]],Kods4)","v":0},{"$f":"SUM(JūlijaApmeklētība[[#This Row],[A]:[N]])","v":0}]
[null,null,{"$f":"IFERROR(VLOOKUP(JūlijaApmeklētība[[#This Row],[Audzēkņa ID]],AudzēkņuSaraksts[],18,FALSE),\"\")","v":""},{"$nulls":31},{"$f":"COUNTIF(JūlijaApmeklētība[[#This Row],[1]:[31]],Kods1)","v":0},{"$f":"COUNTIF(JūlijaApmeklētība[[#This Row],[1]:[31]],Kods2)","v":0},{"$f":"COUNTIF(JūlijaApmeklētība[[#This Row],[1]:[31]],Kods3)","v":0},{"$f":"COUNTIF(JūlijaApmeklētība[[#This Row],[1]:[31]],Kods4)","v":0},{"$f":"SUM(JūlijaApmeklētība[[#This Row],[A]:[N]])","v":0}]
[null,null,"Kavētās dienas kopā",{"$f":"COUNTIF(JūlijaApmeklētība[1],\"N\")+COUNTIF(JūlijaApmeklētība[1],\"A\")","v":0},{"$f":"COUNTIF(JūlijaApmeklētība[2],\"N\")+COUNTIF(JūlijaApmeklētība[2],\"A\")","v":0},{"$f":"COUNTIF(JūlijaApmeklētība[3],\"N\")+COUNTIF(JūlijaApmeklētība[3],\"A\")","v":0},{"$f":"COUNTIF(JūlijaApmeklētība[4],\"N\")+COUNTIF(JūlijaApmeklētība[4],\"A\")","v":0},{"$f":"COUNTIF(JūlijaApmeklētība[5],\"N\")+COUNTIF(JūlijaApmeklētība[5],\"A\")","v":0},{"$f":"COUNTIF(JūlijaApmeklētība[6],\"N\")+COUNTIF(JūlijaApmeklētība[6],\"A\")","v":0},{"$f":"COUNTIF(JūlijaApmeklētība[7],\"N\")+COUNTIF(JūlijaApmeklētība[7],\"A\")","v":0},{"$f":"COUNTIF(JūlijaApmeklētība[8],\"N\")+COUNTIF(JūlijaApmeklētība[8],\"A\")","v":0},{"$f":"COUNTIF(JūlijaApmeklētība[9],\"N\")+COUNTIF(JūlijaApmeklētība[9],\"A\")","v":0},{"$f":"COUNTIF(JūlijaApmeklētība[10],\"N\")+COUNTIF(JūlijaApmeklētība[10],\"A\")","v":0},{"$f":"COUNTIF(JūlijaApmeklētība[11],\"N\")+COUNTIF(JūlijaApmeklētība[11],\"A\")","v":0},{"$f":"COUNTIF(JūlijaApmeklētība[12],\"N\")+COUNTIF(JūlijaApmeklētība[12],\"A\")","v":0},{"$f":"COUNTIF(JūlijaApmeklētība[13],\"N\")+COUNTIF(JūlijaApmeklētība[13],\"A\")","v":0},{"$f":"COUNTIF(JūlijaApmeklētība[14],\"N\")+COUNTIF(JūlijaApmeklētība[14],\"A\")","v":0},{"$f":"COUNTIF(JūlijaApmeklētība[15],\"N\")+COUNTIF(JūlijaApmeklētība[15],\"A\")","v":0},{"$f":"COUNTIF(JūlijaApmeklētība[16],\"N\")+COUNTIF(JūlijaApmeklētība[16],\"A\")","v":0},{"$f":"COUNTIF(JūlijaApmeklētība[17],\"N\")+COUNTIF(JūlijaApmeklētība[17],\"A\")","v":0},{"$f":"COUNTIF(JūlijaApmeklētība[18],\"N\")+COUNTIF(JūlijaApmeklētība[18],\"A\")","v":0},{"$f":"COUNTIF(JūlijaApmeklētība[19],\"N\")+COUNTIF(JūlijaApmeklētība[19],\"A\")","v":0},{"$f":"COUNTIF(JūlijaApmeklētība[20],\"N\")+COUNTIF(JūlijaApmeklētība[20],\"A\")","v":0},{"$f":"COUNTIF(JūlijaApmeklētība[21],\"N\")+COUNTIF(JūlijaApmeklētība[21],\"A\")","v":0},{"$f":"COUNTIF(JūlijaApmeklētība[22],\"N\")+COUNTIF(JūlijaApmeklētība[22],\"A\")","v":0},{"$f":"COUNTIF(JūlijaApmeklētība[23],\"N\")+COUNTIF(JūlijaApmeklētība[23],\"A\")","v":0},{"$f":"COUNTIF(JūlijaApmeklētība[24],\"N\")+COUNTIF(JūlijaApmeklētība[24],\"A\")","v":0},{"$f":"COUNTIF(JūlijaApmeklētība[25],\"N\")+COUNTIF(JūlijaApmeklētība[25],\"A\")","v":0},{"$f":"COUNTIF(JūlijaApmeklētība[26],\"N\")+COUNTIF(JūlijaApmeklētība[26],\"A\")","v":0},{"$f":"COUNTIF(JūlijaApmeklētība[27],\"N\")+COUNTIF(JūlijaApmeklētība[27],\"A\")","v":0},{"$f":"COUNTIF(JūlijaApmeklētība[28],\"N\")+COUNTIF(JūlijaApmeklētība[28],\"A\")","v":0},{"$f":"COUNTIF(JūlijaApmeklētība[29],\"N\")+COUNTIF(JūlijaApmeklētība[29],\"A\")","v":0},{"$f":"COUNTIF(JūlijaApmeklētība[30],\"N\")+COUNTIF(JūlijaApmeklētība[30],\"A\")","v":0},{"$f":"COUNTIF(JūlijaApmeklētība[31],\"N\")+COUNTIF(JūlijaApmeklētība[31],\"A\")","v":0},{"$f":"SUBTOTAL(109,JūlijaApmeklētība[K])","v":0},{"$f":"SUBTOTAL(109,JūlijaApmeklētība[A])","v":0},{"$f":"SUBTOTAL(109,JūlijaApmeklētība[N])","v":0},{"$f":"SUBTOTAL(109,JūlijaApmeklētība[P])","v":0},{"$f":"SUBTOTAL(109,JūlijaApmeklētība[Kavētās dienas])","v":0}]

{"sheet":"Atskaite par dalību studentu","index":14,"n_rows":40,"n_cols":37,"rows_kept":40,"merged":[[2,3,2,14],[2,15,2,17],[2,18,2,21],[2,22,2,29],[2,30,2,31],[2,32,2,35],[3,1,3,2],[3,3,3,14],[3,15,3,17],[3,18,3,21],[3,22,3,29],[3,30,3,31],[3,32,3,35],[4,1,4,9],[4,10,4,21],[4,22,4,29],[4,30,4,36],[5,1,5,9],[5,10,5,21],[5,22,5,29],[5,30,5,36],[6,1,6,9],[6,10,6,21],[6,22,6,29],[6,30,6,36],[7,1,7,9],[7,10,7,21],[7,22,7,29],[7,30,7,36],[8,1,8,9],[8,10,8,21],[8,22,8,29],[8,30,8,36],[9,1,9,9],[9,10,9,21],[9,22,9,29],[9,30,9,36],[13,1,14,32],[13,33,13,36],[15,1,16,1],[15,33,16,33],[15,34,16,34],[15,35,16,35],[15,36,16,36],[17,1,18,1],[17,33,18,33],[17,34,18,34],[17,35,18,35],[17,36,18,36],[19,1,20,1],[19,33,20,33],[19,34,20,34],[19,35,20,35],[19,36,20,36],[21,1,22,1],[21,33,22,33],[21,34,22,34],[21,35,22,35],[21,36,22,36],[23,1,24,1],[23,33,24,33],[23,34,24,34],[23,35,24,35],[23,36,24,36],[25,1,26,1],[25,33,26,33],[25,34,26,34],[25,35,26,35],[25,36,26,36],[27,1,28,1],[27,33,28,33],[27,34,28,34],[27,35,28,35],[27,36,28,36],[29,1,30,1],[29,33,30,33],[29,34,30,34],[29,35,30,35],[29,36,30,36],[31,1,32,1],[31,33,32,33],[31,34,32,34],[31,35,32,35],[31,36,32,36],[33,1,34,1],[33,33,34,33],[33,34,34,34],[33,35,34,35],[33,36,34,36],[35,1,36,1],[35,33,36,33],[35,34,36,34],[35,35,36,35],[35,36,36,36],[37,1,38,1],[37,33,38,33],[37,34,38,34],[37,35,38,35],[37,36,38,36],[39,30,39,32]]}
[{"$f":"\"Apmeklētības ieraksts par \"","v":"Apmeklētības ieraksts par "},{"$nulls":7},{"$f":"D4","v":"Andris Balodis"}]
[]
[null,"Audzēkņa ID",null,"Audzēkņa vārds",{"$nulls":11},"Dzimums",null,null,"Dzimšanas datums",{"$nulls":3},"Skola",{"$nulls":7},"Līmenis",null,"Skolotājs",{"$nulls":3},"Telpa"]
[null,"S001",null,{"$f":"IFERROR(VLOOKUP(StudentuUzmeklēšana,AudzēkņuSaraksts[],18,FALSE),\"\")","v":"Andris Balodis"},{"$nulls":11},{"$f":"IFERROR(VLOOKUP(StudentuUzmeklēšana,AudzēkņuSaraksts[],4,FALSE),\"\")","v":"M"},null,null,{"$f":"IFERROR(VLOOKUP(StudentuUzmeklēšana,AudzēkņuSaraksts[],5,FALSE),\"\")","v":"1997-03-28"},{"$nulls":3},"Lietišķās mākslas skola ",{"$nulls":7},7,null,"Mareks Stūris",{"$nulls":3},123]
[null,"Viens no vecākiem/aizbildnis 1, vārds",{"$nulls":8},"Radniecība",{"$nulls":11},"Darba tālruņa numurs",{"$nulls":7},"Mājas tālruņa numurs"]
[null,{"$f":"IFERROR(VLOOKUP(StudentuUzmeklēšana,AudzēkņuSaraksts[],6,FALSE),\"\")","v":"Antra"},{"$nulls":8},{"$f":"IFERROR(VLOOKUP(StudentuUzmeklēšana,AudzēkņuSaraksts[],7,FALSE),\"\")","v":"Balodis"},{"$nulls":11},{"$f":"IFERROR(VLOOKUP(StudentuUzmeklēšana,AudzēkņuSaraksts[],8,FALSE),\"\")","v":1235550134},{"$nulls":7},{"$f":"IFERROR(VLOOKUP(StudentuUzmeklēšana,AudzēkņuSaraksts[],9,FALSE),\"\")","v":2345550134}]
[null,"Viens no vecākiem/aizbildnis 2, vārds",{"$nulls":8},"Radniecība",{"$nulls":11},"Darba tālruņa numurs",{"$nulls":7},"Mājas tālruņa numurs"]
[null,{"$f":"IFERROR(VLOOKUP(StudentuUzmeklēšana,AudzēkņuSaraksts[],10,FALSE),\"\")","v":"Jānis Balodis"},{"$nulls":8},{"$f":"IFERROR(VLOOKUP(StudentuUzmeklēšana,AudzēkņuSaraksts[],11,FALSE),\"\")","v":"Tēvs"},{"$nulls":11},{"$f":"IFERROR(VLOOKUP(StudentuUzmeklēšana,AudzēkņuSaraksts[],12,FALSE),\"\")","v":1235550134},{"$nulls":7},{"$f":"IFERROR(VLOOKUP(StudentuUzmeklēšana,AudzēkņuSaraksts[],13,FALSE),\"\")","v":2345550134}]
[null,"Kontaktpersona ārkārtas gadījumiem",{"$nulls":8},"Radniecība",{"$nulls":11},"Darba tālruņa numurs",{"$nulls":7},"Mājas tālruņa numurs"]
[null,{"$f":"IFERROR(VLOOKUP(StudentuUzmeklēšana,AudzēkņuSaraksts[],14,FALSE),\"\")","v":"Ivars Zvaniņš"},{"$nulls":8},{"$f":"IFERROR(VLOOKUP(StudentuUzmeklēšana,AudzēkņuSaraksts[],15,FALSE),\"\")","v":"Vectēvs"},{"$nulls":11},{"$f":"IFERROR(VLOOKUP(StudentuUzmeklēšana,AudzēkņuSaraksts[],16,FALSE),\"\")","v":7895550189},{"$nulls":7},{"$f":"IFERROR(VLOOKUP(StudentuUzmeklēšana,AudzēkņuSaraksts[],17,FALSE),\"\")","v":7895550134}]
[]
[null,{"$f":"Augusts!C3","v":"KRĀSU KODS "},{"$f":"Augusts!D3","v":"K"},{"$f":"Augusts!E3","v":"Kavēts"},null,null,{"$f":"Augusts!H3","v":"A"},{"$f":"Augusts!I3","v":"Attaisnoti"},null,null,{"$f":"Augusts!L3","v":"N"},{"$f":"Augusts!M3","v":"Neattaisnoti"},{"$nulls":3},{"$f":"Augusts!P3","v":"P"},{"$f":"Augusts!Q3","v":"Klātbūtne"},null,null,{"$f":"Augusts!T3","v":"N1"},{"$f":"Augusts!U3","v":"Neviena skola"}]
[]
[null,"Apmeklējums",{"$nulls":31},"Apmeklējums kopā"]
[{"$nulls":33},"K","A","N","P"]
[null,"Augusts",1,2,3,4,5,6,7,8,9,10,11,12,13,14,15,16,17,18,19,20,21,22,23,24,25,26,27,28,29,30,31,{"$f":"COUNTIF($D17:$AH17,Kods1)","v":2},{"$f":"COUNTIF($D17:$AH17,Kods2)","v":1},{"$f":"COUNTIF($D17:$AH17,Kods3)","v":0},{"$f":"COUNTIF($D17:$AH17,Kods4)","v":19}]
[null,null,{"$f":"IFERROR(VLOOKUP(StudentuUzmeklēšana,AugustaApmeklētība[],3,FALSE),\"\")","v":"P"},{"$f":"IFERROR(VLOOKUP(StudentuUzmeklēšana,AugustaApmeklētība[],4,FALSE),\"\")","v":"P"},{"$f":"IFERROR(VLOOKUP(StudentuUzmeklēšana,AugustaApmeklētība[],5,FALSE),\"\")","v":"K"},{"$f":"IFERROR(VLOOKUP(StudentuUzmeklēšana,AugustaApmeklētība[],6,FALSE),\"\")","v":"K"},{"$f":"IFERROR(VLOOKUP(StudentuUzmeklēšana,AugustaApmeklētība[],7,FALSE),\"\")","v":"P"},{"$f":"IFERROR(VLOOKUP(StudentuUzmeklēšana,AugustaApmeklētība[],8,FALSE),\"\")","v":"N1"},{"$f":"IFERROR(VLOOKUP(StudentuUzmeklēšana,AugustaApmeklētība[],9,FALSE),\"\")","v":"N1"},{"$f":"IFERROR(VLOOKUP(StudentuUzmeklēšana,AugustaApmeklētība[],10,FALSE),\"\")","v":"P"},{"$f":"IFERROR(VLOOKUP(StudentuUzmeklēšana,AugustaApmeklētība[],11,FALSE),\"\")","v":"P"},{"$f":"IFERROR(VLOOKUP(StudentuUzmeklēšana,AugustaApmeklētība[],12,FALSE),\"\")","v":"A"},{"$f":"IFERROR(VLOOKUP(StudentuUzmeklēšana,AugustaApmeklētība[],13,FALSE),\"\")","v":"P"},{"$f":"IFERROR(VLOOKUP(StudentuUzmeklēšana,AugustaApmeklētība[],14,FALSE),\"\")","v":"P"},{"$f":"IFERROR(VLOOKUP(StudentuUzmeklēšana,AugustaApmeklētība[],15,FALSE),\"\")","v":"N1"},{"$f":"IFERROR(VLOOKUP(StudentuUzmeklēšana,AugustaApmeklētība[],16,FALSE),\"\")","v":"N1"},{"$f":"IFERROR(VLOOKUP(StudentuUzmeklēšana,AugustaApmeklētība[],17,FALSE),\"\")","v":"P"},{"$f":"IFERROR(VLOOKUP(StudentuUzmeklēšana,AugustaApmeklētība[],18,FALSE),\"\")","v":"P"},{"$f":"IFERROR(VLOOKUP(StudentuUzmeklēšana,AugustaApmeklētība[],19,FALSE),\"\")","v":"P"},{"$f":"IFERROR(VLOOKUP(StudentuUzmeklēšana,AugustaApmeklētība[],20,FALSE),\"\")","v":"P"},{"$f":"IFERROR(VLOOKUP(StudentuUzmeklēšana,AugustaApmeklētība[],21,FALSE),\"\")","v":"P"},{"$f":"IFERROR(VLOOKUP(StudentuUzmeklēšana,AugustaApmeklētība[],22,FALSE),\"\")","v":"N1"},{"$f":"IFERROR(VLOOKUP(StudentuUzmeklēšana,AugustaApmeklētība[],23,FALSE),\"\")","v":"N1"},{"$f":"IFERROR(VLOOKUP(StudentuUzmeklēšana,AugustaApmeklētība[],24,FALSE),\"\")","v":"P"},{"$f":"IFERROR(VLOOKUP(StudentuUzmeklēšana,AugustaApmeklētība[],25,FALSE),\"\")","v":"P"},{"$f":"IFERROR(VLOOKUP(StudentuUzmeklēšana,AugustaApmeklētība[],26,FALSE),\"\")","v":"P"},{"$f":"IFERROR(VLOOKUP(StudentuUzmeklēšana,AugustaApmeklētība[],27,FALSE),\"\")","v":"P"},{"$f":"IFERROR(VLOOKUP(StudentuUzmeklēšana,AugustaApmeklētība[],28,FALSE),\"\")","v":"P"},{"$f":"IFERROR(VLOOKUP(StudentuUzmeklēšana,AugustaApmeklētība[],29,FALSE),\"\")","v":"N1"},{"$f":"IFERROR(VLOOKUP(StudentuUzmeklēšana,AugustaApmeklētība[],30,FALSE),\"\")","v":"N1"},{"$f":"IFERROR(VLOOKUP(StudentuUzmeklēšana,AugustaApmeklētība[],31,FALSE),\"\")","v":"P"},{"$f":"IFERROR(VLOOKUP(StudentuUzmeklēšana,AugustaApmeklētība[],32,FALSE),\"\")","v":"P"},{"$f":"IFERROR(VLOOKUP(StudentuUzmeklēšana,AugustaApmeklētība[],33,FALSE),\"\")","v":"P"}]
[null,"Septembris",1,2,3,4,5,6,7,8,9,10,11,12,13,14,15,16,17,18,19,20,21,22,23,24,25,26,27,28,29,30,null,{"$f":"COUNTIF($D19:$AH19,Kods1)","v":0},{"$f":"COUNTIF($D19:$AH19,Kods2)","v":0},{"$f":"COUNTIF($D19:$AH19,Kods3)","v":0},{"$f":"COUNTIF($D19:$AH19,Kods4)","v":0}]
[null,null,{"$f":"IFERROR(VLOOKUP(StudentuUzmeklēšana,SeptembraApmeklētība[],3,FALSE),\"\")","v":""},{"$f":"IFERROR(VLOOKUP(StudentuUzmeklēšana,SeptembraApmeklētība[],4,FALSE),\"\")","v":""},{"$f":"IFERROR(VLOOKUP(StudentuUzmeklēšana,SeptembraApmeklētība[],5,FALSE),\"\")","v":""},{"$f":"IFERROR(VLOOKUP(StudentuUzmeklēšana,SeptembraApmeklētība[],6,FALSE),\"\")","v":""},{"$f":"IFERROR(VLOOKUP(StudentuUzmeklēšana,SeptembraApmeklētība[],7,FALSE),\"\")","v":""},{"$f":"IFERROR(VLOOKUP(StudentuUzmeklēšana,SeptembraApmeklētība[],8,FALSE),\"\")","v":""},{"$f":"IFERROR(VLOOKUP(StudentuUzmeklēšana,SeptembraApmeklētība[],9,FALSE),\"\")","v":""},{"$f":"IFERROR(VLOOKUP(StudentuUzmeklēšana,SeptembraApmeklētība[],10,FALSE),\"\")","v":""},{"$f":"IFERROR(VLOOKUP(StudentuUzmeklēšana,SeptembraApmeklētība[],11,FALSE),\"\")","v":""},{"$f":"IFERROR(VLOOKUP(StudentuUzmeklēšana,SeptembraApmeklētība[],12,FALSE),\"\")","v":""},{"$f":"IFERROR(VLOOKUP(StudentuUzmeklēšana,SeptembraApmeklētība[],13,FALSE),\"\")","v":""},{"$f":"IFERROR(VLOOKUP(StudentuUzmeklēšana,SeptembraApmeklētība[],14,FALSE),\"\")","v":""},{"$f":"IFERROR(VLOOKUP(StudentuUzmeklēšana,SeptembraApmeklētība[],15,FALSE),\"\")","v":""},{"$f":"IFERROR(VLOOKUP(StudentuUzmeklēšana,SeptembraApmeklētība[],16,FALSE),\"\")","v":""},{"$f":"IFERROR(VLOOKUP(StudentuUzmeklēšana,SeptembraApmeklētība[],17,FALSE),\"\")","v":""},{"$f":"IFERROR(VLOOKUP(StudentuUzmeklēšana,SeptembraApmeklētība[],18,FALSE),\"\")","v":""},{"$f":"IFERROR(VLOOKUP(StudentuUzmeklēšana,SeptembraApmeklētība[],19,FALSE),\"\")","v":""},{"$f":"IFERROR(VLOOKUP(StudentuUzmeklēšana,SeptembraApmeklētība[],20,FALSE),\"\")","v":""},{"$f":"IFERROR(VLOOKUP(StudentuUzmeklēšana,SeptembraApmeklētība[],21,FALSE),\"\")","v":""},{"$f":"IFERROR(VLOOKUP(StudentuUzmeklēšana,SeptembraApmeklētība[],22,FALSE),\"\")","v":""},{"$f":"IFERROR(VLOOKUP(StudentuUzmeklēšana,SeptembraApmeklētība[],23,FALSE),\"\")","v":""},{"$f":"IFERROR(VLOOKUP(StudentuUzmeklēšana,SeptembraApmeklētība[],24,FALSE),\"\")","v":""},{"$f":"IFERROR(VLOOKUP(StudentuUzmeklēšana,SeptembraApmeklētība[],25,FALSE),\"\")","v":""},{"$f":"IFERROR(VLOOKUP(StudentuUzmeklēšana,SeptembraApmeklētība[],26,FALSE),\"\")","v":""},{"$f":"IFERROR(VLOOKUP(StudentuUzmeklēšana,SeptembraApmeklētība[],27,FALSE),\"\")","v":""},{"$f":"IFERROR(VLOOKUP(StudentuUzmeklēšana,SeptembraApmeklētība[],28,FALSE),\"\")","v":""},{"$f":"IFERROR(VLOOKUP(StudentuUzmeklēšana,SeptembraApmeklētība[],29,FALSE),\"\")","v":""},{"$f":"IFERROR(VLOOKUP(StudentuUzmeklēšana,SeptembraApmeklētība[],30,FALSE),\"\")","v":""},{"$f":"IFERROR(VLOOKUP(StudentuUzmeklēšana,SeptembraApmeklētība[],31,FALSE),\"\")","v":""},{"$f":"IFERROR(VLOOKUP(StudentuUzmeklēšana,SeptembraApmeklētība[],32,FALSE),\"\")","v":""}]
[null,"Oktobris",1,2,3,4,5,6,7,8,9,10,11,12,13,14,15,16,17,18,19,20,21,22,23,24,25,26,27,28,29,30,31,{"$f":"COUNTIF($D21:$AH21,Kods1)","v":0},{"$f":"COUNTIF($D21:$AH21,Kods2)","v":0},{"$f":"COUNTIF($D21:$AH21,Kods3)","v":0},{"$f":"COUNTIF($D21:$AH21,Kods4)","v":0}]
[null,null,{"$f":"IFERROR(VLOOKUP(StudentuUzmeklēšana,OktobraApmeklētība[],3,FALSE),\"\")","v":""},{"$f":"IFERROR(VLOOKUP(StudentuUzmeklēšana,OktobraApmeklētība[],4,FALSE),\"\")","v":""},{"$f":"IFERROR(VLOOKUP(StudentuUzmeklēšana,OktobraApmeklētība[],5,FALSE),\"\")","v":""},{"$f":"IFERROR(VLOOKUP(StudentuUzmeklēšana,OktobraApmeklētība[],6,FALSE),\"\")","v":""},{"$f":"IFERROR(VLOOKUP(StudentuUzmeklēšana,OktobraApmeklētība[],7,FALSE),\"\")","v":""},{"$f":"IFERROR(VLOOKUP(StudentuUzmeklēšana,OktobraApmeklētība[],8,FALSE),\"\")","v":""},{"$f":"IFERROR(VLOOKUP(StudentuUzmeklēšana,OktobraApmeklētība[],9,FALSE),\"\")","v":""},{"$f":"IFERROR(VLOOKUP(StudentuUzmeklēšana,OktobraApmeklētība[],10,FALSE),\"\")","v":""},{"$f":"IFERROR(VLOOKUP(StudentuUzmeklēšana,OktobraApmeklētība[],11,FALSE),\"\")","v":""},{"$f":"IFERROR(VLOOKUP(StudentuUzmeklēšana,OktobraApmeklētība[],12,FALSE),\"\")","v":""},{"$f":"IFERROR(VLOOKUP(StudentuUzmeklēšana,OktobraApmeklētība[],13,FALSE),\"\")","v":""},{"$f":"IFERROR(VLOOKUP(StudentuUzmeklēšana,OktobraApmeklētība[],14,FALSE),\"\")","v":""},{"$f":"IFERROR(VLOOKUP(StudentuUzmeklēšana,OktobraApmeklētība[],15,FALSE),\"\")","v":""},{"$f":"IFERROR(VLOOKUP(StudentuUzmeklēšana,OktobraApmeklētība[],16,FALSE),\"\")","v":""},{"$f":"IFERROR(VLOOKUP(StudentuUzmeklēšana,OktobraApmeklētība[],17,FALSE),\"\")","v":""},{"$f":"IFERROR(VLOOKUP(StudentuUzmeklēšana,OktobraApmeklētība[],18,FALSE),\"\")","v":""},{"$f":"IFERROR(VLOOKUP(StudentuUzmeklēšana,OktobraApmeklētība[],19,FALSE),\"\")","v":""},{"$f":"IFERROR(VLOOKUP(StudentuUzmeklēšana,OktobraApmeklētība[],20,FALSE),\"\")","v":""},{"$f":"IFERROR(VLOOKUP(StudentuUzmeklēšana,OktobraApmeklētība[],21,FALSE),\"\")","v":""},{"$f":"IFERROR(VLOOKUP(StudentuUzmeklēšana,OktobraApmeklētība[],22,FALSE),\"\")","v":""},{"$f":"IFERROR(VLOOKUP(StudentuUzmeklēšana,OktobraApmeklētība[],23,FALSE),\"\")","v":""},{"$f":"IFERROR(VLOOKUP(StudentuUzmeklēšana,OktobraApmeklētība[],24,FALSE),\"\")","v":""},{"$f":"IFERROR(VLOOKUP(StudentuUzmeklēšana,OktobraApmeklētība[],25,FALSE),\"\")","v":""},{"$f":"IFERROR(VLOOKUP(StudentuUzmeklēšana,OktobraApmeklētība[],26,FALSE),\"\")","v":""},{"$f":"IFERROR(VLOOKUP(StudentuUzmeklēšana,OktobraApmeklētība[],27,FALSE),\"\")","v":""},{"$f":"IFERROR(VLOOKUP(StudentuUzmeklēšana,OktobraApmeklētība[],28,FALSE),\"\")","v":""},{"$f":"IFERROR(VLOOKUP(StudentuUzmeklēšana,OktobraApmeklētība[],29,FALSE),\"\")","v":""},{"$f":"IFERROR(VLOOKUP(StudentuUzmeklēšana,OktobraApmeklētība[],30,FALSE),\"\")","v":""},{"$f":"IFERROR(VLOOKUP(StudentuUzmeklēšana,OktobraApmeklētība[],31,FALSE),\"\")","v":""},{"$f":"IFERROR(VLOOKUP(StudentuUzmeklēšana,OktobraApmeklētība[],32,FALSE),\"\")","v":""},{"$f":"IFERROR(VLOOKUP(StudentuUzmeklēšana,OktobraApmeklētība[],33,FALSE),\"\")","v":""}]
[null,"Novembris",1,2,3,4,5,6,7,8,9,10,11,12,13,14,15,16,17,18,19,20,21,22,23,24,25,26,27,28,29,30,null,{"$f":"COUNTIF($D23:$AH23,Kods1)","v":0},{"$f":"COUNTIF($D23:$AH23,Kods2)","v":0},{"$f":"COUNTIF($D23:$AH23,Kods3)","v":0},{"$f":"COUNTIF($D23:$AH23,Kods4)","v":0}]
[null,null,{"$f":"IFERROR(VLOOKUP(StudentuUzmeklēšana,NovembraApmeklētība[],3,FALSE),\"\")","v":""},{"$f":"IFERROR(VLOOKUP(StudentuUzmeklēšana,NovembraApmeklētība[],4,FALSE),\"\")","v":""},{"$f":"IFERROR(VLOOKUP(StudentuUzmeklēšana,NovembraApmeklētība[],5,FALSE),\"\")","v":""},{"$f":"IFERROR(VLOOKUP(StudentuUzmeklēšana,NovembraApmeklētība[],6,FALSE),\"\")","v":""},{"$f":"IFERROR(VLOOKUP(StudentuUzmeklēšana,NovembraApmeklētība[],7,FALSE),\"\")","v":""},{"$f":"IFERROR(VLOOKUP(StudentuUzmeklēšana,NovembraApmeklētība[],8,FALSE),\"\")","v":""},{"$f":"IFERROR(VLOOKUP(StudentuUzmeklēšana,NovembraApmeklētība[],9,FALSE),\"\")","v":""},{"$f":"IFERROR(VLOOKUP(StudentuUzmeklēšana,NovembraApmeklētība[],10,FALSE),\"\")","v":""},{"$f":"IFERROR(VLOOKUP(StudentuUzmeklēšana,NovembraApmeklētība[],11,FALSE),\"\")","v":""},{"$f":"IFERROR(VLOOKUP(StudentuUzmeklēšana,NovembraApmeklētība[],12,FALSE),\"\")","v":""},{"$f":"IFERROR(VLOOKUP(StudentuUzmeklēšana,NovembraApmeklētība[],13,FALSE),\"\")","v":""},{"$f":"IFERROR(VLOOKUP(StudentuUzmeklēšana,NovembraApmeklētība[],14,FALSE),\"\")","v":""},{"$f":"IFERROR(VLOOKUP(StudentuUzmeklēšana,NovembraApmeklētība[],15,FALSE),\"\")","v":""},{"$f":"IFERROR(VLOOKUP(StudentuUzmeklēšana,NovembraApmeklētība[],16,FALSE),\"\")","v":""},{"$f":"IFERROR(VLOOKUP(StudentuUzmeklēšana,NovembraApmeklētība[],17,FALSE),\"\")","v":""},{"$f":"IFERROR(VLOOKUP(StudentuUzmeklēšana,NovembraApmeklētība[],18,FALSE),\"\")","v":""},{"$f":"IFERROR(VLOOKUP(StudentuUzmeklēšana,NovembraApmeklētība[],19,FALSE),\"\")","v":""},{"$f":"IFERROR(VLOOKUP(StudentuUzmeklēšana,NovembraApmeklētība[],20,FALSE),\"\")","v":""},{"$f":"IFERROR(VLOOKUP(StudentuUzmeklēšana,NovembraApmeklētība[],21,FALSE),\"\")","v":""},{"$f":"IFERROR(VLOOKUP(StudentuUzmeklēšana,NovembraApmeklētība[],22,FALSE),\"\")","v":""},{"$f":"IFERROR(VLOOKUP(StudentuUzmeklēšana,NovembraApmeklētība[],23,FALSE),\"\")","v":""},{"$f":"IFERROR(VLOOKUP(StudentuUzmeklēšana,NovembraApmeklētība[],24,FALSE),\"\")","v":""},{"$f":"IFERROR(VLOOKUP(StudentuUzmeklēšana,NovembraApmeklētība[],25,FALSE),\"\")","v":""},{"$f":"IFERROR(VLOOKUP(StudentuUzmeklēšana,NovembraApmeklētība[],26,FALSE),\"\")","v":""},{"$f":"IFERROR(VLOOKUP(StudentuUzmeklēšana,NovembraApmeklētība[],27,FALSE),\"\")","v":""},{"$f":"IFERROR(VLOOKUP(StudentuUzmeklēšana,NovembraApmeklētība[],28,FALSE),\"\")","v":""},{"$f":"IFERROR(VLOOKUP(StudentuUzmeklēšana,NovembraApmeklētība[],29,FALSE),\"\")","v":""},{"$f":"IFERROR(VLOOKUP(StudentuUzmeklēšana,NovembraApmeklētība[],30,FALSE),\"\")","v":""},{"$f":"IFERROR(VLOOKUP(StudentuUzmeklēšana,NovembraApmeklētība[],31,FALSE),\"\")","v":""},{"$f":"IFERROR(VLOOKUP(StudentuUzmeklēšana,NovembraApmeklētība[],32,FALSE),\"\")","v":""}]
[null,"Decembris",1,2,3,4,5,6,7,8,9,10,11,12,13,14,15,16,17,18,19,20,21,22,23,24,25,26,27,28,29,30,31,{"$f":"COUNTIF($D25:$AH25,Kods1)","v":0},{"$f":"COUNTIF($D25:$AH25,Kods2)","v":0},{"$f":"COUNTIF($D25:$AH25,Kods3)","v":0},{"$f":"COUNTIF($D25:$AH25,Kods4)","v":0}]
[null,null,{"$f":"IFERROR(VLOOKUP(StudentuUzmeklēšana,DecembraApmeklētība[],3,FALSE),\"\")","v":""},{"$f":"IFERROR(VLOOKUP(StudentuUzmeklēšana,DecembraApmeklētība[],4,FALSE),\"\")","v":""},{"$f":"IFERROR(VLOOKUP(StudentuUzmeklēšana,DecembraApmeklētība[],5,FALSE),\"\")","v":""},{"$f":"IFERROR(VLOOKUP(StudentuUzmeklēšana,DecembraApmeklētība[],6,FALSE),\"\")","v":""},{"$f":"IFERROR(VLOOKUP(StudentuUzmeklēšana,DecembraApmeklētība[],7,FALSE),\"\")","v":""},{"$f":"IFERROR(VLOOKUP(StudentuUzmeklēšana,DecembraApmeklētība[],8,FALSE),\"\")","v":""},{"$f":"IFERROR(VLOOKUP(StudentuUzmeklēšana,DecembraApmeklētība[],9,FALSE),\"\")","v":""},{"$f":"IFERROR(VLOOKUP(StudentuUzmeklēšana,DecembraApmeklētība[],10,FALSE),\"\")","v":""},{"$f":"IFERROR(VLOOKUP(StudentuUzmeklēšana,DecembraApmeklētība[],11,FALSE),\"\")","v":""},{"$f":"IFERROR(VLOOKUP(StudentuUzmeklēšana,DecembraApmeklētība[],12,FALSE),\"\")","v":""},{"$f":"IFERROR(VLOOKUP(StudentuUzmeklēšana,DecembraApmeklētība[],13,FALSE),\"\")","v":""},{"$f":"IFERROR(VLOOKUP(StudentuUzmeklēšana,DecembraApmeklētība[],14,FALSE),\"\")","v":""},{"$f":"IFERROR(VLOOKUP(StudentuUzmeklēšana,DecembraApmeklētība[],15,FALSE),\"\")","v":""},{"$f":"IFERROR(VLOOKUP(StudentuUzmeklēšana,DecembraApmeklētība[],16,FALSE),\"\")","v":""},{"$f":"IFERROR(VLOOKUP(StudentuUzmeklēšana,DecembraApmeklētība[],17,FALSE),\"\")","v":""},{"$f":"IFERROR(VLOOKUP(StudentuUzmeklēšana,DecembraApmeklētība[],18,FALSE),\"\")","v":""},{"$f":"IFERROR(VLOOKUP(StudentuUzmeklēšana,DecembraApmeklētība[],19,FALSE),\"\")","v":""},{"$f":"IFERROR(VLOOKUP(StudentuUzmeklēšana,DecembraApmeklētība[],20,FALSE),\"\")","v":""},{"$f":"IFERROR(VLOOKUP(StudentuUzmeklēšana,DecembraApmeklētība[],21,FALSE),\"\")","v":""},{"$f":"IFERROR(VLOOKUP(StudentuUzmeklēšana,DecembraApmeklētība[],22,FALSE),\"\")","v":""},{"$f":"IFERROR(VLOOKUP(StudentuUzmeklēšana,DecembraApmeklētība[],23,FALSE),\"\")","v":""},{"$f":"IFERROR(VLOOKUP(StudentuUzmeklēšana,DecembraApmeklētība[],24,FALSE),\"\")","v":""},{"$f":"IFERROR(VLOOKUP(StudentuUzmeklēšana,DecembraApmeklētība[],25,FALSE),\"\")","v":""},{"$f":"IFERROR(VLOOKUP(StudentuUzmeklēšana,DecembraApmeklētība[],26,FALSE),\"\")","v":""},{"$f":"IFERROR(VLOOKUP(StudentuUzmeklēšana,DecembraApmeklētība[],27,FALSE),\"\")","v":""},{"$f":"IFERROR(VLOOKUP(StudentuUzmeklēšana,DecembraApmeklētība[],28,FALSE),\"\")","v":""},{"$f":"IFERROR(VLOOKUP(StudentuUzmeklēšana,DecembraApmeklētība[],29,FALSE),\"\")","v":""},{"$f":"IFERROR(VLOOKUP(StudentuUzmeklēšana,DecembraApmeklētība[],30,FALSE),\"\")","v":""},{"$f":"IFERROR(VLOOKUP(StudentuUzmeklēšana,DecembraApmeklētība[],31,FALSE),\"\")","v":""},{"$f":"IFERROR(VLOOKUP(StudentuUzmeklēšana,DecembraApmeklētība[],32,FALSE),\"\")","v":""},{"$f":"IFERROR(VLOOKUP(StudentuUzmeklēšana,DecembraApmeklētība[],33,FALSE),\"\")","v":""}]
[null,"Janvāris",1,2,3,4,5,6,7,8,9,10,11,12,13,14,15,16,17,18,19,20,21,22,23,24,25,26,27,28,29,30,31,{"$f":"COUNTIF($D27:$AH27,Kods1)","v":0},{"$f":"COUNTIF($D27:$AH27,Kods2)","v":0},{"$f":"COUNTIF($D27:$AH27,Kods3)","v":0},{"$f":"COUNTIF($D27:$AH27,Kods4)","v":0}]
[null,null,{"$f":"IFERROR(VLOOKUP(StudentuUzmeklēšana,JanvāraApmeklētība[],3,FALSE),\"\")","v":""},{"$f":"IFERROR(VLOOKUP(StudentuUzmeklēšana,JanvāraApmeklētība[],4,FALSE),\"\")","v":""},{"$f":"IFERROR(VLOOKUP(StudentuUzmeklēšana,JanvāraApmeklētība[],5,FALSE),\"\")","v":""},{"$f":"IFERROR(VLOOKUP(StudentuUzmeklēšana,JanvāraApmeklētība[],6,FALSE),\"\")","v":""},{"$f":"IFERROR(VLOOKUP(StudentuUzmeklēšana,JanvāraApmeklētība[],7,FALSE),\"\")","v":""},{"$f":"IFERROR(VLOOKUP(StudentuUzmeklēšana,JanvāraApmeklētība[],8,FALSE),\"\")","v":""},{"$f":"IFERROR(VLOOKUP(StudentuUzmeklēšana,JanvāraApmeklētība[],9,FALSE),\"\")","v":""},{"$f":"IFERROR(VLOOKUP(StudentuUzmeklēšana,JanvāraApmeklētība[],10,FALSE),\"\")","v":""},{"$f":"IFERROR(VLOOKUP(StudentuUzmeklēšana,JanvāraApmeklētība[],11,FALSE),\"\")","v":""},{"$f":"IFERROR(VLOOKUP(StudentuUzmeklēšana,JanvāraApmeklētība[],12,FALSE),\"\")","v":""},{"$f":"IFERROR(VLOOKUP(StudentuUzmeklēšana,JanvāraApmeklētība[],13,FALSE),\"\")","v":""},{"$f":"IFERROR(VLOOKUP(StudentuUzmeklēšana,JanvāraApmeklētība[],14,FALSE),\"\")","v":""},{"$f":"IFERROR(VLOOKUP(StudentuUzmeklēšana,JanvāraApmeklētība[],15,FALSE),\"\")","v":""},{"$f":"IFERROR(VLOOKUP(StudentuUzmeklēšana,JanvāraApmeklētība[],16,FALSE),\"\")","v":""},{"$f":"IFERROR(VLOOKUP(StudentuUzmeklēšana,JanvāraApmeklētība[],17,FALSE),\"\")","v":""},{"$f":"IFERROR(VLOOKUP(StudentuUzmeklēšana,JanvāraApmeklētība[],18,FALSE),\"\")","v":""},{"$f":"IFERROR(VLOOKUP(StudentuUzmeklēšana,JanvāraApmeklētība[],19,FALSE),\"\")","v":""},{"$f":"IFERROR(VLOOKUP(StudentuUzmeklēšana,JanvāraApmeklētība[],20,FALSE),\"\")","v":""},{"$f":"IFERROR(VLOOKUP(StudentuUzmeklēšana,JanvāraApmeklētība[],21,FALSE),\"\")","v":""},{"$f":"IFERROR(VLOOKUP(StudentuUzmeklēšana,JanvāraApmeklētība[],22,FALSE),\"\")","v":""},{"$f":"IFERROR(VLOOKUP(StudentuUzmeklēšana,JanvāraApmeklētība[],23,FALSE),\"\")","v":""},{"$f":"IFERROR(VLOOKUP(StudentuUzmeklēšana,JanvāraApmeklētība[],24,FALSE),\"\")","v":""},{"$f":"IFERROR(VLOOKUP(StudentuUzmeklēšana,JanvāraApmeklētība[],25,FALSE),\"\")","v":""},{"$f":"IFERROR(VLOOKUP(StudentuUzmeklēšana,JanvāraApmeklētība[],26,FALSE),\"\")","v":""},{"$f":"IFERROR(VLOOKUP(StudentuUzmeklēšana,JanvāraApmeklētība[],27,FALSE),\"\")","v":""},{"$f":"IFERROR(VLOOKUP(StudentuUzmeklēšana,JanvāraApmeklētība[],28,FALSE),\"\")","v":""},{"$f":"IFERROR(VLOOKUP(StudentuUzmeklēšana,JanvāraApmeklētība[],29,FALSE),\"\")","v":""},{"$f":"IFERROR(VLOOKUP(StudentuUzmeklēšana,JanvāraApmeklētība[],30,FALSE),\"\")","v":""},{"$f":"IFERROR(VLOOKUP(StudentuUzmeklēšana,JanvāraApmeklētība[],31,FALSE),\"\")","v":""},{"$f":"IFERROR(VLOOKUP(StudentuUzmeklēšana,JanvāraApmeklētība[],32,FALSE),\"\")","v":""},{"$f":"IFERROR(VLOOKUP(StudentuUzmeklēšana,JanvāraApmeklētība[],33,FALSE),\"\")","v":""}]
[null,"Februāris",1,2,3,4,5,6,7,8,9,10,11,12,13,14,15,16,17,18,19,20,21,22,23,24,25,26,27,28,29,null,null,{"$f":"COUNTIF($D29:$AH29,Kods1)","v":0},{"$f":"COUNTIF($D29:$AH29,Kods2)","v":0},{"$f":"COUNTIF($D29:$AH29,Kods3)","v":0},{"$f":"COUNTIF($D29:$AH29,Kods4)","v":0}]
[null,null,{"$f":"IFERROR(VLOOKUP(StudentuUzmeklēšana,FebruāraApmeklētība[],3,FALSE),\"\")","v":""},{"$f":"IFERROR(VLOOKUP(StudentuUzmeklēšana,FebruāraApmeklētība[],4,FALSE),\"\")","v":""},{"$f":"IFERROR(VLOOKUP(StudentuUzmeklēšana,FebruāraApmeklētība[],5,FALSE),\"\")","v":""},{"$f":"IFERROR(VLOOKUP(StudentuUzmeklēšana,FebruāraApmeklētība[],6,FALSE),\"\")","v":""},{"$f":"IFERROR(VLOOKUP(StudentuUzmeklēšana,FebruāraApmeklētība[],7,FALSE),\"\")","v":""},{"$f":"IFERROR(VLOOKUP(StudentuUzmeklēšana,FebruāraApmeklētība[],8,FALSE),\"\")","v":""},{"$f":"IFERROR(VLOOKUP(StudentuUzmeklēšana,FebruāraApmeklētība[],9,FALSE),\"\")","v":""},{"$f":"IFERROR(VLOOKUP(StudentuUzmeklēšana,FebruāraApmeklētība[],10,FALSE),\"\")","v":""},{"$f":"IFERROR(VLOOKUP(StudentuUzmeklēšana,FebruāraApmeklētība[],11,FALSE),\"\")","v":""},{"$f":"IFERROR(VLOOKUP(StudentuUzmeklēšana,FebruāraApmeklētība[],12,FALSE),\"\")","v":""},{"$f":"IFERROR(VLOOKUP(StudentuUzmeklēšana,FebruāraApmeklētība[],13,FALSE),\"\")","v":""},{"$f":"IFERROR(VLOOKUP(StudentuUzmeklēšana,FebruāraApmeklētība[],14,FALSE),\"\")","v":""},{"$f":"IFERROR(VLOOKUP(StudentuUzmeklēšana,FebruāraApmeklētība[],15,FALSE),\"\")","v":""},{"$f":"IFERROR(VLOOKUP(StudentuUzmeklēšana,FebruāraApmeklētība[],16,FALSE),\"\")","v":""},{"$f":"IFERROR(VLOOKUP(StudentuUzmeklēšana,FebruāraApmeklētība[],17,FALSE),\"\")","v":""},{"$f":"IFERROR(VLOOKUP(StudentuUzmeklēšana,FebruāraApmeklētība[],18,FALSE),\"\")","v":""},{"$f":"IFERROR(VLOOKUP(StudentuUzmeklēšana,FebruāraApmeklētība[],19,FALSE),\"\")","v":""},{"$f":"IFERROR(VLOOKUP(StudentuUzmeklēšana,FebruāraApmeklētība[],20,FALSE),\"\")","v":""},{"$f":"IFERROR(VLOOKUP(StudentuUzmeklēšana,FebruāraApmeklētība[],21,FALSE),\"\")","v":""},{"$f":"IFERROR(VLOOKUP(StudentuUzmeklēšana,FebruāraApmeklētība[],22,FALSE),\"\")","v":""},{"$f":"IFERROR(VLOOKUP(StudentuUzmeklēšana,FebruāraApmeklētība[],23,FALSE),\"\")","v":""},{"$f":"IFERROR(VLOOKUP(StudentuUzmeklēšana,FebruāraApmeklētība[],24,FALSE),\"\")","v":""},{"$f":"IFERROR(VLOOKUP(StudentuUzmeklēšana,FebruāraApmeklētība[],25,FALSE),\"\")","v":""},{"$f":"IFERROR(VLOOKUP(StudentuUzmeklēšana,FebruāraApmeklētība[],26,FALSE),\"\")","v":""},{"$f":"IFERROR(VLOOKUP(StudentuUzmeklēšana,FebruāraApmeklētība[],27,FALSE),\"\")","v":""},{"$f":"IFERROR(VLOOKUP(StudentuUzmeklēšana,FebruāraApmeklētība[],28,FALSE),\"\")","v":""},{"$f":"IFERROR(VLOOKUP(StudentuUzmeklēšana,FebruāraApmeklētība[],29,FALSE),\"\")","v":""},{"$f":"IFERROR(VLOOKUP(StudentuUzmeklēšana,FebruāraApmeklētība[],30,FALSE),\"\")","v":""},{"$f":"IFERROR(VLOOKUP(StudentuUzmeklēšana,FebruāraApmeklētība[],31,FALSE),\"\")","v":""}]
[null,"Marts",1,2,3,4,5,6,7,8,9,10,11,12,13,14,15,16,17,18,19,20,21,22,23,24,25,26,27,28,29,30,31,{"$f":"COUNTIF($D31:$AH31,Kods1)","v":0},{"$f":"COUNTIF($D31:$AH31,Kods2)","v":0},{"$f":"COUNTIF($D31:$AH31,Kods3)","v":0},{"$f":"COUNTIF($D31:$AH31,Kods4)","v":0}]
[null,null,{"$f":"IFERROR(VLOOKUP(StudentuUzmeklēšana,MartaApmeklētība[],3,FALSE),\"\")","v":""},{"$f":"IFERROR(VLOOKUP(StudentuUzmeklēšana,MartaApmeklētība[],4,FALSE),\"\")","v":""},{"$f":"IFERROR(VLOOKUP(StudentuUzmeklēšana,MartaApmeklētība[],5,FALSE),\"\")","v":""},{"$f":"IFERROR(VLOOKUP(StudentuUzmeklēšana,MartaApmeklētība[],6,FALSE),\"\")","v":""},{"$f":"IFERROR(VLOOKUP(StudentuUzmeklēšana,MartaApmeklētība[],7,FALSE),\"\")","v":""},{"$f":"IFERROR(VLOOKUP(StudentuUzmeklēšana,MartaApmeklētība[],8,FALSE),\"\")","v":""},{"$f":"IFERROR(VLOOKUP(StudentuUzmeklēšana,MartaApmeklētība[],9,FALSE),\"\")","v":""},{"$f":"IFERROR(VLOOKUP(StudentuUzmeklēšana,MartaApmeklētība[],10,FALSE),\"\")","v":""},{"$f":"IFERROR(VLOOKUP(StudentuUzmeklēšana,MartaApmeklētība[],11,FALSE),\"\")","v":""},{"$f":"IFERROR(VLOOKUP(StudentuUzmeklēšana,MartaApmeklētība[],12,FALSE),\"\")","v":""},{"$f":"IFERROR(VLOOKUP(StudentuUzmeklēšana,MartaApmeklētība[],13,FALSE),\"\")","v":""},{"$f":"IFERROR(VLOOKUP(StudentuUzmeklēšana,MartaApmeklētība[],14,FALSE),\"\")","v":""},{"$f":"IFERROR(VLOOKUP(StudentuUzmeklēšana,MartaApmeklētība[],15,FALSE),\"\")","v":""},{"$f":"IFERROR(VLOOKUP(StudentuUzmeklēšana,MartaApmeklētība[],16,FALSE),\"\")","v":""},{"$f":"IFERROR(VLOOKUP(StudentuUzmeklēšana,MartaApmeklētība[],17,FALSE),\"\")","v":""},{"$f":"IFERROR(VLOOKUP(StudentuUzmeklēšana,MartaApmeklētība[],18,FALSE),\"\")","v":""},{"$f":"IFERROR(VLOOKUP(StudentuUzmeklēšana,MartaApmeklētība[],19,FALSE),\"\")","v":""},{"$f":"IFERROR(VLOOKUP(StudentuUzmeklēšana,MartaApmeklētība[],20,FALSE),\"\")","v":""},{"$f":"IFERROR(VLOOKUP(StudentuUzmeklēšana,MartaApmeklētība[],21,FALSE),\"\")","v":""},{"$f":"IFERROR(VLOOKUP(StudentuUzmeklēšana,MartaApmeklētība[],22,FALSE),\"\")","v":""},{"$f":"IFERROR(VLOOKUP(StudentuUzmeklēšana,MartaApmeklētība[],23,FALSE),\"\")","v":""},{"$f":"IFERROR(VLOOKUP(StudentuUzmeklēšana,MartaApmeklētība[],24,FALSE),\"\")","v":""},{"$f":"IFERROR(VLOOKUP(StudentuUzmeklēšana,MartaApmeklētība[],25,FALSE),\"\")","v":""},{"$f":"IFERROR(VLOOKUP(StudentuUzmeklēšana,MartaApmeklētība[],26,FALSE),\"\")","v":""},{"$f":"IFERROR(VLOOKUP(StudentuUzmeklēšana,MartaApmeklētība[],27,FALSE),\"\")","v":""},{"$f":"IFERROR(VLOOKUP(StudentuUzmeklēšana,MartaApmeklētība[],28,FALSE),\"\")","v":""},{"$f":"IFERROR(VLOOKUP(StudentuUzmeklēšana,MartaApmeklētība[],29,FALSE),\"\")","v":""},{"$f":"IFERROR(VLOOKUP(StudentuUzmeklēšana,MartaApmeklētība[],30,FALSE),\"\")","v":""},{"$f":"IFERROR(VLOOKUP(StudentuUzmeklēšana,MartaApmeklētība[],31,FALSE),\"\")","v":""},{"$f":"IFERROR(VLOOKUP(StudentuUzmeklēšana,MartaApmeklētība[],32,FALSE),\"\")","v":""},{"$f":"IFERROR(VLOOKUP(StudentuUzmeklēšana,MartaApmeklētība[],33,FALSE),\"\")","v":""}]
[null,"Aprīlis",1,2,3,4,5,6,7,8,9,10,11,12,13,14,15,16,17,18,19,20,21,22,23,24,25,26,27,28,29,30,null,{"$f":"COUNTIF($D33:$AH33,Kods1)","v":0},{"$f":"COUNTIF($D33:$AH33,Kods2)","v":0},{"$f":"COUNTIF($D33:$AH33,Kods3)","v":0},{"$f":"COUNTIF($D33:$AH33,Kods4)","v":0}]
[null,null,{"$f":"IFERROR(VLOOKUP(StudentuUzmeklēšana,AprīļaApmeklētība[],3,FALSE),\"\")","v":""},{"$f":"IFERROR(VLOOKUP(StudentuUzmeklēšana,AprīļaApmeklētība[],4,FALSE),\"\")","v":""},{"$f":"IFERROR(VLOOKUP(StudentuUzmeklēšana,AprīļaApmeklētība[],5,FALSE),\"\")","v":""},{"$f":"IFERROR(VLOOKUP(StudentuUzmeklēšana,AprīļaApmeklētība[],6,FALSE),\"\")","v":""},{"$f":"IFERROR(VLOOKUP(StudentuUzmeklēšana,AprīļaApmeklētība[],7,FALSE),\"\")","v":""},{"$f":"IFERROR(VLOOKUP(StudentuUzmeklēšana,AprīļaApmeklētība[],8,FALSE),\"\")","v":""},{"$f":"IFERROR(VLOOKUP(StudentuUzmeklēšana,AprīļaApmeklētība[],9,FALSE),\"\")","v":""},{"$f":"IFERROR(VLOOKUP(StudentuUzmeklēšana,AprīļaApmeklētība[],10,FALSE),\"\")","v":""},{"$f":"IFERROR(VLOOKUP(StudentuUzmeklēšana,AprīļaApmeklētība[],11,FALSE),\"\")","v":""},{"$f":"IFERROR(VLOOKUP(StudentuUzmeklēšana,AprīļaApmeklētība[],12,FALSE),\"\")","v":""},{"$f":"IFERROR(VLOOKUP(StudentuUzmeklēšana,AprīļaApmeklētība[],13,FALSE),\"\")","v":""},{"$f":"IFERROR(VLOOKUP(StudentuUzmeklēšana,AprīļaApmeklētība[],14,FALSE),\"\")","v":""},{"$f":"IFERROR(VLOOKUP(StudentuUzmeklēšana,AprīļaApmeklētība[],15,FALSE),\"\")","v":""},{"$f":"IFERROR(VLOOKUP(StudentuUzmeklēšana,AprīļaApmeklētība[],16,FALSE),\"\")","v":""},{"$f":"IFERROR(VLOOKUP(StudentuUzmeklēšana,AprīļaApmeklētība[],17,FALSE),\"\")","v":""},{"$f":"IFERROR(VLOOKUP(StudentuUzmeklēšana,AprīļaApmeklētība[],18,FALSE),\"\")","v":""},{"$f":"IFERROR(VLOOKUP(StudentuUzmeklēšana,AprīļaApmeklētība[],19,FALSE),\"\")","v":""},{"$f":"IFERROR(VLOOKUP(StudentuUzmeklēšana,AprīļaApmeklētība[],20,FALSE),\"\")","v":""},{"$f":"IFERROR(VLOOKUP(StudentuUzmeklēšana,AprīļaApmeklētība[],21,FALSE),\"\")","v":""},{"$f":"IFERROR(VLOOKUP(StudentuUzmeklēšana,AprīļaApmeklētība[],22,FALSE),\"\")","v":""},{"$f":"IFERROR(VLOOKUP(StudentuUzmeklēšana,AprīļaApmeklētība[],23,FALSE),\"\")","v":""},{"$f":"IFERROR(VLOOKUP(StudentuUzmeklēšana,AprīļaApmeklētība[],24,FALSE),\"\")","v":""},{"$f":"IFERROR(VLOOKUP(StudentuUzmeklēšana,AprīļaApmeklētība[],25,FALSE),\"\")","v":""},{"$f":"IFERROR(VLOOKUP(StudentuUzmeklēšana,AprīļaApmeklētība[],26,FALSE),\"\")","v":""},{"$f":"IFERROR(VLOOKUP(StudentuUzmeklēšana,AprīļaApmeklētība[],27,FALSE),\"\")","v":""},{"$f":"IFERROR(VLOOKUP(StudentuUzmeklēšana,AprīļaApmeklētība[],28,FALSE),\"\")","v":""},{"$f":"IFERROR(VLOOKUP(StudentuUzmeklēšana,AprīļaApmeklētība[],29,FALSE),\"\")","v":""},{"$f":"IFERROR(VLOOKUP(StudentuUzmeklēšana,AprīļaApmeklētība[],30,FALSE),\"\")","v":""},{"$f":"IFERROR(VLOOKUP(StudentuUzmeklēšana,AprīļaApmeklētība[],31,FALSE),\"\")","v":""},{"$f":"IFERROR(VLOOKUP(StudentuUzmeklēšana,AprīļaApmeklētība[],32,FALSE),\"\")","v":""}]
[null,"Maijs",1,2,3,4,5,6,7,8,9,10,11,12,13,14,15,16,17,18,19,20,21,22,23,24,25,26,27,28,29,30,31,{"$f":"COUNTIF($D35:$AH35,Kods1)","v":0},{"$f":"COUNTIF($D35:$AH35,Kods2)","v":0},{"$f":"COUNTIF($D35:$AH35,Kods3)","v":0},{"$f":"COUNTIF($D35:$AH35,Kods4)","v":0}]
[null,null,{"$f":"IFERROR(VLOOKUP(StudentuUzmeklēšana,MaijaApmeklētība[],3,FALSE),\"\")","v":""},{"$f":"IFERROR(VLOOKUP(StudentuUzmeklēšana,MaijaApmeklētība[],4,FALSE),\"\")","v":""},{"$f":"IFERROR(VLOOKUP(StudentuUzmeklēšana,MaijaApmeklētība[],5,FALSE),\"\")","v":""},{"$f":"IFERROR(VLOOKUP(StudentuUzmeklēšana,MaijaApmeklētība[],6,FALSE),\"\")","v":""},{"$f":"IFERROR(VLOOKUP(StudentuUzmeklēšana,MaijaApmeklētība[],7,FALSE),\"\")","v":""},{"$f":"IFERROR(VLOOKUP(StudentuUzmeklēšana,MaijaApmeklētība[],8,FALSE),\"\")","v":""},{"$f":"IFERROR(VLOOKUP(StudentuUzmeklēšana,MaijaApmeklētība[],9,FALSE),\"\")","v":""},{"$f":"IFERROR(VLOOKUP(StudentuUzmeklēšana,MaijaApmeklētība[],10,FALSE),\"\")","v":""},{"$f":"IFERROR(VLOOKUP(StudentuUzmeklēšana,MaijaApmeklētība[],11,FALSE),\"\")","v":""},{"$f":"IFERROR(VLOOKUP(StudentuUzmeklēšana,MaijaApmeklētība[],12,FALSE),\"\")","v":""},{"$f":"IFERROR(VLOOKUP(StudentuUzmeklēšana,MaijaApmeklētība[],13,FALSE),\"\")","v":""},{"$f":"IFERROR(VLOOKUP(StudentuUzmeklēšana,MaijaApmeklētība[],14,FALSE),\"\")","v":""},{"$f":"IFERROR(VLOOKUP(StudentuUzmeklēšana,MaijaApmeklētība[],15,FALSE),\"\")","v":""},{"$f":"IFERROR(VLOOKUP(StudentuUzmeklēšana,MaijaApmeklētība[],16,FALSE),\"\")","v":""},{"$f":"IFERROR(VLOOKUP(StudentuUzmeklēšana,MaijaApmeklētība[],17,FALSE),\"\")","v":""},{"$f":"IFERROR(VLOOKUP(StudentuUzmeklēšana,MaijaApmeklētība[],18,FALSE),\"\")","v":""},{"$f":"IFERROR(VLOOKUP(StudentuUzmeklēšana,MaijaApmeklētība[],19,FALSE),\"\")","v":""},{"$f":"IFERROR(VLOOKUP(StudentuUzmeklēšana,MaijaApmeklētība[],20,FALSE),\"\")","v":""},{"$f":"IFERROR(VLOOKUP(StudentuUzmeklēšana,MaijaApmeklētība[],21,FALSE),\"\")","v":""},{"$f":"IFERROR(VLOOKUP(StudentuUzmeklēšana,MaijaApmeklētība[],22,FALSE),\"\")","v":""},{"$f":"IFERROR(VLOOKUP(StudentuUzmeklēšana,MaijaApmeklētība[],23,FALSE),\"\")","v":""},{"$f":"IFERROR(VLOOKUP(StudentuUzmeklēšana,MaijaApmeklētība[],24,FALSE),\"\")","v":""},{"$f":"IFERROR(VLOOKUP(StudentuUzmeklēšana,MaijaApmeklētība[],25,FALSE),\"\")","v":""},{"$f":"IFERROR(VLOOKUP(StudentuUzmeklēšana,MaijaApmeklētība[],26,FALSE),\"\")","v":""},{"$f":"IFERROR(VLOOKUP(StudentuUzmeklēšana,MaijaApmeklētība[],27,FALSE),\"\")","v":""},{"$f":"IFERROR(VLOOKUP(StudentuUzmeklēšana,MaijaApmeklētība[],28,FALSE),\"\")","v":""},{"$f":"IFERROR(VLOOKUP(StudentuUzmeklēšana,MaijaApmeklētība[],29,FALSE),\"\")","v":""},{"$f":"IFERROR(VLOOKUP(StudentuUzmeklēšana,MaijaApmeklētība[],30,FALSE),\"\")","v":""},{"$f":"IFERROR(VLOOKUP(StudentuUzmeklēšana,MaijaApmeklētība[],31,FALSE),\"\")","v":""},{"$f":"IFERROR(VLOOKUP(StudentuUzmeklēšana,MaijaApmeklētība[],32,FALSE),\"\")","v":""},{"$f":"IFERROR(VLOOKUP(StudentuUzmeklēšana,MaijaApmeklētība[],33,FALSE),\"\")","v":""}]
[null,"Jūnijs",1,2,3,4,5,6,7,8,9,10,11,12,13,14,15,16,17,18,19,20,21,22,23,24,25,26,27,28,29,30,null,{"$f":"COUNTIF($D37:$AH37,Kods1)","v":0},{"$f":"COUNTIF($D37:$AH37,Kods2)","v":0},{"$f":"COUNTIF($D37:$AH37,Kods3)","v":0},{"$f":"COUNTIF($D37:$AH37,Kods4)","v":0}]
[null,null,{"$f":"IFERROR(VLOOKUP(StudentuUzmeklēšana,JūnijaApmeklētība[],3,FALSE),\"\")","v":""},{"$f":"IFERROR(VLOOKUP(StudentuUzmeklēšana,JūnijaApmeklētība[],4,FALSE),\"\")","v":""},{"$f":"IFERROR(VLOOKUP(StudentuUzmeklēšana,JūnijaApmeklētība[],5,FALSE),\"\")","v":""},{"$f":"IFERROR(VLOOKUP(StudentuUzmeklēšana,JūnijaApmeklētība[],6,FALSE),\"\")","v":""},{"$f":"IFERROR(VLOOKUP(StudentuUzmeklēšana,JūnijaApmeklētība[],7,FALSE),\"\")","v":""},{"$f":"IFERROR(VLOOKUP(StudentuUzmeklēšana,JūnijaApmeklētība[],8,FALSE),\"\")","v":""},{"$f":"IFERROR(VLOOKUP(StudentuUzmeklēšana,JūnijaApmeklētība[],9,FALSE),\"\")","v":""},{"$f":"IFERROR(VLOOKUP(StudentuUzmeklēšana,JūnijaApmeklētība[],10,FALSE),\"\")","v":""},{"$f":"IFERROR(VLOOKUP(StudentuUzmeklēšana,JūnijaApmeklētība[],11,FALSE),\"\")","v":""},{"$f":"IFERROR(VLOOKUP(StudentuUzmeklēšana,JūnijaApmeklētība[],12,FALSE),\"\")","v":""},{"$f":"IFERROR(VLOOKUP(StudentuUzmeklēšana,JūnijaApmeklētība[],13,FALSE),\"\")","v":""},{"$f":"IFERROR(VLOOKUP(StudentuUzmeklēšana,JūnijaApmeklētība[],14,FALSE),\"\")","v":""},{"$f":"IFERROR(VLOOKUP(StudentuUzmeklēšana,JūnijaApmeklētība[],15,FALSE),\"\")","v":""},{"$f":"IFERROR(VLOOKUP(StudentuUzmeklēšana,JūnijaApmeklētība[],16,FALSE),\"\")","v":""},{"$f":"IFERROR(VLOOKUP(StudentuUzmeklēšana,JūnijaApmeklētība[],17,FALSE),\"\")","v":""},{"$f":"IFERROR(VLOOKUP(StudentuUzmeklēšana,JūnijaApmeklētība[],18,FALSE),\"\")","v":""},{"$f":"IFERROR(VLOOKUP(StudentuUzmeklēšana,JūnijaApmeklētība[],19,FALSE),\"\")","v":""},{"$f":"IFERROR(VLOOKUP(StudentuUzmeklēšana,JūnijaApmeklētība[],20,FALSE),\"\")","v":""},{"$f":"IFERROR(VLOOKUP(StudentuUzmeklēšana,JūnijaApmeklētība[],21,FALSE),\"\")","v":""},{"$f":"IFERROR(VLOOKUP(StudentuUzmeklēšana,JūnijaApmeklētība[],22,FALSE),\"\")","v":""},{"$f":"IFERROR(VLOOKUP(StudentuUzmeklēšana,JūnijaApmeklētība[],23,FALSE),\"\")","v":""},{"$f":"IFERROR(VLOOKUP(StudentuUzmeklēšana,JūnijaApmeklētība[],24,FALSE),\"\")","v":""},{"$f":"IFERROR(VLOOKUP(StudentuUzmeklēšana,JūnijaApmeklētība[],25,FALSE),\"\")","v":""},{"$f":"IFERROR(VLOOKUP(StudentuUzmeklēšana,JūnijaApmeklētība[],26,FALSE),\"\")","v":""},{"$f":"IFERROR(VLOOKUP(StudentuUzmeklēšana,JūnijaApmeklētība[],27,FALSE),\"\")","v":""},{"$f":"IFERROR(VLOOKUP(StudentuUzmeklēšana,JūnijaApmeklētība[],28,FALSE),\"\")","v":""},{"$f":"IFERROR(VLOOKUP(StudentuUzmeklēšana,JūnijaApmeklētība[],29,FALSE),\"\")","v":""},{"$f":"IFERROR(VLOOKUP(StudentuUzmeklēšana,JūnijaApmeklētība[],30,FALSE),\"\")","v":""},{"$f":"IFERROR(VLOOKUP(StudentuUzmeklēšana,JūnijaApmeklētība[],31,FALSE),\"\")","v":""},{"$f":"IFERROR(VLOOKUP(StudentuUzmeklēšana,JūnijaApmeklētība[],32,FALSE),\"\")","v":""}]
[null,"Jūlijs",1,2,3,4,5,6,7,8,9,10,11,12,13,14,15,16,17,18,19,20,21,22,23,24,25,26,27,28,29,30,31,{"$f":"COUNTIF($D39:$AH39,Kods1)","v":0},{"$f":"COUNTIF($D39:$AH39,Kods2)","v":0},{"$f":"COUNTIF($D39:$AH39,Kods3)","v":0},{"$f":"COUNTIF($D39:$AH39,Kods4)","v":0}]
[null,null,{"$f":"IFERROR(VLOOKUP(StudentuUzmeklēšana,JūlijaApmeklētība[],3,FALSE),\"\")","v":""},{"$f":"IFERROR(VLOOKUP(StudentuUzmeklēšana,JūlijaApmeklētība[],4,FALSE),\"\")","v":""},{"$f":"IFERROR(VLOOKUP(StudentuUzmeklēšana,JūlijaApmeklētība[],5,FALSE),\"\")","v":""},{"$f":"IFERROR(VLOOKUP(StudentuUzmeklēšana,JūlijaApmeklētība[],6,FALSE),\"\")","v":""},{"$f":"IFERROR(VLOOKUP(StudentuUzmeklēšana,JūlijaApmeklētība[],7,FALSE),\"\")","v":""},{"$f":"IFERROR(VLOOKUP(StudentuUzmeklēšana,JūlijaApmeklētība[],8,FALSE),\"\")","v":""},{"$f":"IFERROR(VLOOKUP(StudentuUzmeklēšana,JūlijaApmeklētība[],9,FALSE),\"\")","v":""},{"$f":"IFERROR(VLOOKUP(StudentuUzmeklēšana,JūlijaApmeklētība[],10,FALSE),\"\")","v":""},{"$f":"IFERROR(VLOOKUP(StudentuUzmeklēšana,JūlijaApmeklētība[],11,FALSE),\"\")","v":""},{"$f":"IFERROR(VLOOKUP(StudentuUzmeklēšana,JūlijaApmeklētība[],12,FALSE),\"\")","v":""},{"$f":"IFERROR(VLOOKUP(StudentuUzmeklēšana,JūlijaApmeklētība[],13,FALSE),\"\")","v":""},{"$f":"IFERROR(VLOOKUP(StudentuUzmeklēšana,JūlijaApmeklētība[],14,FALSE),\"\")","v":""},{"$f":"IFERROR(VLOOKUP(StudentuUzmeklēšana,JūlijaApmeklētība[],15,FALSE),\"\")","v":""},{"$f":"IFERROR(VLOOKUP(StudentuUzmeklēšana,JūlijaApmeklētība[],16,FALSE),\"\")","v":""},{"$f":"IFERROR(VLOOKUP(StudentuUzmeklēšana,JūlijaApmeklētība[],17,FALSE),\"\")","v":""},{"$f":"IFERROR(VLOOKUP(StudentuUzmeklēšana,JūlijaApmeklētība[],18,FALSE),\"\")","v":""},{"$f":"IFERROR(VLOOKUP(StudentuUzmeklēšana,JūlijaApmeklētība[],19,FALSE),\"\")","v":""},{"$f":"IFERROR(VLOOKUP(StudentuUzmeklēšana,JūlijaApmeklētība[],20,FALSE),\"\")","v":""},{"$f":"IFERROR(VLOOKUP(StudentuUzmeklēšana,JūlijaApmeklētība[],21,FALSE),\"\")","v":""},{"$f":"IFERROR(VLOOKUP(StudentuUzmeklēšana,JūlijaApmeklētība[],22,FALSE),\"\")","v":""},{"$f":"IFERROR(VLOOKUP(StudentuUzmeklēšana,JūlijaApmeklētība[],23,FALSE),\"\")","v":""},{"$f":"IFERROR(VLOOKUP(StudentuUzmeklēšana,JūlijaApmeklētība[],24,FALSE),\"\")","v":""},{"$f":"IFERROR(VLOOKUP(StudentuUzmeklēšana,JūlijaApmeklētība[],25,FALSE),\"\")","v":""},{"$f":"IFERROR(VLOOKUP(StudentuUzmeklēšana,JūlijaApmeklētība[],26,FALSE),\"\")","v":""},{"$f":"IFERROR(VLOOKUP(StudentuUzmeklēšana,JūlijaApmeklētība[],27,FALSE),\"\")","v":""},{"$f":"IFERROR(VLOOKUP(StudentuUzmeklēšana,JūlijaApmeklētība[],28,FALSE),\"\")","v":""},{"$f":"IFERROR(VLOOKUP(StudentuUzmeklēšana,JūlijaApmeklētība[],29,FALSE),\"\")","v":""},{"$f":"IFERROR(VLOOKUP(StudentuUzmeklēšana,JūlijaApmeklētība[],30,FALSE),\"\")","v":""},{"$f":"IFERROR(VLOOKUP(StudentuUzmeklēšana,JūlijaApmeklētība[],31,FALSE),\"\")","v":""},{"$f":"IFERROR(VLOOKUP(StudentuUzmeklēšana,JūlijaApmeklētība[],32,FALSE),\"\")","v":""},{"$f":"IFERROR(VLOOKUP(StudentuUzmeklēšana,JūlijaApmeklētība[],33,FALSE),\"\")","v":""}]
[{"$nulls":30},"Kopā",null,null,{"$f":"SUM(AH16:AH39)","v":2},{"$f":"SUM(AI16:AI39)","v":1},{"$f":"SUM(AJ16:AJ39)","v":0},{"$f":"SUM(AK16:AK39)","v":19}]